Workbook

Sheet ÍNDICE

Sheet ESCUELAS PARTICIPANTES
C2: CARACTERÍSTICAS DE LAS ESCUELAS PARTICIPANTES EN IDANIS 2019
C6: TURNO | D6: Frecuencia | E6: Porcentaje | F6: Válido | G6: Acumulado
C7: S/D | D7: 28 | E7: 1.5 | F7: 1.5
C8: DISCONTINUO | D8: 80 | E8: 4.3 | F8: 4.3
C9: MATUTINO | D9: 1438 | E9: 77.7 | F9: 77.7
C10: VESPERTINO | D10: 304 | E10: 16.4 | F10: 16.4
C11: Total | D11: 1850 | E11: 100 | F11: 100
C14: MODALIDAD | D14: Frecuencia | E14: Porcentaje | F14: Válido | G14: Acumulado
C15: S/D | D15: 28 | E15: 1.5 | F15: 1.5
C16: PRIMARIA GENERAL ESTATAL | D16: 438 | E16: 23.7 | F16: 23.7
C17: PRIMARIA GENERAL FEDERAL TRANSFERIDO | D17: 1095 | E17: 59.2 | F17: 59.2
C18: PRIMARIA GENERAL PARTICULAR | D18: 192 | E18: 10.4 | F18: 10.4
C19: PRIMARIA INDIGENA FEDERAL TRANSFERIDO | D19: 97 | E19: 5.2 | F19: 5.2
C20: Total | D20: 1850 | E20: 100 | F20: 100
C23: TIEMPO COMPLETO | D23: Frecuencia | E23: Porcentaje | F23: Válido | G23: Acumulado
C24: NO | D24: 1437 | E24: 77.7 | F24: 77.7
C25: TIEMPO COMPLETO | D25: 413 | E25: 22.3 | F25: 22.3
C26: Total | D26: 1850 | E26: 100 | F26: 100
C30: TIPO DE ORGANIZACIÓN | D30: Frecuencia | E30: Porcentaje | F30: Porcentaje válido | G30: Porcentaje acumulado
C31: S/D | D31: 28 | E31: 1.5 | F31: 1.5
C32: COMPLETA | D32: 1339 | E32: 72.4 | F32: 72.4
C33: MULTIGRADO | D33: 393 | E33: 21.2 | F33: 21.2
C34: UNITARIA | D34: 90 | E34: 4.9 | F34: 4.9
C35: Total | D35: 1850 | E35: 100 | F35: 100
C40: MUNICIPIO | D40: Frecuencia | E40: Porcentaje | F40: Porcentaje válido | G40: Porcentaje acumulado
C41: S/D | D41: 28 | E41: 1.5 | F41: 1.5
C42: 001 AHUMADA | D42: 9 | E42: 0.5 | F42: 0.5
C43: 002 ALDAMA | D43: 15 | E43: 0.8 | F43: 0.8
C44: 003 ALLENDE | D44: 7 | E44: 0.4 | F44: 0.4
C45: 004 AQUILES SERDÁN | D45: 9 | E45: 0.5 | F45: 0.5
C46: 005 ASCENSIÓN | D46: 14 | E46: 0.8 | F46: 0.8
C47: 006 BACHÍNIVA | D47: 4 | E47: 0.2 | F47: 0.2
C48: 007 BALLEZA | D48: 15 | E48: 0.8 | F48: 0.8
C49: 008 BATOPILAS DE MANUEL GÓMEZ MORÍN | D49: 10 | E49: 0.5 | F49: 0.5
C50: 009 BOCOYNA | D50: 32 | E50: 1.7 | F50: 1.7
C51: 010 BUENAVENTURA | D51: 14 | E51: 0.8 | F51: 0.8
C52: 011 CAMARGO | D52: 37 | E52: 2 | F52: 2
C53: 012 CARICHÍ | D53: 4 | E53: 0.2 | F53: 0.2
C54: 013 CASAS GRANDES | D54: 9 | E54: 0.5 | F54: 0.5
C55: 014 CORONADO | D55: 2 | E55: 0.1 | F55: 0.1
C56: 015 COYAME DEL SOTOL | D56: 2 | E56: 0.1 | F56: 0.1
C57: 016 LA CRUZ | D57: 4 | E57: 0.2 | F57: 0.2
C58: 017 CUAUHTÉMOC | D58: 79 | E58: 4.3 | F58: 4.3
C59: 018 CUSIHUIRIACHI | D59: 4 | E59: 0.2 | F59: 0.2
C60: 019 CHIHUAHUA | D60: 352 | E60: 19 | F60: 19
C61: 020 CHÍNIPAS | D61: 11 | E61: 0.6 | F61: 0.6
C62: 021 DELICIAS | D62: 74 | E62: 4 | F62: 4
C63: 022 DR. BELISARIO DOMÍNGUEZ | D63: 4 | E63: 0.2 | F63: 0.2
C64: 023 GALEANA | D64: 5 | E64: 0.3 | F64: 0.3
C65: 024 SANTA ISABEL | D65: 2 | E65: 0.1 | F65: 0.1
C66: 025 GÓMEZ FARÍAS | D66: 8 | E66: 0.4 | F66: 0.4
C67: 026 GRAN MORELOS | D67: 2 | E67: 0.1 | F67: 0.1
C68: 027 GUACHOCHI | D68: 42 | E68: 2.3 | F68: 2.3
C69: 028 GUADALUPE | D69: 7 | E69: 0.4 | F69: 0.4
C70: 029 GUADALUPE Y CALVO | D70: 51 | E70: 2.8 | F70: 2.8
C71: 030 GUAZAPARES | D71: 16 | E71: 0.9 | F71: 0.9
C72: 031 GUERRERO | D72: 30 | E72: 1.6 | F72: 1.6
C73: 032 HIDALGO DEL PARRAL | D73: 56 | E73: 3 | F73: 3
C74: 033 HUEJOTITÁN | D74: 2 | E74: 0.1 | F74: 0.1
C75: 034 IGNACIO ZARAGOZA | D75: 9 | E75: 0.5 | F75: 0.5
C76: 035 JANOS | D76: 6 | E76: 0.3 | F76: 0.3
C77: 036 JIMÉNEZ | D77: 37 | E77: 2 | F77: 2
C78: 037 JU?REZ | D78: 1 | E78: 0.1 | F78: 0.1
C79: 037 JUÁREZ | D79: 545 | E79: 29.5 | F79: 29.5
C80: 038 JULIMES | D80: 7 | E80: 0.4 | F80: 0.4
C81: 039 LÓPEZ | D81: 5 | E81: 0.3 | F81: 0.3
C82: 040 MADERA | D82: 31 | E82: 1.7 | F82: 1.7
C83: 041 MAGUARICHI | D83: 1 | E83: 0.1 | F83: 0.1
C84: 042 MANUEL BENAVIDES | D84: 1 | E84: 0.1 | F84: 0.1
C85: 043 MATACHÍ | D85: 4 | E85: 0.2 | F85: 0.2
C86: 044 MATAMOROS | D86: 5 | E86: 0.3 | F86: 0.3
C87: 045 MEOQUI | D87: 33 | E87: 1.8 | F87: 1.8
C88: 046 MORELOS | D88: 1 | E88: 0.1 | F88: 0.1
C89: 047 MORIS | D89: 2 | E89: 0.1 | F89: 0.1
C90: 048 NAMIQUIPA | D90: 18 | E90: 1 | F90: 1
C91: 049 NONOAVA | D91: 6 | E91: 0.3 | F91: 0.3
C92: 050 NUEVO CASAS GRANDES | D92: 35 | E92: 1.9 | F92: 1.9
C93: 051 OCAMPO | D93: 5 | E93: 0.3 | F93: 0.3
C94: 052 OJINAGA | D94: 20 | E94: 1.1 | F94: 1.1
C95: 053 PRAXEDIS G. GUERRERO | D95: 6 | E95: 0.3 | F95: 0.3
C96: 054 RIVA PALACIO | D96: 2 | E96: 0.1 | F96: 0.1
C97: 055 ROSALES | D97: 17 | E97: 0.9 | F97: 0.9
C98: 056 ROSARIO | D98: 4 | E98: 0.2 | F98: 0.2
C99: 057 SAN FRANCISCO DE BORJA | D99: 3 | E99: 0.2 | F99: 0.2
C100: 058 SAN FRANCISCO DE CONCHOS | D100: 5 | E100: 0.3 | F100: 0.3
C101: 059 SAN FRANCISCO DEL ORO | D101: 5 | E101: 0.3 | F101: 0.3
C102: 060 SANTA BÁRBARA | D102: 10 | E102: 0.5 | F102: 0.5
C103: 061 SATEVÓ | D103: 3 | E103: 0.2 | F103: 0.2
C104: 062 SAUCILLO | D104: 24 | E104: 1.3 | F104: 1.3
C105: 063 TEMÓSACHIC | D105: 8 | E105: 0.4 | F105: 0.4
C106: 064 EL TULE | D106: 5 | E106: 0.3 | F106: 0.3
C107: 065 URIQUE | D107: 20 | E107: 1.1 | F107: 1.1
C108: 066 URUACHI | D108: 4 | E108: 0.2 | F108: 0.2
C109: 067 VALLE DE ZARAGOZA | D109: 2 | E109: 0.1 | F109: 0.1
C110: Total | D110: 1850 | E110: 100 | F110: 100

Sheet PROGRESO ZONA
H2: ZONA | I2: Promedio de total aciertos
H3: 31 | I3: 34.16666667 | J3: =(I3*100)/60 -> 56.94444444
H4: 17 | I4: 33.57142857 | J4: =(I4*100)/60 -> 55.95238095
H5: 93 | I5: 32.84615385 | J5: 54.74358974
H6: 19 | I6: 32.75 | J6: 54.58333333
H7: 43 | I7: 32.5 | J7: 54.16666667
H8: 89 | I8: 31.5 | J8: 52.5
H9: 26 | I9: 31 | J9: 51.66666667
H10: 1 | I10: 30.75 | J10: 51.25
H11: 87 | I11: 30.6 | J11: 51
H12: 46 | I12: 30.5 | J12: 50.83333333
H13: 5 | I13: 30.46153846 | J13: 50.76923077
H14: 4 | I14: 30.1 | J14: 50.16666667
H15: 88 | I15: 30 | J15: 50
H16: 91 | I16: 29.61538462 | J16: 49.35897436
H17: 34 | I17: 29.23076923 | J17: 48.71794872
H18: 39 | I18: 29 | J18: 48.33333333
H19: 9 | I19: 29 | J19: 48.33333333
H20: 90 | I20: 28.88888889 | J20: 48.14814815
H21: 96 | I21: 28.875 | J21: 48.125
H22: 25 | I22: 28.55555556 | J22: 47.59259259
H23: 2 | I23: 28.42105263 | J23: 47.36842105
H24: 16 | I24: 28.33333333 | J24: 47.22222222
H25: 109 | I25: 28.1 | J25: 46.83333333
H26: 3 | I26: 28.08333333 | J26: 46.80555556
H27: 32 | I27: 27.8 | J27: 46.33333333
H28: 14 | I28: 27.14285714 | J28: 45.23809524
H29: 28 | I29: 27 | J29: 45
H30: 10 | I30: 27 | J30: 45
H31: 6 | I31: 26.8 | J31: 44.66666667
H32: 20 | I32: 26.66666667 | J32: 44.44444444
H33: 92 | I33: 26.5 | J33: 44.16666667
H34: 13 | I34: 26.375 | J34: 43.95833333
H35: 18 | I35: 26.2 | J35: 43.66666667
H36: 36 | I36: 25.875 | J36: 43.125
H37: 27 | I37: 25.77777778 | J37: 42.96296296
H38: 24 | I38: 25.46153846 | J38: 42.43589744
H39: 21 | I39: 25.42857143 | J39: 42.38095238
H40: 41 | I40: 25.125 | J40: 41.875
H41: 15 | I41: 24.94117647 | J41: 41.56862745
H42: 8 | I42: 24.11764706 | J42: 40.19607843
H43: 12 | I43: 23.66666667 | J43: 39.44444444
H44: 35 | I44: 23.66666667 | J44: 39.44444444
H45: 11 | I45: 23.33333333 | J45: 38.88888889
H46: 7 | I46: 22.6 | J46: 37.66666667
H47: 47 | I47: 21.2 | J47: 35.33333333
J48: 0
J49: 0
J50: 0
J51: 0
J52: 0
J53: 0
J54: 0
J55: 0
J56: 0
J57: 0
J58: 0
J59: 0
J60: 0
J61: 0
J62: 0
J63: 0
J64: 0
J65: 0
J66: 0
J67: 0
J68: =(I68*100)/60 -> 0
J69: 0
J70: 0
J71: 0
J72: 0
J73: 0
J74: 0
J75: 0
J76: 0
J77: 0
J78: 0
J79: 0
J80: 0
J81: 0
J82: 0
J83: 0
J84: 0
J85: 0
J86: 0
J87: 0
J88: 0
J89: 0
J90: 0
J91: 0
J92: 0
J93: 0
J94: 0
J95: 0
J96: 0
J97: 0
J98: 0
J99: 0
J100: 0
J101: 0
J102: 0
J103: 0
J104: 0
J105: 0
J106: 0
J107: 0
J108: 0
J109: 0
J110: 0
J111: 0
J112: 0
J113: 0
J114: 0
J115: 0
J116: 0
J117: 0
J118: 0
J119: 0
J120: 0
J121: 0
J122: 0
J123: 0
J124: 0
J125: 0
J126: 0
J127: 0
J128: 0
J129: 0
J130: 0
J131: 0
J132: =(I132*100)/60 -> 0
J133: 0
J134: 0
J135: 0
J136: 0
J137: 0
J138: 0
J139: 0
J140: 0
J141: 0
J142: 0
J143: 0
J144: 0
J145: 0
J146: 0
J147: 0
J148: 0
J149: 0
J150: 0
J151: 0
J152: 0
J153: 0
J154: 0
J155: 0
J156: 0
J157: 0
J158: 0
J159: 0
J160: 0
J161: 0
J162: 0
J163: 0
J164: 0
J165: 0
J166: 0
J167: 0
J168: 0
J169: 0
J170: 0
J171: 0
J172: 0
J173: 0
J174: 0
J175: 0

Sheet ÍNDICE FLUJO

Sheet ÍNDICE ZONA

Sheet ÍNDICE RESULTADOS GENERALES

Sheet PROGRESO DIFERENCIA
C1: ZONA | D1: CCT_ORIGEN4 | E1: 2018 | F1: 2019 | G1: DIFERENCIA
C2: 103 | D2: 08DPR0656L | F2: 71.5
C3: 103 | D3: 08DPR1644N | F3: 42
C4: 103 | D4: 08DPR1696T | F4: 52
C5: 106 | D5: 08DPR0205I | F5: 58.8
C6: 106 | D6: 08DPR0209E | F6: 46
C7: 106 | D7: 08DPR0417L | F7: 28
C8: 106 | D8: 08DPR1082W | F8: 44
C9: 106 | D9: 08DPR1188P | F9: 41.16666667
C10: 107 | D10: 08DPR0182O | F10: 53
C11: 107 | D11: 08DPR0189H | F11: 37
C12: 108 | D12: 08DPR0176D | F12: 67
C13: 109 | D13: 08DPR0962T | F13: 25
C14: 110 | D14: 08DPR0365W | F14: 62.75
C15: 112 | D15: 08DPR0056R | F15: 40.33333333
C16: 112 | D16: 08DPR0439X | F16: 33
C17: 113 | D17: 08DPR0201M | F17: 57
C18: 113 | D18: 08DPR1741P | F18: 38
C19: 115 | D19: 08DPR1443Q | F19: 29.71428571
C20: 115 | D20: 08DPR1931G | F20: 44
C21: 116 | D21: 08DPR0170J | F21: 37
C22: 116 | D22: 08DPR1303Q | F22: 38
C23: 117 | D23: 08DPR1109M | F23: 50.09090909
C24: 117 | D24: 08DPR2498Z | F24: 43
C25: 118 | D25: 08DPR0966P | F25: 52
C26: 119 | D26: 08DPR2289U | F26: 45.75
C27: 121 | D27: 08DPR1705K | F27: 43
C28: 123 | D28: 08DPR0684H | F28: 55
C29: 123 | D29: 08DPR1399T | F29: 40
C30: 134 | D30: 08DPR0530E | F30: 34.46153846
C31: 135 | D31: 08DPR1250B | F31: 57
C32: 139 | D32: 08DPR0687E | F32: 39.25
C33: 141 | D33: 08DPR0287I | F33: 37.75
C34: 148 | D34: 08DPR1506L | F34: 32.5
C35: 149 | D35: 08DPR0832Z | F35: 48
C36: 150 | D36: 08DPR0893N | F36: 37
C37: 154 | D37: 08DPR0502I | F37: 37
C38: 154 | D38: 08DPR2010J | F38: 34.66666667
C39: 154 | D39: 08DPR2011I | F39: 53
C40: 154 | D40: 08DPR2263M | F40: 45.5
C41: 155 | D41: 08DPR0055S | F41: 47.5
C42: 156 | D42: 08DPR0135D | F42: 78
C43: 156 | D43: 08DPR0150W | F43: 40
C44: 156 | D44: 08DPR0158O | F44: 48
C45: 157 | D45: 08DPR2267I | F45: 28.33333333
C46: 158 | D46: 08DPR0159N | F46: 68
C47: 158 | D47: 08DPR2141B | F47: 48
C48: 160 | D48: 08DPR2271V | F48: 46.33333333
C49: 161 | D49: 08DPR1503O | F49: 53
C50: 164 | D50: 08DPR2678K | F50: 41.90909091
C51: 33 | D51: 08DPR0450T | F51: 45
C52: 33 | D52: 08DPR0560Z | F52: 37
C53: 35 | D53: 08DPR0250V | F53: 43.66666667
C54: 75 | D54: 08DPR1149N | F54: 40.75
C55: 76 | D55: 08DPR1712U | F55: 41.25
C56: 76 | D56: 08DPR1750X | F56: 38
C57: 87 | D57: 08DPR0231G | F57: 41.8
C58: 88 | D58: 08DPR1213Y | F58: 39.5
C59: 88 | D59: 08DPR1833F | F59: 35.11764706
C60: 89 | D60: 08DPR0991O | F60: 41.45454545
C61: 90 | D61: 08DPR0903D | F61: 32
C62: 91 | D62: 08DPR0988A | F62: 33.55555556
C63: 91 | D63: 08DPR0999G | F63: 36.95
C64: 94 | D64: 08DPR1308L | F64: 49
C65: 130 | D65: 08DPR1634G | E65: 33.80952381 | F65: 76.5 | G65: 126.2676056
C66: 96 | D66: 08DPR2677L | E66: 25.83333333 | F66: 50.33333333 | G66: 94.83870968
C67: 136 | D67: 08DPR1690Z | E67: 37.57575758 | F67: 67 | G67: 78.30645161
C68: 113 | D68: 08DPR0361Z | E68: 20 | F68: 34.16666667 | G68: 70.83333333
C69: 153 | D69: 08DPR0384K | E69: 26.66666667 | F69: 45 | G69: 68.75
C70: 32 | D70: 08DPR2176R | E70: 35.33333333 | F70: 57 | G70: 61.32075472
C71: 130 | D71: 08DPR0478Z | E71: 31.66666667 | F71: 51.05555556 | G71: 61.22807018
C72: 139 | D72: 08DPR0258N | E72: 31.66666667 | F72: 50.83333333 | G72: 60.52631579
C73: 87 | D73: 08DPR0240O | E73: 30 | F73: 47.875 | G73: 59.58333333
C74: 36 | D74: 08DPR0602H | E74: 36 | F74: 57.05263158 | G74: 58.47953216
C75: 8 | D75: 08DPR0321Z | E75: 26.19047619 | F75: 40.71428571 | G75: 55.45454545
C76: 142 | D76: 08DPR1021I | E76: 30.83333333 | F76: 47.66666667 | G76: 54.59459459
C77: 123 | D77: 08DPR0945C | E77: 34.28571429 | F77: 53 | G77: 54.58333333
C78: 6 | D78: 08DPR0088J | E78: 31.9047619 | F78: 49.15217391 | G78: 54.05905256
C79: 138 | D79: 08DPR0522W | E79: 35 | F79: 53 | G79: 51.42857143
C80: 116 | D80: 08DPR0733Z | E80: 29.04761905 | F80: 43.75 | G80: 50.6147541
C81: 111 | D81: 08DPR0438Y | E81: 28.33333333 | F81: 42.5625 | G81: 50.22058824
C82: 154 | D82: 08DPR0140P | E82: 35 | F82: 52.5 | G82: 50
C83: 4 | D83: 08DPR1804K | E83: 31.04166667 | F83: 45.88888889 | G83: 47.82997763
C84: 75 | D84: 08DPR2028I | E84: 26.66666667 | F84: 39 | G84: 46.25
C85: 130 | D85: 08DPR1649I | E85: 27.94117647 | F85: 40.7 | G85: 45.66315789
C86: 76 | D86: 08DPR1685N | E86: 29.16666667 | F86: 42.2 | G86: 44.68571429
C87: 87 | D87: 08DPR0318L | E87: 35 | F87: 50.45454545 | G87: 44.15584416
C88: 125 | D88: 08DPR2147W | E88: 28.33333333 | F88: 40.6 | G88: 43.29411765
C89: 35 | D89: 08DPR0487G | E89: 25 | F89: 35.66666667 | G89: 42.66666667
C90: 96 | D90: 08DPR2121O | E90: 26.66666667 | F90: 38 | G90: 42.5
C91: 135 | D91: 08DPR1026D | E91: 40 | F91: 56.66666667 | G91: 41.66666667
C92: 160 | D92: 08DPR1164F | E92: 36.66666667 | F92: 51.7 | G92: 41
C93: 82 | D93: 08DPR2469E | E93: 33.51851852 | F93: 47.22222222 | G93: 40.8839779
C94: 1 | D94: 08DPR0049H | E94: 38.86904762 | F94: 54.625 | G94: 40.53598775
C95: 132 | D95: 08DPR0858H | E95: 30.43209877 | F95: 42.73913043 | G95: 40.44095599
C96: 108 | D96: 08DPR0184M | E96: 37.40740741 | F96: 52.47058824 | G96: 40.26790914
C97: 110 | D97: 08DPR0883G | E97: 25 | F97: 35 | G97: 40
C98: 141 | D98: 08DPR0221Z | E98: 34.16666667 | F98: 47.66666667 | G98: 39.51219512
C99: 119 | D99: 08DPR1539C | E99: 30 | F99: 41.66666667 | G99: 38.88888889
C100: 151 | D100: 08DPR1429X | E100: 33.7037037 | F100: 46.64285714 | G100: 38.39089482
C101: 126 | D101: 08DPR2372T | E101: 31.42857143 | F101: 43.4375 | G101: 38.21022727
C102: 24 | D102: 08DPR0367U | E102: 32.97619048 | F102: 45.55555556 | G102: 38.14681107
C103: 135 | D103: 08DPR0419J | E103: 31.25 | F103: 43.125 | G103: 38
C104: 173 | D104: 08DPR2619V | E104: 34.60784314 | F104: 47.70689655 | G104: 37.84995604
C105: 119 | D105: 08DPR0729N | E105: 37.05882353 | F105: 50.89473684 | G105: 37.33500418
C106: 1 | D106: 08DPR2581Z | E106: 42.40740741 | F106: 57.9 | G106: 36.53275109
C107: 35 | D107: 08DPR0213R | E107: 39.58333333 | F107: 53.75 | G107: 35.78947368
C108: 106 | D108: 08DPR2102Z | E108: 30.83333333 | F108: 41.83333333 | G108: 35.67567568
C109: 107 | D109: 08DPR0398N | E109: 36.9047619 | F109: 50.0625 | G109: 35.65322581
C110: 49 | D110: 08DPR0808Z | E110: 41.91666667 | F110: 56.85714286 | G110: 35.64328316
C111: 133 | D111: 08DPR1286Q | E111: 32.83333333 | F111: 44.53333333 | G111: 35.63451777
C112: 96 | D112: 08DPR2304W | E112: 32.69230769 | F112: 44.25 | G112: 35.35294118
C113: 81 | D113: 08DPR2598Z | E113: 33.64583333 | F113: 45.49206349 | G113: 35.20860976
C114: 75 | D114: 08DPR2249T | E114: 33.33333333 | F114: 45 | G114: 35
C115: 72 | D115: 08DPR2374R | E115: 37.39130435 | F115: 50.45833333 | G115: 34.94670543
C116: 129 | D116: 08DPR2560M | E116: 35.86805556 | F116: 48.37735849 | G116: 34.87588814
C117: 164 | D117: 08DPR2638J | E117: 35.87878788 | F117: 48.08333333 | G117: 34.0160473
C118: 56 | D118: 08DPR1382T | E118: 31.47058824 | F118: 42.12121212 | G118: 33.84310394
C119: 94 | D119: 08DPR0713M | E119: 40 | F119: 53.42857143 | G119: 33.57142857
C120: 11 | D120: 08DPR1045S | E120: 50.75757576 | F120: 67.78431373 | G120: 33.5452151
C121: 121 | D121: 08DPR0092W | E121: 38.78787879 | F121: 51.77777778 | G121: 33.48958333
C122: 131 | D122: 08DPR0526S | E122: 36.2962963 | F122: 48.40540541 | G122: 33.36183122
C123: 124 | D123: 08DPR0706C | E123: 38.1372549 | F123: 50.78787879 | G123: 33.17130171
C124: 72 | D124: 08DPR1141V | E124: 40.31609195 | F124: 53.66666667 | G124: 33.1147541
C125: 29 | D125: 08DPR0083O | E125: 41.80555556 | F125: 55.5 | G125: 32.75747508
C126: 142 | D126: 08DPR0899H | E126: 32.84722222 | F126: 43.58823529 | G126: 32.69991295
C127: 169 | D127: 08DPR2250I | E127: 39.47712418 | F127: 52.28205128 | G127: 32.43632196
C128: 82 | D128: 08DPR2378N | E128: 36.26984127 | F128: 47.84615385 | G128: 31.91718566
C129: 21 | D129: 08DPR1170Q | E129: 37.91666667 | F129: 50 | G129: 31.86813187
C130: 68 | D130: 08DPR0780K | E130: 38.20987654 | F130: 50.17142857 | G130: 31.30486961
C131: 133 | D131: 08DPR1870J | E131: 37.96610169 | F131: 49.74545455 | G131: 31.02597403
C132: 129 | D132: 08DPR2025L | E132: 42.10691824 | F132: 55.16666667 | G132: 31.01568335
C133: 134 | D133: 08DPR0527R | E133: 31.48148148 | F133: 41.1 | G133: 30.55294118
C134: 44 | D134: 08DPR0289G | E134: 42.12121212 | F134: 54.88235294 | G134: 30.2962336
C135: 121 | D135: 08DPR2324J | E135: 31.875 | F135: 41.5 | G135: 30.19607843
C136: 8 | D136: 08DPR1454W | E136: 40.83333333 | F136: 53.15384615 | G136: 30.17268446
C137: 163 | D137: 08DPR2596A | E137: 34.54248366 | F137: 44.92 | G137: 30.04276254
C138: 53 | D138: 08DPR0749A | E138: 33.46153846 | F138: 43.41666667 | G138: 29.75095785
C139: 13 | D139: 08DPR2278O | E139: 41.78571429 | F139: 54.21428571 | G139: 29.74358974
C140: 34 | D140: 08DPR1672J | E140: 43.97435897 | F140: 56.94736842 | G140: 29.50130428
C141: 23 | D141: 08DPR2364K | E141: 38.33333333 | F141: 49.63636364 | G141: 29.48616601
C142: 75 | D142: 08DPR1160J | E142: 32.08333333 | F142: 41.5 | G142: 29.35064935
C143: 80 | D143: 08DPR2362M | E143: 40 | F143: 51.6 | G143: 29
C144: 163 | D144: 08DPR2672Q | E144: 43.03921569 | F144: 55.48484848 | G144: 28.91696003
C145: 127 | D145: 08DPR1258U | E145: 56.75925926 | F145: 73.125 | G145: 28.83360522
C146: 84 | D146: 08DPR2335P | E146: 34.13194444 | F146: 43.95652174 | G146: 28.78411252
C147: 167 | D147: 08DPR2664H | E147: 38.95424837 | F147: 50.16071429 | G147: 28.76827661
C148: 25 | D148: 08DPR2449R | E148: 38.14814815 | F148: 49.07692308 | G148: 28.64824496
C149: 158 | D149: 08DPR2577M | E149: 35 | F149: 45 | G149: 28.57142857
C150: 37 | D150: 08DPR0072I | E150: 31.08695652 | F150: 39.95238095 | G150: 28.51814852
C151: 123 | D151: 08DPR1333K | E151: 33.57142857 | F151: 43.14285714 | G151: 28.5106383
C152: 173 | D152: 08DPR2631Q | E152: 39.44444444 | F152: 50.65853659 | G152: 28.43009275
C153: 94 | D153: 08DPR0727P | E153: 34.16666667 | F153: 43.875 | G153: 28.41463415
C154: 73 | D154: 08DPR2455B | E154: 42.90780142 | F154: 55.08080808 | G154: 28.37014776
C155: 127 | D155: 08DPR1514U | E155: 58.00505051 | F155: 74.37878788 | G155: 28.22812364
C156: 46 | D156: 08DPR0736X | E156: 36.66666667 | F156: 47 | G156: 28.18181818
C157: 14 | D157: 08DPR2486V | E157: 48.56060606 | F157: 62.23529412 | G157: 28.16004405
C158: 81 | D158: 08DPR2610D | E158: 40.1369863 | F158: 51.4 | G158: 28.06143345
C159: 21 | D159: 08DPR0674A | E159: 40.11111111 | F159: 51.33333333 | G159: 27.97783934
C160: 46 | D160: 08DPR1918M | E160: 34.80392157 | F160: 44.52631579 | G160: 27.93476649
C161: 62 | D161: 08DPR2284Z | E161: 35.29411765 | F161: 45.13793103 | G161: 27.8908046
C162: 121 | D162: 08DPR0944D | E162: 37.22222222 | F162: 47.6 | G162: 27.88059701
C163: 146 | D163: 08DPR1178I | E163: 34.6875 | F163: 44.35 | G163: 27.85585586
C164: 8 | D164: 08DPR2160Q | E164: 39.29166667 | F164: 50.22222222 | G164: 27.81901732
C165: 92 | D165: 08DPR2201Z | E165: 39.37984496 | F165: 50.32 | G165: 27.78110236
C166: 125 | D166: 08DPR0698K | E166: 49.55782313 | F166: 63.31818182 | G166: 27.76626942
C167: 129 | D167: 08DPR1229Z | E167: 51.09375 | F167: 65.15789474 | G167: 27.52615484
C168: 58 | D168: 08DPR1137I | E168: 38.11111111 | F168: 48.6 | G168: 27.52186589
C169: 119 | D169: 08DPR1534H | E169: 40 | F169: 51 | G169: 27.5
C170: 76 | D170: 08DPR1963Z | E170: 31.2962963 | F170: 39.86666667 | G170: 27.38461538
C171: 19 | D171: 08DPR0085M | E171: 39.66666667 | F171: 50.5 | G171: 27.31092437
C172: 49 | D172: 08DPR0329R | E172: 51.59722222 | F172: 65.6875 | G172: 27.30820996
C173: 170 | D173: 08DPR2608P | E173: 48.33333333 | F173: 61.5 | G173: 27.24137931
C174: 148 | D174: 08DPR0551R | E174: 41.66666667 | F174: 53 | G174: 27.2
C175: 84 | D175: 08DPR2611C | E175: 32.53968254 | F175: 41.33333333 | G175: 27.02439024
C176: 74 | D176: 08DPR2528D | E176: 38.16939891 | F176: 48.475 | G176: 26.99964209
C177: 128 | D177: 08DPR0652P | E177: 46.94444444 | F177: 59.54545455 | G177: 26.84238838
C178: 86 | D178: 08DPR2253F | E178: 34.375 | F178: 43.6 | G178: 26.83636364
C179: 99 | D179: 08DPR2513B | E179: 33.29710145 | F179: 42.11538462 | G179: 26.48363606
C180: 132 | D180: 08DPR1013Z | E180: 39.77272727 | F180: 50.30434783 | G180: 26.47950311
C181: 125 | D181: 08DPR1856Q | E181: 33.54166667 | F181: 42.42105263 | G181: 26.4727035
C182: 67 | D182: 08DPR2331T | E182: 41.54589372 | F182: 52.51470588 | G182: 26.40167579
C183: 12 | D183: 08DPR0422X | E183: 45.47619048 | F183: 57.46341463 | G183: 26.35934108
C184: 101 | D184: 08DPR1043U | E184: 43.75 | F184: 55.26315789 | G184: 26.31578947
C185: 95 | D185: 08DPR2177Q | E185: 31.66666667 | F185: 40 | G185: 26.31578947
C186: 115 | D186: 08DPR0187J | E186: 33.16666667 | F186: 41.89285714 | G186: 26.31012204
C187: 86 | D187: 08DPR1814R | E187: 38.17708333 | F187: 48.14285714 | G187: 26.10407328
C188: 110 | D188: 08DPR2182B | E188: 35.15625 | F188: 44.33333333 | G188: 26.1037037
C189: 135 | D189: 08DPR0802F | E189: 38.63636364 | F189: 48.71428571 | G189: 26.08403361
C190: 78 | D190: 08DPR2629B | E190: 41.66666667 | F190: 52.5 | G190: 26
C191: 136 | D191: 08DPR2083B | E191: 22.22222222 | F191: 28 | G191: 26
C192: 74 | D192: 08DPR2398A | E192: 38.90909091 | F192: 48.96551724 | G192: 25.84595553
C193: 131 | D193: 08DPR0039A | E193: 32.5 | F193: 40.86666667 | G193: 25.74358974
C194: 138 | D194: 08DPR0259M | E194: 34.44444444 | F194: 43.28571429 | G194: 25.66820276
C195: 106 | D195: 08DPR0148H | E195: 44.16666667 | F195: 55.5 | G195: 25.66037736
C196: 129 | D196: 08DPR2107V | E196: 34.02777778 | F196: 42.72093023 | G196: 25.54722354
C197: 53 | D197: 08DPR0269T | E197: 35.07246377 | F197: 44 | G197: 25.45454545
C198: 40 | D198: 08DPR1896R | E198: 38.07692308 | F198: 47.67741935 | G198: 25.21342457
C199: 135 | D199: 08DPR0426T | E199: 40.22727273 | F199: 50.35714286 | G199: 25.18159806
C200: 28 | D200: 08DPR2552D | E200: 47.01754386 | F200: 58.85454545 | G200: 25.17571235
... 938 more rows

Sheet PROGRESO ESCUELA
L2: ZONA | M2: CCT_ORIGEN4 | N2: 2018 | O2: 2019
L3: 96 | M3: 08EPR0024Y | N3: 48.47222222 | O3: 54.52
G4: ZONA | H4: PROM 2018 | I4: PROM 2019 | L4: 96 | M4: 08EPR0068V | N4: 42.29166667 | O4: 47.6835443
G5: 1 | H5: 46.85130958 | I5: 51.41105928 | L5: 96 | M5: 08EPR0071I | N5: 46.77419355 | O5: 53.78846154
G6: 10 | H6: 34.30555556 | I6: 44.1 | L6: 96 | M6: 08EPR0356N | N6: 40.8 | O6: 46.5
G7: 109 | H7: 43.00847182 | I7: 46.84796534 | L7: 96 | M7: 08EPR0357M | N7: 38.94736842 | O7: 43
G8: 11 | H8: 35.21343355 | I8: 38.95137265 | L8: 96 | M8: 08EPR0358L | N8: 36.80555556 | O8: 46.59459459
G9: 12 | H9: 33.9200607 | I9: 39.7605116 | L9: 96 | M9: 08EPR0679V | N9: 35.04273504 | O9: 42.07894737
G10: 13 | H10: 39.27721661 | I10: 43.29265923 | L10: 96 | M10: 08EPR0818F | N10: 37.36111111 | O10: 51.35294118
G11: 14 | H11: 37.72401387 | I11: 44.37158295
G12: 15 | H12: 34.29214171 | I12: 41.17466517
G13: 16 | H13: 40.5629878 | I13: 46.16059947
G14: 17 | H14: 46.09528331 | I14: 56.1110024
G15: 18 | H15: 44.94725201 | I15: 44.29333333
G16: 19 | H16: 48.2719444 | I16: 54.11667024
G17: 2 | H17: 41.43305105 | I17: 47.38282023
G18: 20 | H18: 41.1996777 | I18: 44.73738348
G19: 21 | H19: 39.18780155 | I19: 41.8716411
G20: 24 | H20: 34.1301208 | I20: 42.03700707
G21: 25 | H21: 41.92184066 | I21: 46.54945184
G22: 26 | H22: 48.66134314 | I22: 51.74212327
G23: 27 | H23: 39.21036674 | I23: 41.93109499
G24: 28 | H24: 40.11100268 | I24: 45.46864652
G25: 3 | H25: 42.2910701 | I25: 46.87734203
G26: 31 | H26: 50.17107721 | I26: 56.55695396
G27: 32 | H27: 39.06765703 | I27: 46.21954063
G28: 34 | H28: 45.44946291 | I28: 48.54701674
G29: 35 | H29: 40.69907407 | I29: 39.05665025
G30: 36 | H30: 35.48380647 | I30: 42.43316319
G31: 39 | H31: 42.45869362 | I31: 48.14070172
G32: 4 | H32: 43.99399126 | I32: 50.21236453
G33: 41 | H33: 34.2523086 | I33: 41.53266968
G34: 43 | H34: 50.73318609 | I34: 53.6466965
G35: 46 | H35: 45.25942585 | I35: 51.05580002
G36: 47 | H36: 33.42970522 | I36: 35.21949686
G37: 5 | H37: 44.54547191 | I37: 50.76665386
G38: 6 | H38: 38.03923515 | I38: 44.91985142
G39: 7 | H39: 38.39584181 | I39: 37.29634615
G40: 8 | H40: 38.22711245 | I40: 39.85990681
G41: 87 | H41: 43.59726656 | I41: 50.82147769
G42: 88 | H42: 45.50820198 | I42: 50.3266557
G43: 89 | H43: 45.88325295 | I43: 52.0586304
G44: 9 | H44: 43.09483767 | I44: 48.58178777
G45: 90 | H45: 43.75888908 | I45: 47.4965239
G46: 91 | H46: 44.42917551 | I46: 49.62517074
G47: 92 | H47: 38.97592247 | I47: 44.33079703
G48: 93 | H48: 43.66892658 | I48: 54.45523142
G49: 96 | H49: 40.81185657 | I49: 48.18981112

Sheet EVOLUCIÓN DEL DESEMPEÑO

Sheet ESCUELAS CON PROGRAMA REFORMA
E1: Clave CCT | F1: 2018 | G1: 2019 | H1: CRECIMIENTO
E2: 08DPR1250B | G2: 57
E3: 08DPR1503O | G3: 53
E4: 08DPR0966P | G4: 52
E5: 08DPB0549B | G5: 50
E6: 08EPR0562W | G6: 47
E7: 08DPR1644N | G7: 42
E8: 08EPR0035D | G8: 40
E9: 08EPR0101M | G9: 40
E10: 08DPR1303Q | G10: 38
E11: 08DPR0170J | G11: 37
E12: 08DPR0560Z | G12: 37
E13: 08ETV0003K | G13: 34.5
E14: 08EPR0012T | G14: 33
E15: 08ETV0114P | G15: 33
E16: 08DPB0583I | G16: 27
E17: 08DTV0021A | G17: 27
E18: 08DPB0733Z | G18: 25.5
E19: 08ETV0152S | G19: 0
E20: 08DPR1685N | F20: 29.1667 | G20: 42.2 | H20: =((G20-F20)*100)/F20 -> 44.68554893
E21: 08DPR0487G | F21: 25 | G21: 35.6667 | H21: 42.6668
E22: 08EPR0318K | F22: 28.3333 | G22: 40.3333 | H22: 42.352991
E23: 08DPR1539C | F23: 30 | G23: 41.6667 | H23: 38.889
E24: 08DPR2372T | F24: 31.4286 | G24: 43.4375 | H24: 38.21010163
E25: 08DPR0729N | F25: 37.0588 | G25: 50.8947 | H25: 37.33499196
E26: 08DPR2560M | F26: 35.8681 | G26: 48.3774 | H26: 34.87583675
E27: 08DPB0710O | F27: 29.1667 | G27: 38.5714 | H27: 32.24464886
E28: 08EPR0550R | F28: 34.1667 | G28: 44.375 | H28: 29.87792207
E29: 08EPR0814J | F29: 37.5 | G29: 48.2727 | H29: 28.7272
E30: 08DPR2455B | F30: 42.9078 | G30: 55.0808 | H30: 28.37013317
E31: 08DPR1534H | F31: 40 | G31: 51 | H31: 27.5
E32: 08EPR0013S | F32: 42.9545 | G32: 54.7234 | H32: 27.39852635
E33: 08EPR0314O | F33: 25.5556 | G33: 32.1667 | H33: 25.86947675
E34: 08DPR1130P | F34: 30.6667 | G34: 38.3125 | H34: =((G34-F34)*100)/F34 -> 24.93192942
E35: 08DPB0536Y | F35: 29.1667 | G35: 36.2 | H35: 24.11414387
E36: 08DPR0625S | F36: 34.2424 | G36: 41.9 | H36: 22.36291849
E37: 08EPR0385I | F37: 27.381 | G37: 33.5 | H37: 22.34761331
E38: 08EPR0407D | F38: 31 | G38: 37.7143 | H38: 21.65903226
E39: 08DPB0576Z | F39: 32.1875 | G39: 39.1111 | H39: 21.51021359
E40: 08EPR0680K | F40: 44.1667 | G40: 53 | H40: 19.99990943
E41: 08EPR0057P | F41: 43.9855 | G41: 52.6591 | H41: 19.71922565
E42: 08DPR1797R | F42: 32.3333 | G42: 38.5714 | H42: 19.29311267
E43: 08EPR0405F | F43: 42.5 | G43: 50.6 | H43: 19.05882353
E44: 08DPR1172O | F44: 48.2394 | G44: 57.3846 | H44: 18.95794724
E45: 08DPR1905I | F45: 36.131 | G45: 42.7826 | H45: 18.4096759
E46: 08DPR2388U | F46: 47.3333 | G46: 55.9672 | H46: 18.24064665
E47: 08EPR0500J | F47: 41.3021 | G47: 48.6316 | H47: 17.74607102
E48: 08DPR0500K | F48: 35.2273 | G48: 41.3333 | H48: 17.33314787
E49: 08DPR1032O | F49: 36.6667 | G49: 43 | H49: 17.27262066
E50: 08EPR0337Z | F50: 37.5 | G50: 43.9167 | H50: 17.1112
E51: 08DPR0260B | F51: 33.8889 | G51: 39.625 | H51: 16.92619117
E52: 08DPR0476A | F52: 30.8333 | G52: 36 | H52: 16.75688298
E53: 08DPR1559Q | F53: 46.5278 | G53: 54.0455 | H53: 16.15743706
E54: 08DPR0277B | F54: 39.3548 | G54: 45.6842 | H54: 16.08291746
E55: 08EPR0703E | F55: 40.3509 | G55: 46.7143 | H55: 15.7701563
E56: 08DPR1306N | F56: 42.6852 | G56: 49.3684 | H56: 15.65694901
E57: 08DPR0482L | F57: 33.1333 | G57: 38.2308 | H57: 15.38482433
E58: 08EPR0624S | F58: 34.1228 | G58: 39.3243 | H58: 15.24347357
E59: 08EPR0131G | F59: 54.4074 | G59: 62.6 | H59: 15.05787816
E60: 08DPR2410F | F60: 45.7426 | G60: 52.5 | H60: 14.77266268
E61: 08DPR1840P | F61: 31.1111 | G61: 35.6667 | H61: 14.64300523
E62: 08DPR1530L | F62: 45.8333 | G62: 52.5 | H62: 14.54553785
E63: 08DPR0660Y | F63: 54.4608 | G63: 62.2727 | H63: 14.34407868
E64: 08DPR0941G | F64: 41.2222 | G64: 47.0625 | H64: 14.1678513
E65: 08EPR0501I | F65: 37.5556 | G65: 42.8333 | H65: 14.05303071
E66: 08EPR0207F | F66: 35.6863 | G66: 40.5333 | H66: =((G66-F66)*100)/F66 -> 13.58224305
E67: 08DPR0880J | F67: 40.7197 | G67: 46.2045 | H67: 13.46964737
E68: 08DPR2245X | F68: 48.662 | G68: 54.7604 | H68: 12.53216062
E69: 08DPR2246W | F69: 49.0417 | G69: 54.5778 | H69: 11.28855647
E70: 08EPR0621V | F70: 41.2745 | G70: 45.8333 | H70: 11.04507626
E71: 08EPR0092V | F71: 42.029 | G71: 46.6364 | H71: 10.9624307
E72: Total | F72: 38.212 | G72: 42.1518 | H72: 10.3103737
E73: 08EPR0470F | F73: 34.1667 | G73: 37.5 | H73: 9.755990482
E74: 08EPR0112S | F74: 45.25 | G74: 49.6512 | H74: 9.72640884
E75: 08EPR0098P | F75: 47.8968 | G75: 52.4222 | H75: 9.448230362
E76: 08DPR0708A | F76: 38.2292 | G76: 41.8 | H76: 9.340504117
E77: 08DPR0717I | F77: 38.8426 | G77: 42.0625 | H77: 8.289609861
E78: 08DPR0452R | F78: 47.1429 | G78: 50.7778 | H78: 7.71038693
E79: 08DPR1147P | F79: 26.6667 | G79: 28.6667 | H79: 7.499990625
E80: 08DPB0182N | F80: 30.8333 | G80: 33 | H80: 7.027142732
E81: 08EPR0857H | F81: 40.9069 | G81: 43.5294 | H81: 6.410898895
E82: 08EPR0355O | F82: 35 | G82: 37.1875 | H82: 6.25
E83: 08EPR0137A | F83: 51.0417 | G83: 53.0536 | H83: 3.941679058
E84: 08DPR0062B | F84: 38.8889 | G84: 40.2727 | H84: 3.55834184
E85: 08DPR0888B | F85: 39.2544 | G85: 40.2778 | H85: 2.607096275
E86: 08EPR0531C | F86: 46.5315 | G86: 47.6857 | H86: 2.480470219
E87: 08DPR0976W | F87: 34.6667 | G87: 35.3 | H87: 1.826825167
E88: 08DPB0251T | F88: 27.6667 | G88: 27.6667 | H88: 0
E89: 08DPR0151V | F89: 43.869 | G89: 43.75 | H89: -0.2712621669
E90: 08EPR0328R | F90: 45.4023 | G90: 45.2581 | H90: -0.3176050553
E91: 08DPB0558J | F91: 37.9167 | G91: 37.25 | H91: -1.758328125
E92: 08EPR0403H | F92: 38.9815 | G92: 38.125 | H92: -2.197196106
E93: 08DPB0562W | F93: 35.303 | G93: 34.375 | H93: -2.628671784
E94: 08DPR2544V | F94: 45.6548 | G94: 43.6 | H94: -4.500731577
E95: 08EPR0157O | F95: 47.5661 | G95: 44.4754 | H95: -6.497694787
E96: 08DPR0524U | F96: 34.3333 | G96: 29.5455 | H96: -13.94506208
E97: 08DPR1807H | F97: 42.3611 | G97: 36.3636 | H97: -14.1580365
E98: 08EPR0387G | F98: 56.6667 | G98: 47.8 | H98: =((G98-F98)*100)/F98 -> -15.64710844
E99: 08DPR0567S | F99: 42.1111 | G99: 34.2857 | H99: -18.58274897
E100: 08DPR0532C | F100: 46 | G100: 35.75 | H100: -22.2826087
E101: 08DPB0551Q | F101: 39.1667 | G101: 30 | H101: -23.40432051
E102: 08DPR0246I | F102: 41.6667 | G102: 31.5714 | H102: -24.22870062
E103: 08DPB0564U | F103: 31.6667 | G103: 17 | H103: -46.31584598
E104: 08ETV0163Y | F104: 22.5
E105: 08EPR0699I | F105: 23.3333
E106: 08DPR2467G | F106: 27.2222
E107: 08DPB0570E | F107: 29.4444
E108: 08DPB0559I | F108: 31.6667
E109: 08DPB0567R | F109: 31.6667
E110: 08DPR1444P | F110: 35
E111: 08DPR1538D | F111: 35
E112: 08EPR0039Z | F112: 35
E113: 08DPR0174F | F113: 40
E114: 08DPR1153Z | F114: 61.6667

Sheet ESCUELAS CON PROGRAMAS

Sheet PARÁMETROS
A1: ESCUELAS INDÍGENAS

Sheet ESCUELAS INDÍGENAS
C2: MODALIDAD | D2: TIPODEORGANIZACIÓN | E2: 2018 | F2: 2019
C3: PRIMARIA INDIGENA FEDERAL TRANSFERIDO | D3: COMPLETA | E3: 31.44854882 | F3: 37.42144655
C4: PRIMARIA INDIGENA FEDERAL TRANSFERIDO | D4: MULTIGRADO | E4: 31.92865223 | F4: 34.9692672
C5: PRIMARIA INDIGENA FEDERAL TRANSFERIDO | D5: UNITARIA | E5: 31.19047619 | F5: 38.41666667

Sheet PROGRESO UNIDADES
D3: 2017 | H3: Estadísticos
F4: Oraciones | G4: Lectura | H4: Aritmetica | I4: Geometría | J4: Razonamiento | K4: Total de Aciertos | M4: Oraciones % | N4: Lectura % | O4: Aritmetica % | P4: Geometría % | Q4: Razonamiento % | R4: Calificación Final
D5: N | E5: Válidos | F5: 53680 | G5: 53680 | H5: 53680 | I5: 53680 | J5: 53680 | K5: 53680 | M5: 53680 | N5: 53680 | O5: 53680 | P5: 53680 | Q5: 53680 | R5: 53680
E6: Perdidos | F6: 0 | G6: 0 | H6: 0 | I6: 0 | J6: 0 | K6: 0 | M6: 0 | N6: 0 | O6: 0 | P6: 0 | Q6: 0 | R6: 0 | T6: Oraciones % | U6: Lectura % | V6: Aritmetica % | W6: Geometría % | X6: Razonamiento % | Y6: Calificación Final
D7: Media | F7: 5.96 | G7: 4.81 | H7: 3.53 | I7: 4.55 | J7: 4.59 | K7: 23.43 | M7: 0.496327 | N7: 0.400804 | O7: 0.293784 | P7: 0.379389 | Q7: 0.382368 | R7: 39.053 | S7: IDANIS_17 | T7: 49.6 | U7: 40.08 | V7: 29.38 | W7: 37.94 | X7: 38.24 | Y7: 39.053
D8: Mediana | F8: 6 | G8: 5 | H8: 3 | I8: 4 | J8: 4 | K8: 23 | M8: 0.5 | N8: 0.416667 | O8: 0.25 | P8: 0.333333 | Q8: 0.333333 | R8: 38.33 | S8: IDANIS_18 | T8: 60.7804 | U8: 42.9376 | V8: 30.62827 | W8: 30.2311 | X8: 48.357 | Y8: 43.0894
D9: Moda | F9: 7 | G9: 5 | H9: 3 | I9: 4 | J9: 3 | K9: 21 | M9: 0.5833 | N9: 0.4167 | O9: 0.25 | P9: 0.3333 | Q9: 0.25 | R9: 35 | S9: IDANIS_19 | T9: 67.8211 | U9: 48.4209 | V9: 37.8602 | W9: 39.6014 | X9: 38.6669 | Y9: 45.8619
D10: Desv. típ. | F10: 1.808 | G10: 1.995 | H10: 1.847 | I10: 1.918 | J10: 2.868 | K10: 6.979 | M10: 0.1506857 | N10: 0.1662116 | O10: 0.153905 | P10: 0.1597973 | Q10: 0.2389821 | R10: 11.6312
D11: Varianza | F11: 3.27 | G11: 3.978 | H11: 3.411 | I11: 3.677 | J11: 8.224 | K11: 48.702 | M11: 227.062 | N11: 276.263 | O11: 236.868 | P11: 255.352 | Q11: 571.124 | R11: 135.284
D12: Asimetría | F12: -0.368 | G12: 0.065 | H12: 0.441 | I12: 0.369 | J12: 0.746 | K12: 0.523 | M12: -0.368 | N12: 0.065 | O12: 0.441 | P12: 0.369 | Q12: 0.746 | R12: 0.523
D13: Error típ. de asimetría | F13: 0.011 | G13: 0.011 | H13: 0.011 | I13: 0.011 | J13: 0.011 | K13: 0.011 | M13: 0.011 | N13: 0.011 | O13: 0.011 | P13: 0.011 | Q13: 0.011 | R13: 0.011
D14: Mínimo | F14: 0 | G14: 0 | H14: 0 | I14: 0 | J14: 0 | K14: 0 | M14: 0 | N14: 0 | O14: 0 | P14: 0 | Q14: 0 | R14: 0
D15: Máximo | F15: 11 | G15: 11 | H15: 11 | I15: 12 | J15: 12 | K15: 51 | M15: 0.9167 | N15: 0.9167 | O15: 0.9167 | P15: 1 | Q15: 1 | R15: 85
D17: 2018
H18: Estadísticos
F19: ORACIONES | G19: COMPRENSIÓN LECTORA | H19: MATEMÁTICAS | I19: GEOMETRÍA | J19: RAZONAMIENTO | K19: TOTAL | M19: ORACIONES PORCENTAJE | N19: CL PORCENTAJE | O19: MATEMÁTICAS PORCENTAJE | P19: GEO_PORCEN | Q19: RAZONAMIENTO PORCENTAJE | R19: TOTAL PORCENTAJE
D20: N | E20: Válidos | F20: 55138 | G20: 55138 | H20: 55138 | I20: 55138 | J20: 55138 | K20: 55138 | M20: 55138 | N20: 55138 | O20: 55138 | P20: 55138 | Q20: 55138 | R20: 55138
E21: Perdidos | F21: 0 | G21: 0 | H21: 0 | I21: 0 | J21: 0 | K21: 0 | M21: 0 | N21: 0 | O21: 0 | P21: 0 | Q21: 0 | R21: 0
D22: Media | F22: 7.9014 | G22: 5.1525 | H22: 3.3691 | I22: 3.6277 | J22: 5.8028 | K22: 25.85 | M22: 60.7804 | N22: 42.9376 | O22: 30.62827 | P22: 30.2311 | Q22: 48.357 | R22: 43.0894
D23: Mediana | F23: 8 | G23: 5 | H23: 3 | I23: 4 | J23: 5 | K23: 25 | M23: 61.5385 | N23: 41.6667 | O23: 27.27273 | P23: 33.3333 | Q23: 41.6667 | R23: 41.6667
D24: Moda | F24: 8 | G24: 4 | H24: 3 | I24: 3 | J24: 3 | K24: 22 | M24: 61.54 | N24: 33.33 | O24: 27.273 | P24: 25 | Q24: 25 | R24: 36.67
C25: ORACIONES | D25: LECTURA | E25: MATEMÁTICAS | F25: GEOMETRÍA | G25: RAZONAMIENTO | H25: PORCENTAJE PROMEDIO | I25: 1.69088 | J25: 3.18808 | K25: 7.817 | M25: 17.61339 | N25: 19.25164 | O25: 15.280243 | P25: 14.09067 | Q25: 26.56732 | R25: 13.02794
B26: IDANIS_18 | C26: 59.2431 | D26: 41.3916 | E26: 29.9075 | F26: 29.5471 | G26: 44.9906 | H26: 41.5049 | I26: 2.859 | J26: 10.164 | K26: 61.102 | M26: 310.232 | N26: 370.625 | O26: 233.486 | P26: 198.547 | Q26: 705.822 | R26: 169.727
B27: IDANIS_19 | C27: 68.0992 | D27: 48.5885 | E27: 39.1085 | F27: 38.6661 | G27: 38.8614 | H27: 46.6564 | I27: 0.355 | J27: 0.18 | K27: 0.33 | M27: -0.444 | N27: 0.226 | O27: 0.411 | P27: 0.355 | Q27: 0.18 | R27: 0.33
D28: Error típ. de asimetría | F28: 0.01 | G28: 0.01 | H28: 0.01 | I28: 0.01 | J28: 0.01 | K28: 0.01 | M28: 0.01 | N28: 0.01 | O28: 0.01 | P28: 0.01 | Q28: 0.01 | R28: 0.01
C29: ORACIONES | D29: LECTURA | E29: MATEMÁTICAS | F29: GEOMETRÍA | G29: RAZONAMIENTO | H29: PORCENTAJE PROMEDIO | I29: 0 | J29: 0 | K29: 0 | M29: 0 | N29: 0 | O29: 0 | P29: 0 | Q29: 0 | R29: 0
C30: =((C27-C26)*100)/C26 -> 14.94874509 | D30: =((D27-D26)*100)/D26 -> 17.38734429 | E30: 30.76485831 | F30: 30.86258888 | G30: -13.6232902 | H30: 12.41178752 | I30: 11 | J30: 12 | K30: 55 | M30: 100 | N30: 100 | O30: 90.909 | P30: 91.67 | Q30: 100 | R30: 91.67
D33: 2019
H34: Estadísticos
F35: ORACIONES_19 | G35: LECTURA_19 | H35: MATEMÁTICAS_19 | I35: GEOMETRÍA_19 | J35: RAZONAMIENTO_19 | K35: TOTAL_19 | M35: ORAC_PORCEN | N35: LECTURA_PORCEN | O35: MAT_PORCEN | P35: GEO_PORCEN | Q35: RAZ_PORCEN | R35: TOTAL_PORCEN
D36: N | E36: Válidos | F36: 1899 | G36: 1899 | H36: 1899 | I36: 1899 | J36: 1899 | K36: 1899 | M36: 1899 | N36: 1899 | O36: 1899 | P36: 1899 | Q36: 1899 | R36: 1899
E37: Perdidos | F37: 631 | G37: 631 | H37: 631 | I37: 631 | J37: 631 | K37: 631 | M37: 631 | N37: 631 | O37: 631 | P37: 631 | Q37: 631 | R37: 631
D38: Media | F38: 8.1385 | G38: 5.8105 | H38: 4.5432 | I38: 4.7522 | J38: 4.64 | K38: 27.52 | M38: 67.8211 | N38: 48.4209 | O38: 37.8602 | P38: 39.6014 | Q38: 38.6669 | R38: 45.8619
D39: Mediana | F39: 8.2941 | G39: 5.8444 | H39: 4.5385 | I39: 4.6591 | J39: 4.4 | K39: 27 | M39: 69.1176 | N39: 48.7037 | O39: 37.8205 | P39: 38.8258 | Q39: 36.6667 | R39: 45
D40: Moda | F40: 9 | G40: 5 | H40: 4 | I40: 4 | J40: 3 | K40: 22 | M40: 75 | N40: 41.67 | O40: 33.33 | P40: 33.33 | Q40: 25 | R40: 36.67
D41: Desv. típ. | F41: 1.58045 | G41: 1.34761 | H41: 0.9655 | I41: 1.1607 | J41: 1.56715 | K41: 9.113 | M41: 13.17046 | N41: 11.23005 | O41: 8.0458 | P41: 9.67252 | Q41: 13.05959 | R41: 15.18811
D42: Varianza | F42: 2.498 | G42: 1.816 | H42: 0.932 | I42: 1.347 | J42: 2.456 | K42: 83.044 | M42: 173.461 | N42: 126.114 | O42: 64.735 | P42: 93.558 | Q42: 170.553 | R42: 230.679
D43: Asimetría | F43: -1.015 | G43: -0.203 | H43: 0.145 | I43: 0.929 | J43: 0.645 | K43: 0.209 | M43: -1.015 | N43: -0.203 | O43: 0.145 | P43: 0.929 | Q43: 0.645 | R43: 0.209
D44: Error típ. de asimetría | F44: 0.056 | G44: 0.056 | H44: 0.056 | I44: 0.056 | J44: 0.056 | K44: 0.056 | M44: 0.056 | N44: 0.056 | O44: 0.056 | P44: 0.056 | Q44: 0.056 | R44: 0.056
D45: Mínimo | F45: 0 | G45: 0 | H45: 0 | I45: 0 | J45: 0 | K45: 0 | M45: 0 | N45: 0 | O45: 0 | P45: 0 | Q45: 0 | R45: 0
D46: Máximo | F46: 12 | G46: 11 | H46: 9 | I46: 12 | J46: 12 | K46: 55 | M46: 100 | N46: 91.67 | O46: 75 | P46: 100 | Q46: 100 | R46: 91.67

Sheet FLUJO_1
B1: CCT_PRIM | C1: CCT_SEC | D1: ORACIONES | E1: LECTURA | F1: MATEMÁTI | G1: GEOMETRÍA | H1: RAZONA | I1: FLUJO DE ESTUDIANTES | J1: TOTAL | K1: ORACIONES | L1: LECTURA | M1: MATEMÁTICAS | N1: GEOMETRÍA | O1: RAZONAMIENTO
B2: 08DPR1259T | C2: 08DST0047V | D2: 10 | E2: 9 | F2: 2 | G2: 4 | H2: 8 | I2: 08DPR1259T
B3: 08DPR1259T | C3: 08DES0001H | D3: 8.5 | E3: 5.5 | F3: 5.5 | G3: 4.5 | H3: 8 | I3: 08DES0001H
B4: 08DPR1259T | C4: 08DES0020W | D4: 8 | E4: 7 | F4: 3 | G4: 7 | H4: 8 | I4: 1652910 | J4: 1 | K4: 7 | L4: 4 | M4: 5 | N4: 5 | O4: 7
B5: 08DPR1259T | C5: 08DES0034Z | D5: 7.6 | E5: 5.228571429 | F5: 3.314285714 | G5: 3.314285714 | H5: 6.485714286 | I5: 1741481 | J5: 1 | K5: 10 | L5: 7 | M5: 6 | N5: 4 | O5: 9
B6: 08DPR1259T | C6: 08DES0019G | D6: 7.631578947 | E6: 4.894736842 | F6: 3.526315789 | G6: 3.473684211 | H6: 6.315789474 | I6: Total 08DES0001H | J6: 2 | K6: 17 | L6: 11 | M6: 11 | N6: 9 | O6: 16
B7: 08DPR1259T | C7: 08EES0071B | D7: 6.75 | E7: 3.75 | F7: 2.25 | G7: 3 | H7: 4.5 | I7: 08DES0019G
B8: 08DPR1259T | C8: 08SES0024U | D8: 10 | E8: 3 | F8: 1 | G8: 1 | H8: 4 | I8: 1646718 | J8: 1 | K8: 6 | L8: 5 | M8: 3 | N8: 4 | O8: 4
I9: 1650038 | J9: 1 | K9: 3 | L9: 5 | M9: 3 | N9: 0 | O9: 3
I10: 1653885 | J10: 1 | K10: 9 | L10: 3 | M10: 3 | N10: 6 | O10: 3
I11: 1657515 | J11: 1 | K11: 6 | L11: 3 | M11: 4 | N11: 5 | O11: 5
I12: 1662128 | J12: 1 | K12: 8 | L12: 5 | M12: 2 | N12: 4 | O12: 3
I13: 1702590 | J13: 1 | K13: 3 | L13: 3 | M13: 2 | N13: 3 | O13: 6
I14: 1708773 | J14: 1 | K14: 10 | L14: 8 | M14: 7 | N14: 6 | O14: 9
I15: 1716893 | J15: 1 | K15: 11 | L15: 7 | M15: 5 | N15: 2 | O15: 9
I16: 1732786 | J16: 1 | K16: 6 | L16: 4 | M16: 2 | N16: 5 | O16: 4
I17: 1740252 | J17: 1 | K17: 10 | L17: 5 | M17: 2 | N17: 2 | O17: 7
I18: 1740530 | J18: 1 | K18: 6 | L18: 7 | M18: 3 | N18: 0 | O18: 9
I19: 1746558 | J19: 1 | K19: 8 | L19: 3 | M19: 5 | N19: 4 | O19: 3
I20: 1749067 | J20: 1 | K20: 10 | L20: 4 | M20: 4 | N20: 2 | O20: 6
I21: 1753532 | J21: 1 | K21: 7 | L21: 5 | M21: 3 | N21: 3 | O21: 8
I22: 1759542 | J22: 1 | K22: 8 | L22: 6 | M22: 4 | N22: 4 | O22: 10
I23: 1764912 | J23: 1 | K23: 10 | L23: 5 | M23: 3 | N23: 4 | O23: 9
I24: 1788483 | J24: 1 | K24: 7 | L24: 4 | M24: 5 | N24: 4 | O24: 9
I25: 1812262 | J25: 1 | K25: 9 | L25: 6 | M25: 2 | N25: 5 | O25: 6
I26: 1832358 | J26: 1 | K26: 8 | L26: 5 | M26: 5 | N26: 3 | O26: 7
I27: Total 08DES0019G | J27: 19 | K27: 145 | L27: 93 | M27: 67 | N27: 66 | O27: 120
I28: 08DES0020W
I29: 1745893 | J29: 1 | K29: 8 | L29: 7 | M29: 3 | N29: 7 | O29: 8
I30: Total 08DES0020W | J30: 1 | K30: 8 | L30: 7 | M30: 3 | N30: 7 | O30: 8
I31: 08DES0034Z
I32: 1625692 | J32: 1 | K32: 8 | L32: 5 | M32: 4 | N32: 3 | O32: 9
I33: 1641189 | J33: 1 | K33: 7 | L33: 6 | M33: 5 | N33: 4 | O33: 2
I34: 1644061 | J34: 1 | K34: 9 | L34: 6 | M34: 3 | N34: 4 | O34: 9
I35: 1644082 | J35: 1 | K35: 7 | L35: 4 | M35: 3 | N35: 2 | O35: 5
I36: 1644166 | J36: 1 | K36: 9 | L36: 4 | M36: 2 | N36: 4 | O36: 1
I37: 1648537 | J37: 1 | K37: 9 | L37: 8 | M37: 2 | N37: 5 | O37: 12
I38: 1649269 | J38: 1 | K38: 4 | L38: 2 | M38: 1 | N38: 1 | O38: 7
I39: 1653593 | J39: 1 | K39: 5 | L39: 6 | M39: 5 | N39: 5 | O39: 12
I40: 1662107 | J40: 1 | K40: 6 | L40: 5 | M40: 4 | N40: 1 | O40: 6
I41: 1682020 | J41: 1 | K41: 8 | L41: 5 | M41: 4 | N41: 2 | O41: 11
I42: 1693770 | J42: 1 | K42: 8 | L42: 4 | M42: 2 | N42: 4 | O42: 5
I43: 1702610 | J43: 1 | K43: 7 | L43: 5 | M43: 0 | N43: 2 | O43: 5
I44: 1725370 | J44: 1 | K44: 9 | L44: 7 | M44: 4 | N44: 3 | O44: 12
I45: 1728760 | J45: 1 | K45: 3 | L45: 6 | M45: 2 | N45: 5 | O45: 3
I46: 1728762 | J46: 1 | K46: 11 | L46: 7 | M46: 1 | N46: 5 | O46: 10
I47: 1728765 | J47: 1 | K47: 10 | L47: 8 | M47: 5 | N47: 7 | O47: 11
I48: 1728770 | J48: 1 | K48: 5 | L48: 3 | M48: 5 | N48: 3 | O48: 4
I49: 1728771 | J49: 1 | K49: 10 | L49: 6 | M49: 2 | N49: 6 | O49: 6
I50: 1736972 | J50: 1 | K50: 7 | L50: 5 | M50: 4 | N50: 4 | O50: 3
I51: 1737287 | J51: 1 | K51: 6 | L51: 4 | M51: 4 | N51: 4 | O51: 4
I52: 1740766 | J52: 1 | K52: 8 | L52: 7 | M52: 3 | N52: 1 | O52: 4
I53: 1741131 | J53: 1 | K53: 11 | L53: 5 | M53: 5 | N53: 2 | O53: 2
I54: 1741376 | J54: 1 | K54: 13 | L54: 6 | M54: 2 | N54: 4 | O54: 8
I55: 1741596 | J55: 1 | K55: 3 | L55: 3 | M55: 4 | N55: 2 | O55: 6
I56: 1741604 | J56: 1 | K56: 7 | L56: 6 | M56: 5 | N56: 4 | O56: 9
I57: 1741617 | J57: 1 | K57: 7 | L57: 4 | M57: 4 | N57: 3 | O57: 4
I58: 1741629 | J58: 1 | K58: 7 | L58: 6 | M58: 1 | N58: 4 | O58: 4
I59: 1744672 | J59: 1 | K59: 8 | L59: 7 | M59: 6 | N59: 3 | O59: 12
I60: 1754386 | J60: 1 | K60: 10 | L60: 5 | M60: 2 | N60: 4 | O60: 11
I61: 1759448 | J61: 1 | K61: 8 | L61: 2 | M61: 6 | N61: 4 | O61: 9
I62: 1761381 | J62: 1 | K62: 10 | L62: 7 | M62: 4 | N62: 4 | O62: 0
I63: 1771307 | J63: 1 | K63: 4 | L63: 1 | M63: 5 | N63: 2 | O63: 8
I64: 1806948 | J64: 1 | K64: 9 | L64: 5 | M64: 0 | N64: 0 | O64: 4
I65: 1817597 | J65: 1 | K65: 5 | L65: 6 | M65: 5 | N65: 3 | O65: 7
I66: 1913894 | J66: 1 | K66: 8 | L66: 7 | M66: 2 | N66: 2 | O66: 2
I67: Total 08DES0034Z | J67: 35 | K67: 266 | L67: 183 | M67: 116 | N67: 116 | O67: 227
I68: 08DST0047V
I69: 1652470 | J69: 1 | K69: 10 | L69: 9 | M69: 2 | N69: 4 | O69: 8
I70: Total 08DST0047V | J70: 1 | K70: 10 | L70: 9 | M70: 2 | N70: 4 | O70: 8
I71: 08EES0071B
I72: 1632966 | J72: 1 | K72: 4 | L72: 2 | M72: 3 | N72: 3 | O72: 4
I73: 1652861 | J73: 1 | K73: 7 | L73: 5 | M73: 2 | N73: 2 | O73: 8
I74: 1702619 | J74: 1 | K74: 7 | L74: 3 | M74: 2 | N74: 4 | O74: 3
I75: 1754995 | J75: 1 | K75: 9 | L75: 5 | M75: 2 | N75: 3 | O75: 3
I76: Total 08EES0071B | J76: 4 | K76: 27 | L76: 15 | M76: 9 | N76: 12 | O76: 18
I77: 08SES0024U
I78: 1708805 | J78: 1 | K78: 10 | L78: 3 | M78: 1 | N78: 1 | O78: 4
I79: Total 08SES0024U | J79: 1 | K79: 10 | L79: 3 | M79: 1 | N79: 1 | O79: 4
I80: Total general | J80: 63 | K80: 483 | L80: 321 | M80: 209 | N80: 215 | O80: 401

Sheet FLUJO
F1: FLUJO DE ESTUDIANTES | G1: ORACIONES | H1: LECTURA | I1: MATEM | J1: GEOME | K1: RAZONAM | M1: FLUJO DE ESTUDIANTES
F2: 08DST0047V | L2: TOTAL PROMEDIO | M2: 08DST0052G | N2: ORACIONES | O2: LECTURA | P2: MATEMÁTICAS | Q2: GEOMETRÍA | R2: RAZONAMIENTO | S2: PROMEDIO PORCENTAJE
F3: (en blanco) | G3: 8 | H3: 5.583333333 | I3: 3.75 | J3: 3.75 | K3: 6.25 | L3: =AVERAGE(G3:K3) -> 5.466666667 | M3: (en blanco) | N3: =(G3*100)/12 -> 66.66666667 | O3: =(H3*100)/12 -> 46.52777778 | P3: =(I3*100)/12 -> 31.25 | Q3: 31.25 | R3: 52.08333333 | S3: 45.55555556
F4: 08DPR0108G | G4: 11 | H4: 7 | I4: 4 | J4: 2 | K4: 9 | L4: =AVERAGE(G4:K4) -> 6.6 | M4: 08DPR0046K | N4: =(G4*100)/12 -> 91.66666667 | O4: =(H4*100)/12 -> 58.33333333 | P4: =(I4*100)/12 -> 33.33333333 | Q4: =(J4*100)/12 -> 16.66666667 | R4: =(K4*100)/12 -> 75 | S4: =(L4*100)/12 -> 55
F5: 08DPR0220A | G5: 9.25 | H5: 6.4375 | I5: 3.875 | J5: 4.15625 | K5: 7.4375 | L5: 6.23125 | M5: 08DPR0341M | N5: 77.08333333 | O5: 53.64583333 | P5: 32.29166667 | Q5: 34.63541667 | R5: 61.97916667 | S5: 51.92708333
F6: 08DPR0222Z | G6: 8 | H6: 5 | I6: 2 | J6: 2 | K6: 6 | L6: 4.6 | M6: 08DPR0539W | N6: 66.66666667 | O6: 41.66666667 | P6: 16.66666667 | Q6: 16.66666667 | R6: 50 | S6: 38.33333333
F7: 08DPR0292U | G7: 7.5625 | H7: 5.1875 | I7: 3.1875 | J7: 3.25 | K7: 5.375 | L7: 4.9125 | M7: 08DPR0597M | N7: 63.02083333 | O7: 43.22916667 | P7: 26.5625 | Q7: 27.08333333 | R7: 44.79166667 | S7: 40.9375
F8: 08DPR0329R | G8: 9 | H8: 5 | I8: 5 | J8: 5 | K8: 8 | L8: 6.4 | M8: 08DPR0652P | N8: 75 | O8: 41.66666667 | P8: 41.66666667 | Q8: 41.66666667 | R8: 66.66666667 | S8: 53.33333333
F9: 08DPR0343K | G9: 8.341463415 | H9: 5.048780488 | I9: 3.243902439 | J9: 3.682926829 | K9: 6.487804878 | L9: 5.36097561 | M9: 08DPR0693P | N9: 69.51219512 | O9: 42.07317073 | P9: 27.03252033 | Q9: 30.69105691 | R9: 54.06504065 | S9: 44.67479675
F10: 08DPR0344J | G10: 7.75 | H10: 6.5 | I10: 3.375 | J10: 3.5 | K10: 4.75 | L10: 5.175 | M10: 08DPR0695N | N10: 64.58333333 | O10: 54.16666667 | P10: 28.125 | Q10: 29.16666667 | R10: 39.58333333 | S10: 43.125
F11: 08DPR0697L | G11: 8.5 | H11: 6.5 | I11: 1.25 | J11: 4.25 | K11: 7 | L11: 5.5 | M11: 08DPR0696M | N11: 70.83333333 | O11: 54.16666667 | P11: 10.41666667 | Q11: 35.41666667 | R11: 58.33333333 | S11: 45.83333333
F12: 08DPR0743G | G12: 9.111111111 | H12: 6.62962963 | I12: 4 | J12: 4.074074074 | K12: 8.703703704 | L12: 6.503703704 | M12: 08DPR0698K | N12: 75.92592593 | O12: 55.24691358 | P12: 33.33333333 | Q12: 33.95061728 | R12: 72.5308642 | S12: 54.19753086
F13: 08DPR0808Z | G13: 8.529411765 | H13: 6.117647059 | I13: 3.411764706 | J13: 3.058823529 | K13: 4.235294118 | L13: 5.070588235 | M13: 08DPR0699J | N13: 71.07843137 | O13: 50.98039216 | P13: 28.43137255 | Q13: 25.49019608 | R13: 35.29411765 | S13: 42.25490196
F14: 08DPR1000W | G14: 9.4 | H14: 4.6 | I14: 2.6 | J14: 3.2 | K14: 6.2 | L14: 5.2 | M14: 08DPR0706C | N14: 78.33333333 | O14: 38.33333333 | P14: 21.66666667 | Q14: 26.66666667 | R14: 51.66666667 | S14: 43.33333333
F15: 08DPR1005R | G15: 8.142857143 | H15: 5.742857143 | I15: 2.942857143 | J15: 3.914285714 | K15: 6.514285714 | L15: 5.451428571 | M15: 08DPR0742H | N15: 67.85714286 | O15: 47.85714286 | P15: 24.52380952 | Q15: 32.61904762 | R15: 54.28571429 | S15: 45.42857143
F16: 08DPR1042V | G16: 11.33333333 | H16: 8 | I16: 4.666666667 | J16: 5.333333333 | K16: 9.666666667 | L16: 7.8 | M16: 08DPR1004S | N16: 94.44444444 | O16: 66.66666667 | P16: 38.88888889 | Q16: 44.44444444 | R16: 80.55555556 | S16: 65
F17: 08DPR1108N | G17: 11 | H17: 9 | I17: 4 | J17: 4 | K17: 7 | L17: 7 | M17: 08DPR1101U | N17: 91.66666667 | O17: 75 | P17: 33.33333333 | Q17: 33.33333333 | R17: 58.33333333 | S17: 58.33333333
F18: 08DPR1156X | G18: 10 | H18: 6.666666667 | I18: 4 | J18: 2.333333333 | K18: 8.666666667 | L18: 6.333333333 | M18: 08DPR1229Z | N18: 83.33333333 | O18: 55.55555556 | P18: 33.33333333 | Q18: 19.44444444 | R18: 72.22222222 | S18: 52.77777778
F19: 08DPR1172O | G19: 5 | H19: 4 | I19: 4 | J19: 4 | K19: 2 | L19: 3.8 | M19: 08DPR1258U | N19: 41.66666667 | O19: 33.33333333 | P19: 33.33333333 | Q19: 33.33333333 | R19: 16.66666667 | S19: 31.66666667
F20: 08DPR1259T | G20: 10 | H20: 9 | I20: 2 | J20: 4 | K20: 8 | L20: 6.6 | M20: 08DPR1388N | N20: 83.33333333 | O20: 75 | P20: 16.66666667 | Q20: 33.33333333 | R20: 66.66666667 | S20: 55
F21: 08DPR1397V | G21: 10.5 | H21: 6.75 | I21: 5 | J21: 4.25 | K21: 9.75 | L21: 7.25 | M21: 08DPR1436G | N21: 87.5 | O21: 56.25 | P21: 41.66666667 | Q21: 35.41666667 | R21: 81.25 | S21: 60.41666667
F22: 08DPR1525Z | G22: 10 | H22: 8 | I22: 5 | J22: 5 | K22: 8 | L22: 7.2 | M22: 08DPR1453X | N22: 83.33333333 | O22: 66.66666667 | P22: 41.66666667 | Q22: 41.66666667 | R22: 66.66666667 | S22: 60
F23: 08DPR1554V | G23: 8 | H23: 5 | I23: 4 | J23: 5 | K23: 5 | L23: 5.4 | M23: 08DPR1514U | N23: 66.66666667 | O23: 41.66666667 | P23: 33.33333333 | Q23: 41.66666667 | R23: 41.66666667 | S23: 45
F24: 08DPR1607J | G24: 8 | H24: 5.5 | I24: 3 | J24: 3.25 | K24: 3.75 | L24: 4.7 | M24: 08DPR1566Z | N24: 66.66666667 | O24: 45.83333333 | P24: 25 | Q24: 27.08333333 | R24: 31.25 | S24: 39.16666667
F25: 08DPR1619O | G25: 10 | H25: 4 | I25: 4 | J25: 5 | K25: 3 | L25: 5.2 | M25: 08DPR1634G | N25: 83.33333333 | O25: 33.33333333 | P25: 33.33333333 | Q25: 41.66666667 | R25: 25 | S25: 43.33333333
F26: 08DPR1650Y | G26: 10 | H26: 5 | I26: 3 | J26: 5 | K26: 7 | L26: 6 | M26: 08DPR1811U | N26: 83.33333333 | O26: 41.66666667 | P26: 25 | Q26: 41.66666667 | R26: 58.33333333 | S26: 50
F27: 08DPR2135R | G27: 10.47368421 | H27: 5.789473684 | I27: 4.368421053 | J27: 5.736842105 | K27: 8.578947368 | L27: 6.989473684 | M27: 08DPR1812T | N27: 87.28070175 | O27: 48.24561404 | P27: 36.40350877 | Q27: 47.80701754 | R27: 71.49122807 | S27: 58.24561404
F28: 08DPR2154F | G28: 4 | H28: 3 | I28: 3 | J28: 4 | K28: 4 | L28: 3.6 | M28: 08DPR1856Q | N28: 33.33333333 | O28: 25 | P28: 25 | Q28: 33.33333333 | R28: 33.33333333 | S28: 30
F29: 08DPR2202Z | G29: 8 | H29: 7 | I29: 0 | J29: 3 | K29: 6 | L29: 4.8 | M29: 08DPR2025L | N29: 66.66666667 | O29: 58.33333333 | P29: 0 | Q29: 25 | R29: 50 | S29: 40
F30: 08DPR2245X | G30: 8 | H30: 5 | I30: 0 | J30: 6 | K30: 2 | L30: 4.2 | M30: 08DPR2107V | N30: 66.66666667 | O30: 41.66666667 | P30: 0 | Q30: 50 | R30: 16.66666667 | S30: 35
F31: 08DPR2280C | G31: 8.125 | H31: 5.625 | I31: 3.5 | J31: 3.9375 | K31: 6.75 | L31: 5.5875 | M31: 08DPR2146X | N31: 67.70833333 | O31: 46.875 | P31: 29.16666667 | Q31: 32.8125 | R31: 56.25 | S31: 46.5625
F32: 08DPR2360O | G32: 11 | H32: 6 | I32: 1 | J32: 6 | K32: 7 | L32: 6.2 | M32: 08DPR2167J | N32: 91.66666667 | O32: 50 | P32: 8.333333333 | Q32: 50 | R32: 58.33333333 | S32: 51.66666667
F33: 08DPR2377O | G33: 9.5 | H33: 6.5 | I33: 5.5 | J33: 4.5 | K33: 6.5 | L33: 6.5 | M33: 08DPR2197D | N33: 79.16666667 | O33: 54.16666667 | P33: 45.83333333 | Q33: 37.5 | R33: 54.16666667 | S33: 54.16666667
F34: 08DPR2415A | G34: 10 | H34: 7 | I34: 4 | J34: 4 | K34: 10 | L34: 7 | M34: 08DPR2235Q | N34: 83.33333333 | O34: 58.33333333 | P34: 33.33333333 | Q34: 33.33333333 | R34: 83.33333333 | S34: 58.33333333
F35: 08EPR0132F | G35: 7.166666667 | H35: 4.5 | I35: 2.833333333 | J35: 3.166666667 | K35: 6.166666667 | L35: 4.766666667 | M35: 08DPR2311F | N35: 59.72222222 | O35: 37.5 | P35: 23.61111111 | Q35: 26.38888889 | R35: 51.38888889 | S35: 39.72222222
F36: 08EPR0265W | G36: 8.666666667 | H36: 4.666666667 | I36: 2.333333333 | J36: 3 | K36: 9 | L36: 5.533333333 | M36: 08DPR2388U | N36: 72.22222222 | O36: 38.88888889 | P36: 19.44444444 | Q36: 25 | R36: 75 | S36: 46.11111111
F37: 08EPR0274D | G37: 12 | H37: 7 | I37: 7 | J37: 8 | K37: 12 | L37: 9.2 | M37: 08DPR2560M | N37: 100 | O37: 58.33333333 | P37: 58.33333333 | Q37: 66.66666667 | R37: 100 | S37: 76.66666667
F38: 08EPR0277A | G38: 9 | H38: 6 | I38: 4 | J38: 3 | K38: 10 | L38: 6.4 | M38: 08DPR2612B | N38: 75 | O38: 50 | P38: 33.33333333 | Q38: 25 | R38: 83.33333333 | S38: 53.33333333
F39: 08EPR0294R | G39: 8 | H39: 8.5 | I39: 2.5 | J39: 3.5 | K39: 8.5 | L39: 6.2 | M39: 08DPR2646S | N39: 66.66666667 | O39: 70.83333333 | P39: 20.83333333 | Q39: 29.16666667 | R39: 70.83333333 | S39: 51.66666667
F40: 08EPR0303I | G40: 11 | H40: 7 | I40: 7 | J40: 6 | K40: 4 | L40: 7 | M40: 08DPR2654A | N40: 91.66666667 | O40: 58.33333333 | P40: 58.33333333 | Q40: 50 | R40: 33.33333333 | S40: 58.33333333
F41: 08EPR0310S | G41: 10.5 | H41: 6 | I41: 4.25 | J41: 5.5 | K41: 10.75 | L41: 7.4 | M41: 08DPR2676M | N41: 87.5 | O41: 50 | P41: 35.41666667 | Q41: 45.83333333 | R41: 89.58333333 | S41: 61.66666667
F42: 08EPR0721U | G42: 8 | H42: 5 | I42: 5 | J42: 5 | K42: 8 | L42: 6.2 | M42: 08DST0037O | N42: 66.66666667 | O42: 41.66666667 | P42: 41.66666667 | Q42: 41.66666667 | R42: 66.66666667 | S42: 51.66666667
F43: 08PPR1790C | G43: 10 | H43: 6 | I43: 6 | J43: 3 | K43: 7 | L43: 6.4 | M43: 08EPR0015Q | N43: 83.33333333 | O43: 50 | P43: 50 | Q43: 25 | R43: 58.33333333 | S43: 53.33333333
F44: 08PPR2050P | G44: 9 | H44: 4 | I44: 4 | J44: 2 | K44: 5 | L44: 4.8 | M44: 08EPR0164Y | N44: 75 | O44: 33.33333333 | P44: 33.33333333 | Q44: 16.66666667 | R44: 41.66666667 | S44: 40
F45: 08PPR2060W | G45: 10 | H45: 6 | I45: 3 | J45: 3 | K45: 2 | L45: 4.8 | M45: 08EPR0166W | N45: 83.33333333 | O45: 50 | P45: 25 | Q45: 25 | R45: 16.66666667 | S45: 40
F46: 08PPR2079U | G46: 7 | H46: 8 | I46: 3 | J46: 3 | K46: 9 | L46: 6 | M46: 08EPR0169T | N46: 58.33333333 | O46: 66.66666667 | P46: 25 | Q46: 25 | R46: 75 | S46: 50
F47: 08PPR2080J | G47: 7 | H47: 7 | I47: 0 | J47: 3 | K47: 2 | L47: 3.8 | M47: 08EPR0176C | N47: 58.33333333 | O47: 58.33333333 | P47: 0 | Q47: 25 | R47: 16.66666667 | S47: 31.66666667
F48: 08PPR2095L | G48: 11 | H48: 8 | I48: 5 | J48: 4 | K48: 9 | L48: 7.4 | M48: 08EPR0302J | N48: 91.66666667 | O48: 66.66666667 | P48: 41.66666667 | Q48: 33.33333333 | R48: 75 | S48: 61.66666667
F49: 08PPR2103D | G49: 10 | H49: 7 | I49: 3 | J49: 7 | K49: 10 | L49: 7.4 | M49: 08EPR0328R | N49: 83.33333333 | O49: 58.33333333 | P49: 25 | Q49: 58.33333333 | R49: 83.33333333 | S49: 61.66666667
F50: 08PPR2121T | G50: 10 | H50: 2 | I50: 7 | J50: 5 | K50: 6 | L50: 6 | M50: 08EPR0381M | N50: 83.33333333 | O50: 16.66666667 | P50: 58.33333333 | Q50: 41.66666667 | R50: 50 | S50: 50
M51: 08EPR0382L | N51: 0 | O51: 0 | P51: 0 | Q51: 0 | R51: 0
M52: 08EPR0401J | N52: 0 | O52: 0 | P52: 0 | Q52: 0 | R52: 0
M53: 08EPR0405F | N53: 0 | O53: 0 | P53: 0 | Q53: 0 | R53: 0
M54: 08EPR0448D | N54: 0 | O54: 0 | P54: 0 | Q54: 0 | R54: 0
M55: 08EPR0574A | N55: 0 | O55: 0 | P55: 0 | Q55: 0 | R55: 0
M56: 08EPR0583I | N56: 0 | O56: 0 | P56: 0 | Q56: 0 | R56: 0
M57: 08EPR0593P | N57: 0 | O57: 0 | P57: 0 | Q57: 0 | R57: 0
M58: 08EPR0625R | N58: 0 | O58: 0 | P58: 0 | Q58: 0 | R58: 0
M59: 08EPR0708Z | N59: 0 | O59: 0 | P59: 0 | Q59: 0 | R59: 0
M60: 08EPR0828M | N60: 0 | O60: 0 | P60: 0 | Q60: 0 | R60: 0
M61: 08PPR0167A | N61: 0 | O61: 0 | P61: 0 | Q61: 0 | R61: 0
M62: 08PPR0172M | N62: 0 | O62: 0 | P62: 0 | Q62: 0 | R62: 0
M63: 08PPR0174K | N63: 0 | O63: 0 | P63: 0 | Q63: 0 | R63: 0
M64: 08PPR1808L | N64: 0 | O64: 0 | P64: 0 | Q64: 0 | R64: 0
M65: 08PPR1861G | N65: 0 | O65: 0 | P65: 0 | Q65: 0 | R65: 0
M66: 08PPR2051O | N66: 0 | O66: 0 | P66: 0 | Q66: 0 | R66: 0
M67: 08PPR2092O | N67: 0 | O67: 0 | P67: 0 | Q67: 0 | R67: 0
L68: =AVERAGE(G68:K68) ->  | N68: =(G68*100)/12 -> 0 | O68: =(H68*100)/12 -> 0 | P68: =(I68*100)/12 -> 0 | Q68: =(J68*100)/12 -> 0 | R68: =(K68*100)/12 -> 0 | S68: =(L68*100)/12 -> 
N69: 0 | O69: 0 | P69: 0 | Q69: 0 | R69: 0
N70: 0 | O70: 0 | P70: 0 | Q70: 0 | R70: 0
N71: 0 | O71: 0 | P71: 0 | Q71: 0 | R71: 0
N72: 0 | O72: 0 | P72: 0 | Q72: 0 | R72: 0
N73: 0 | O73: 0 | P73: 0 | Q73: 0 | R73: 0
N74: 0 | O74: 0 | P74: 0 | Q74: 0 | R74: 0
N75: 0 | O75: 0 | P75: 0 | Q75: 0 | R75: 0
N76: 0 | O76: 0 | P76: 0 | Q76: 0 | R76: 0
N77: 0 | O77: 0 | P77: 0 | Q77: 0 | R77: 0
N78: 0 | O78: 0 | P78: 0 | Q78: 0 | R78: 0
N79: 0 | O79: 0 | P79: 0 | Q79: 0 | R79: 0
N80: 0 | O80: 0 | P80: 0 | Q80: 0 | R80: 0
N81: 0 | O81: 0 | P81: 0 | Q81: 0 | R81: 0
N82: 0 | O82: 0 | P82: 0 | Q82: 0 | R82: 0
N83: 0 | O83: 0 | P83: 0 | Q83: 0 | R83: 0
N84: 0 | O84: 0 | P84: 0 | Q84: 0 | R84: 0
N85: 0 | O85: 0 | P85: 0 | Q85: 0 | R85: 0
N86: 0 | O86: 0 | P86: 0 | Q86: 0 | R86: 0
N87: 0 | O87: 0 | P87: 0 | Q87: 0 | R87: 0
N88: 0 | O88: 0 | P88: 0 | Q88: 0 | R88: 0
N89: 0 | O89: 0 | P89: 0 | Q89: 0 | R89: 0
N90: 0 | O90: 0 | P90: 0 | Q90: 0 | R90: 0
N91: 0 | O91: 0 | P91: 0 | Q91: 0 | R91: 0
N92: 0 | O92: 0 | P92: 0 | Q92: 0 | R92: 0
N93: 0 | O93: 0 | P93: 0 | Q93: 0 | R93: 0
N94: 0 | O94: 0 | P94: 0 | Q94: 0 | R94: 0
L95: =AVERAGE(G95:K95) ->  | N95: 0 | O95: 0 | P95: 0 | Q95: 0 | R95: 0
N96: 0 | O96: 0 | P96: 0 | Q96: 0 | R96: 0 | S96: 0
N97: 0 | O97: 0 | P97: 0 | Q97: 0 | R97: 0 | S97: 0
N98: 0 | O98: 0 | P98: 0 | Q98: 0 | R98: 0 | S98: 0
N99: 0 | O99: 0 | P99: 0 | Q99: 0 | R99: 0 | S99: 0
N100: 0 | O100: 0 | P100: 0 | Q100: 0 | R100: 0 | S100: 0
N101: 0 | O101: 0 | P101: 0 | Q101: 0 | R101: 0 | S101: 0
N102: 0 | O102: 0 | P102: 0 | Q102: 0 | R102: 0 | S102: 0
N103: 0 | O103: 0 | P103: 0 | Q103: 0 | R103: 0 | S103: 0
N104: 0 | O104: 0 | P104: 0 | Q104: 0 | R104: 0 | S104: 0
N105: 0 | O105: 0 | P105: 0 | Q105: 0 | R105: 0 | S105: 0
N106: 0 | O106: 0 | P106: 0 | Q106: 0 | R106: 0 | S106: 0
N107: 0 | O107: 0 | P107: 0 | Q107: 0 | R107: 0 | S107: 0
N108: 0 | O108: 0 | P108: 0 | Q108: 0 | R108: 0 | S108: 0
N109: 0 | O109: 0 | P109: 0 | Q109: 0 | R109: 0 | S109: 0
N110: 0 | O110: 0 | P110: 0 | Q110: 0 | R110: 0 | S110: 0
N111: 0 | O111: 0 | P111: 0 | Q111: 0 | R111: 0 | S111: 0
N112: 0 | O112: 0 | P112: 0 | Q112: 0 | R112: 0 | S112: 0
N113: 0 | O113: 0 | P113: 0 | Q113: 0 | R113: 0 | S113: 0
N114: 0 | O114: 0 | P114: 0 | Q114: 0 | R114: 0 | S114: 0
N115: 0 | O115: 0 | P115: 0 | Q115: 0 | R115: 0 | S115: 0
N116: 0 | O116: 0 | P116: 0 | Q116: 0 | R116: 0 | S116: 0
N117: 0 | O117: 0 | P117: 0 | Q117: 0 | R117: 0 | S117: 0
N118: 0 | O118: 0 | P118: 0 | Q118: 0 | R118: 0 | S118: 0
N119: 0 | O119: 0 | P119: 0 | Q119: 0 | R119: 0 | S119: 0
N120: 0 | O120: 0 | P120: 0 | Q120: 0 | R120: 0 | S120: 0
N121: 0 | O121: 0 | P121: 0 | Q121: 0 | R121: 0 | S121: 0
N122: 0 | O122: 0 | P122: 0 | Q122: 0 | R122: 0 | S122: 0
N123: 0 | O123: 0 | P123: 0 | Q123: 0 | R123: 0 | S123: 0
N124: 0 | O124: 0 | P124: 0 | Q124: 0 | R124: 0 | S124: 0
N125: 0 | O125: 0 | P125: 0 | Q125: 0 | R125: 0 | S125: 0
N126: 0 | O126: 0 | P126: 0 | Q126: 0 | R126: 0 | S126: 0
N127: 0 | O127: 0 | P127: 0 | Q127: 0 | R127: 0 | S127: 0
N128: 0 | O128: 0 | P128: 0 | Q128: 0 | R128: 0 | S128: 0
N129: 0 | O129: 0 | P129: 0 | Q129: 0 | R129: 0 | S129: 0
N130: 0 | O130: 0 | P130: 0 | Q130: 0 | R130: 0 | S130: 0
N131: 0 | O131: 0 | P131: 0 | Q131: 0 | R131: 0 | S131: 0
N132: =(G132*100)/12 -> 0 | O132: =(H132*100)/12 -> 0 | P132: =(I132*100)/12 -> 0 | Q132: =(J132*100)/12 -> 0 | R132: =(K132*100)/12 -> 0 | S132: =(L132*100)/12 -> 0
N133: 0 | O133: 0 | P133: 0 | Q133: 0 | R133: 0 | S133: 0
N134: 0 | O134: 0 | P134: 0 | Q134: 0 | R134: 0 | S134: 0
N135: 0 | O135: 0 | P135: 0 | Q135: 0 | R135: 0 | S135: 0
N136: 0 | O136: 0 | P136: 0 | Q136: 0 | R136: 0 | S136: 0
N137: 0 | O137: 0 | P137: 0 | Q137: 0 | R137: 0 | S137: 0
N138: 0 | O138: 0 | P138: 0 | Q138: 0 | R138: 0 | S138: 0
N139: 0 | O139: 0 | P139: 0 | Q139: 0 | R139: 0 | S139: 0
N140: 0 | O140: 0 | P140: 0 | Q140: 0 | R140: 0 | S140: 0
N141: 0 | O141: 0 | P141: 0 | Q141: 0 | R141: 0 | S141: 0
N142: 0 | O142: 0 | P142: 0 | Q142: 0 | R142: 0 | S142: 0
N143: 0 | O143: 0 | P143: 0 | Q143: 0 | R143: 0 | S143: 0
N144: 0 | O144: 0 | P144: 0 | Q144: 0 | R144: 0 | S144: 0
N145: 0 | O145: 0 | P145: 0 | Q145: 0 | R145: 0 | S145: 0
N146: 0 | O146: 0 | P146: 0 | Q146: 0 | R146: 0 | S146: 0
N147: 0 | O147: 0 | P147: 0 | Q147: 0 | R147: 0 | S147: 0
N148: 0 | O148: 0 | P148: 0 | Q148: 0 | R148: 0 | S148: 0
N149: 0 | O149: 0 | P149: 0 | Q149: 0 | R149: 0 | S149: 0
N150: 0 | O150: 0 | P150: 0 | Q150: 0 | R150: 0 | S150: 0
N151: 0 | O151: 0 | P151: 0 | Q151: 0 | R151: 0 | S151: 0
N152: 0 | O152: 0 | P152: 0 | Q152: 0 | R152: 0 | S152: 0
N153: 0 | O153: 0 | P153: 0 | Q153: 0 | R153: 0 | S153: 0
N154: 0 | O154: 0 | P154: 0 | Q154: 0 | R154: 0 | S154: 0
N155: 0 | O155: 0 | P155: 0 | Q155: 0 | R155: 0 | S155: 0
N156: 0 | O156: 0 | P156: 0 | Q156: 0 | R156: 0 | S156: 0
N157: 0 | O157: 0 | P157: 0 | Q157: 0 | R157: 0 | S157: 0
N158: 0 | O158: 0 | P158: 0 | Q158: 0 | R158: 0 | S158: 0
N159: 0 | O159: 0 | P159: 0 | Q159: 0 | R159: 0 | S159: 0
N160: 0 | O160: 0 | P160: 0 | Q160: 0 | R160: 0 | S160: 0
N161: 0 | O161: 0 | P161: 0 | Q161: 0 | R161: 0 | S161: 0
N162: 0 | O162: 0 | P162: 0 | Q162: 0 | R162: 0 | S162: 0
N163: 0 | O163: 0 | P163: 0 | Q163: 0 | R163: 0 | S163: 0
N164: 0 | O164: 0 | P164: 0 | Q164: 0 | R164: 0 | S164: 0
N165: 0 | O165: 0 | P165: 0 | Q165: 0 | R165: 0 | S165: 0
N166: 0 | O166: 0 | P166: 0 | Q166: 0 | R166: 0 | S166: 0
N167: 0 | O167: 0 | P167: 0 | Q167: 0 | R167: 0 | S167: 0
N168: 0 | O168: 0 | P168: 0 | Q168: 0 | R168: 0 | S168: 0
N169: 0 | O169: 0 | P169: 0 | Q169: 0 | R169: 0 | S169: 0
N170: 0 | O170: 0 | P170: 0 | Q170: 0 | R170: 0 | S170: 0
N171: 0 | O171: 0 | P171: 0 | Q171: 0 | R171: 0 | S171: 0
N172: 0 | O172: 0 | P172: 0 | Q172: 0 | R172: 0 | S172: 0
N173: 0 | O173: 0 | P173: 0 | Q173: 0 | R173: 0 | S173: 0
N174: 0 | O174: 0 | P174: 0 | Q174: 0 | R174: 0 | S174: 0
N175: 0 | O175: 0 | P175: 0 | Q175: 0 | R175: 0 | S175: 0
N176: 0 | O176: 0 | P176: 0 | Q176: 0 | R176: 0 | S176: 0
N177: 0 | O177: 0 | P177: 0 | Q177: 0 | R177: 0 | S177: 0
N178: 0 | O178: 0 | P178: 0 | Q178: 0 | R178: 0 | S178: 0
N179: 0 | O179: 0 | P179: 0 | Q179: 0 | R179: 0 | S179: 0
N180: 0 | O180: 0 | P180: 0 | Q180: 0 | R180: 0 | S180: 0
N181: 0 | O181: 0 | P181: 0 | Q181: 0 | R181: 0 | S181: 0
N182: 0 | O182: 0 | P182: 0 | Q182: 0 | R182: 0 | S182: 0
N183: 0 | O183: 0 | P183: 0 | Q183: 0 | R183: 0 | S183: 0
N184: 0 | O184: 0 | P184: 0 | Q184: 0 | R184: 0 | S184: 0
N185: 0 | O185: 0 | P185: 0 | Q185: 0 | R185: 0 | S185: 0
N186: 0 | O186: 0 | P186: 0 | Q186: 0 | R186: 0 | S186: 0
N187: 0 | O187: 0 | P187: 0 | Q187: 0 | R187: 0 | S187: 0
N188: 0 | O188: 0 | P188: 0 | Q188: 0 | R188: 0 | S188: 0
N189: 0 | O189: 0 | P189: 0 | Q189: 0 | R189: 0 | S189: 0
N190: 0 | O190: 0 | P190: 0 | Q190: 0 | R190: 0 | S190: 0
N191: 0 | O191: 0 | P191: 0 | Q191: 0 | R191: 0 | S191: 0
N192: 0 | O192: 0 | P192: 0 | Q192: 0 | R192: 0 | S192: 0
N193: 0 | O193: 0 | P193: 0 | Q193: 0 | R193: 0 | S193: 0
N194: 0 | O194: 0 | P194: 0 | Q194: 0 | R194: 0 | S194: 0
N195: 0 | O195: 0 | P195: 0 | Q195: 0 | R195: 0 | S195: 0
N196: =(G196*100)/12 -> 0 | O196: =(H196*100)/12 -> 0 | P196: =(I196*100)/12 -> 0 | Q196: =(J196*100)/12 -> 0 | R196: =(K196*100)/12 -> 0 | S196: =(L196*100)/12 -> 0
N197: 0 | O197: 0 | P197: 0 | Q197: 0 | R197: 0 | S197: 0
N198: 0 | O198: 0 | P198: 0 | Q198: 0 | R198: 0 | S198: 0
N199: 0 | O199: 0 | P199: 0 | Q199: 0 | R199: 0 | S199: 0
N200: 0 | O200: 0 | P200: 0 | Q200: 0 | R200: 0 | S200: 0
... 74 more rows

Sheet GLOBAL_17_18_19
D1: Estadísticos descriptivos | F1: EVOLUCIÓN DE LOS PROMEDIOS DE IDANIS 2017-2018-2019
A2: aciertos | B2: Media | C2: N | D2: Mínimo | E2: Máximo | G2: Desv. típ.
A3: 2017 | B3: 21.654 | C3: 594 | D3: 3 | E3: 43.92 | G3: 3.82913
A4: 2018 | B4: 24.4334 | C4: 487 | D4: 12.45 | E4: 37.34 | G4: 4.09408
A5: 2019 | B5: 27.3094 | C5: 537 | D5: 11.3 | E5: 45 | G5: 4.9203
A6: 2017 | B6: 36.09 | C6: 594 | D6: 5 | E6: 73.19 | G6: 6.38181
A7: 2018 | B7: 42.1133 | C7: 487 | D7: 21.55 | E7: 64.36 | G7: 7.06485
A8: 2019 | B8: 45.5191 | C8: 537 | D8: 19 | E8: 75 | G8: 8.19906
A9: N válido (según lista) | C9: 398
G27: DIFERENCIA PORCENTUAL | J27: IDANIS | K27: PROGRESO PORCENTUAL
F28: 2017 | G28: 36.1 | J28: 2018-2017 | K28: =((42.1-36.1)*100)/36.1 -> 16.62049861
F29: 2018 | G29: 42.1 | J29: 2019-2018 | K29: =((45.5-42.1)*100)/42.1 -> 8.076009501
F30: 2019 | G30: 45.5 | J30: 2019-2017 | K30: =((45.5-36.1)*100)/36.1 -> 26.03878116

Sheet ORDEN ACIERTOS
A1: VARIABLE | B1: PUNTAJE PROMEDIO
A2: Geometría_35 | B2: 0.1496481654
A3: Geometría_45 | B3: 0.2052397915
A4: Manejo de Información_48 | B4: 0.2111007774
A5: Matemáticas_32 | B5: 0.2493551161
A6: Geometría_37 | B6: 0.267517153
A7: Matemáticas_29 | B7: 0.2739572183
A8: Matemáticas_27 | B8: 0.2747468721
A9: Geometría_42 | B9: 0.2849597277
A10: Habilildad de Razonamiento_57 | B10: 0.2992261393
A11: Habilildad de Razonamiento_52 | B11: 0.3134925509
A12: Geometría_38 | B12: 0.3164756874
A13: Geometría_43 | B13: 0.3288820257
A14: Habilildad de Razonamiento_54 | B14: 0.33418148
A15: Matemáticas_33 | B15: 0.3411830768
A16: Geometría_34 | B16: 0.3760857739
A17: Habilildad de Razonamiento_50 | B17: 0.376454279
A18: Manejo de Información_46 | B18: 0.3786302139
A19: Habilildad de Razonamiento_53 | B19: 0.3855791672
A20: Comprensión Lectora_16 | B20: 0.3856493586
A21: Comprensión Lectora_23 | B21: 0.3867899696
A22: Matemáticas_25 | B22: 0.3871058312
A23: Comprensión Lectora_18 | B23: 0.3873515012
A24: Comprensión Lectora_19 | B24: 0.3894396968
A25: Matemáticas_28 | B25: 0.399564813
A26: Habilildad de Razonamiento_58 | B26: 0.4079702388
A27: Habilildad de Razonamiento_55 | B27: 0.4348360152
A28: Comprensión Lectora_20 | B28: 0.4482601295
A29: Manejo de Información_47 | B29: 0.4484707038
A30: Habilildad de Razonamiento_60 | B30: 0.4511555267
A31: Comprensión Lectora_15 | B31: 0.4537526102
A32: Habilildad de Razonamiento_56 | B32: 0.4607366592
A33: Habilildad de Razonamiento_59 | B33: 0.4698966431
A34: Comprensión Lectora_24 | B34: 0.4731079018
A35: Habilildad de Razonamiento_49 | B35: 0.4827416779
A36: Matemáticas_26 | B36: 0.4941828838
A37: Completación de Oraciones_4 | B37: 0.4990787373
A38: Geometría_39 | B38: 0.5096074543
A39: Geometría_44 | B39: 0.5099935073
A40: Completación de Oraciones_11 | B40: 0.5196448313
A41: Comprensión Lectora_17 | B41: 0.5407022654
A42: Completación de Oraciones_9 | B42: 0.5543545019
A43: Habilildad de Razonamiento_51 | B43: 0.5557934266
A44: Completación de Oraciones_12 | B44: 0.5626721884
A45: Comprensión Lectora_22 | B45: 0.5664976223
A46: Matemáticas_30 | B46: 0.5846596592
A47: Geometría_41 | B47: 0.5907663151
A48: Geometría_40 | B48: 0.6009791707
A49: Comprensión Lectora_14 | B49: 0.6135785355
A50: Matemáticas_31 | B50: 0.6302840999
A51: Comprensión Lectora_21 | B51: 0.6693280924
A52: Completación de Oraciones_10 | B52: 0.6831909032
A53: Completación de Oraciones_3 | B53: 0.6905610051
A54: Geometría_36 | B54: 0.712039588
A55: Completación de Oraciones_6 | B55: 0.7316756453
A56: Completación de Oraciones_1 | B56: 0.7709302122
A57: Comprensión Lectora_13 | B57: 0.77907242
A58: Completación de Oraciones_2 | B58: 0.7962342289
A59: Completación de Oraciones_5 | B59: 0.8599856108
A60: Completación de Oraciones_8 | B60: 0.863512731
A61: Completación de Oraciones_7 | B61: 0.9194904101

Sheet FLUJO DESEMPEÑO
K2: DISTRIBUCIÓN DE LOS ESTUDIANTES DE PRIMARIAS A SECUNDARIAS Y LOS RESULTADOS GENERALES Y ESPECÍFICOS POR ÁREA DE DIAGNÓSTICO POR ESTUDIANTE
A3: ID_ESTUDIANTE | B3: ORACIONES | C3: LECTURA | D3: MATEMÁT | E3: GEOMETRÍA | F3: RAZONA | G3: TOTAL
A4: 1496409 | B4: 7 | C4: 4 | D4: 4 | E4: 2 | F4: 5 | G4: 22 | Q4: CCT_PRIMARIA | R4: CCT_SECUNDARIA | S4: ID_ESTUDIANTE | T4: SEXO | U4: ORACIONES | V4: LECTURA | W4: MATEMÁT | X4: GEOMETRÍA | Y4: RAZONAM | Z4: TOTAL | AA4: ORACIONES | AB4: LECTURA | AC4: MATEMÁTICAS | AD4: GEOMETRÍA | AE4: RAZONAMIENTO | AF4: TOTAL
A5: 1621325 | B5: 6 | C5: 6 | D5: 2 | E5: 2 | F5: 2 | G5: 18 | Q5: 08DPR0069V | R5: 08ETV0154Q | S5: 1496409 | T5: H | U5: 7 | V5: 4 | W5: 4 | X5: 2 | Y5: 5 | Z5: 22 | AA5: =(U5*100)/12 -> 58.33333333 | AB5: =(V5*100)/12 -> 33.33333333 | AC5: =(W5*100)/12 -> 33.33333333 | AD5: =(X5*100)/12 -> 16.66666667 | AE5: =(Y5*100)/12 -> 41.66666667 | AF5: =(Z5*100)/60 -> 36.66666667
A6: 1647403 | B6: 8 | C6: 3 | D6: 4 | E6: 2 | F6: 4 | G6: 21 | Q6: 08DPR0069V | R6: 08EST0013D | S6: 2270052 | T6: H | U6: 3 | V6: 2 | W6: 1 | X6: 3 | Y6: 4 | Z6: 13 | AA6: =(U6*100)/12 -> 25 | AB6: =(V6*100)/12 -> 16.66666667 | AC6: =(W6*100)/12 -> 8.333333333 | AD6: =(X6*100)/12 -> 25 | AE6: =(Y6*100)/12 -> 33.33333333 | AF6: =(Z6*100)/60 -> 21.66666667
A7: 1647469 | B7: 9 | C7: 8 | D7: 4 | E7: 6 | F7: 7 | G7: 34 | Q7: 08DPR0069V | R7: 08EST0013D | S7: 1781114 | T7: M | U7: 10 | V7: 9 | W7: 2 | X7: 5 | Y7: 2 | Z7: 28 | AA7: 83.33333333 | AB7: 75 | AC7: 16.66666667 | AD7: 41.66666667 | AE7: 16.66666667 | AF7: 46.66666667
A8: 1650074 | B8: 6 | C8: 5 | D8: 3 | E8: 4 | F8: 2 | G8: 20 | Q8: 08DPR0069V | R8: 08EST0013D | S8: 1731704 | T8: H | U8: 2 | V8: 3 | W8: 3 | X8: 4 | Y8: 1 | Z8: 13 | AA8: 16.66666667 | AB8: 25 | AC8: 25 | AD8: 33.33333333 | AE8: 8.333333333 | AF8: 21.66666667
A9: 1650114 | B9: 10 | C9: 4 | D9: 2 | E9: 3 | F9: 3 | G9: 22 | Q9: 08DPR0069V | R9: 08EST0013D | S9: 1726639 | T9: M | U9: 10 | V9: 4 | W9: 3 | X9: 2 | Y9: 2 | Z9: 21 | AA9: 83.33333333 | AB9: 33.33333333 | AC9: 25 | AD9: 16.66666667 | AE9: 16.66666667 | AF9: 35
A10: 1650192 | B10: 7 | C10: 3 | D10: 2 | E10: 1 | F10: 2 | G10: 15 | Q10: 08DPR0069V | R10: 08EST0013D | S10: 1726631 | T10: M | U10: 10 | V10: 2 | W10: 1 | X10: 8 | Y10: 4 | Z10: 25 | AA10: 83.33333333 | AB10: 16.66666667 | AC10: 8.333333333 | AD10: 66.66666667 | AE10: 33.33333333 | AF10: 41.66666667
A11: 1651401 | B11: 6 | C11: 1 | D11: 4 | E11: 4 | F11: 4 | G11: 19 | Q11: 08DPR0069V | R11: 08EST0013D | S11: 1703094 | T11: H | U11: 9 | V11: 3 | W11: 6 | X11: 4 | Y11: 1 | Z11: 23 | AA11: 75 | AB11: 25 | AC11: 50 | AD11: 33.33333333 | AE11: 8.333333333 | AF11: 38.33333333
A12: 1652023 | B12: 8 | C12: 3 | D12: 1 | E12: 5 | F12: 2 | G12: 19 | Q12: 08DPR0069V | R12: 08EST0013D | S12: 1703085 | T12: H | U12: 9 | V12: 7 | W12: 3 | X12: 3 | Y12: 4 | Z12: 26 | AA12: 75 | AB12: 58.33333333 | AC12: 25 | AD12: 25 | AE12: 33.33333333 | AF12: 43.33333333
A13: 1652040 | B13: 3 | C13: 4 | D13: 2 | E13: 2 | F13: 6 | G13: 17 | Q13: 08DPR0069V | R13: 08EST0013D | S13: 1661236 | T13: H | U13: 8 | V13: 5 | W13: 5 | X13: 7 | Y13: 2 | Z13: 27 | AA13: 66.66666667 | AB13: 41.66666667 | AC13: 41.66666667 | AD13: 58.33333333 | AE13: 16.66666667 | AF13: 45
A14: 1661236 | B14: 8 | C14: 5 | D14: 5 | E14: 7 | F14: 2 | G14: 27 | Q14: 08DPR0069V | R14: 08EST0013D | S14: 1652040 | T14: M | U14: 3 | V14: 4 | W14: 2 | X14: 2 | Y14: 6 | Z14: 17 | AA14: 25 | AB14: 33.33333333 | AC14: 16.66666667 | AD14: 16.66666667 | AE14: 50 | AF14: 28.33333333
A15: 1702404 | B15: 10 | C15: 3 | D15: 2 | E15: 2 | F15: 4 | G15: 21 | Q15: 08DPR0069V | R15: 08EST0013D | S15: 1652023 | T15: M | U15: 8 | V15: 3 | W15: 1 | X15: 5 | Y15: 2 | Z15: 19 | AA15: 66.66666667 | AB15: 25 | AC15: 8.333333333 | AD15: 41.66666667 | AE15: 16.66666667 | AF15: 31.66666667
A16: 1703085 | B16: 9 | C16: 7 | D16: 3 | E16: 3 | F16: 4 | G16: 26 | Q16: 08DPR0069V | R16: 08EST0013D | S16: 1650192 | T16: H | U16: 7 | V16: 3 | W16: 2 | X16: 1 | Y16: 2 | Z16: 15 | AA16: 58.33333333 | AB16: 25 | AC16: 16.66666667 | AD16: 8.333333333 | AE16: 16.66666667 | AF16: 25
A17: 1703093 | B17: 5 | C17: 1 | D17: 6 | E17: 2 | F17: 4 | G17: 18 | Q17: 08DPR0069V | R17: 08EST0013D | S17: 1647469 | T17: H | U17: 9 | V17: 8 | W17: 4 | X17: 6 | Y17: 7 | Z17: 34 | AA17: 75 | AB17: 66.66666667 | AC17: 33.33333333 | AD17: 50 | AE17: 58.33333333 | AF17: 56.66666667
A18: 1703094 | B18: 9 | C18: 3 | D18: 6 | E18: 4 | F18: 1 | G18: 23 | Q18: 08DPR0069V | R18: 08EST0013D | S18: 1621325 | T18: M | U18: 6 | V18: 6 | W18: 2 | X18: 2 | Y18: 2 | Z18: 18 | AA18: 50 | AB18: 50 | AC18: 16.66666667 | AD18: 16.66666667 | AE18: 16.66666667 | AF18: 30
A19: 1703096 | B19: 9 | C19: 3 | D19: 2 | E19: 1 | F19: 5 | G19: 20 | Q19: 08DPR0069V | R19: 08DES0048B | S19: 2102657 | T19: H | U19: 7 | V19: 4 | W19: 4 | X19: 4 | Y19: 6 | Z19: 25 | AA19: 58.33333333 | AB19: 33.33333333 | AC19: 33.33333333 | AD19: 33.33333333 | AE19: 50 | AF19: 41.66666667
A20: 1726631 | B20: 10 | C20: 2 | D20: 1 | E20: 8 | F20: 4 | G20: 25 | Q20: 08DPR0069V | R20: 08DES0048B | S20: 1868391 | T20: M | U20: 8 | V20: 5 | W20: 6 | X20: 5 | Y20: 3 | Z20: 27 | AA20: 66.66666667 | AB20: 41.66666667 | AC20: 50 | AD20: 41.66666667 | AE20: 25 | AF20: 45
A21: 1726639 | B21: 10 | C21: 4 | D21: 3 | E21: 2 | F21: 2 | G21: 21 | Q21: 08DPR0069V | R21: 08DES0048B | S21: 1847673 | T21: H | U21: 5 | V21: 6 | W21: 2 | X21: 3 | Y21: 5 | Z21: 21 | AA21: 41.66666667 | AB21: 50 | AC21: 16.66666667 | AD21: 25 | AE21: 41.66666667 | AF21: 35
A22: 1731704 | B22: 2 | C22: 3 | D22: 3 | E22: 4 | F22: 1 | G22: 13 | Q22: 08DPR0069V | R22: 08DES0048B | S22: 1831175 | T22: M | U22: 4 | V22: 2 | W22: 1 | X22: 4 | Y22: 4 | Z22: 15 | AA22: 33.33333333 | AB22: 16.66666667 | AC22: 8.333333333 | AD22: 33.33333333 | AE22: 33.33333333 | AF22: 25
A23: 1781114 | B23: 10 | C23: 9 | D23: 2 | E23: 5 | F23: 2 | G23: 28 | Q23: 08DPR0069V | R23: 08DES0048B | S23: 1703096 | T23: H | U23: 9 | V23: 3 | W23: 2 | X23: 1 | Y23: 5 | Z23: 20 | AA23: 75 | AB23: 25 | AC23: 16.66666667 | AD23: 8.333333333 | AE23: 41.66666667 | AF23: 33.33333333
A24: 1831175 | B24: 4 | C24: 2 | D24: 1 | E24: 4 | F24: 4 | G24: 15 | Q24: 08DPR0069V | R24: 08DES0048B | S24: 1703093 | T24: H | U24: 5 | V24: 1 | W24: 6 | X24: 2 | Y24: 4 | Z24: 18 | AA24: 41.66666667 | AB24: 8.333333333 | AC24: 50 | AD24: 16.66666667 | AE24: 33.33333333 | AF24: 30
A25: 1847673 | B25: 5 | C25: 6 | D25: 2 | E25: 3 | F25: 5 | G25: 21 | Q25: 08DPR0069V | R25: 08DES0048B | S25: 1702404 | T25: M | U25: 10 | V25: 3 | W25: 2 | X25: 2 | Y25: 4 | Z25: 21 | AA25: 83.33333333 | AB25: 25 | AC25: 16.66666667 | AD25: 16.66666667 | AE25: 33.33333333 | AF25: 35
A26: 1868391 | B26: 8 | C26: 5 | D26: 6 | E26: 5 | F26: 3 | G26: 27 | Q26: 08DPR0069V | R26: 08DES0048B | S26: 1651401 | T26: H | U26: 6 | V26: 1 | W26: 4 | X26: 4 | Y26: 4 | Z26: 19 | AA26: 50 | AB26: 8.333333333 | AC26: 33.33333333 | AD26: 33.33333333 | AE26: 33.33333333 | AF26: 31.66666667
A27: 2102657 | B27: 7 | C27: 4 | D27: 4 | E27: 4 | F27: 6 | G27: 25 | Q27: 08DPR0069V | R27: 08DES0048B | S27: 1650114 | T27: H | U27: 10 | V27: 4 | W27: 2 | X27: 3 | Y27: 3 | Z27: 22 | AA27: 83.33333333 | AB27: 33.33333333 | AC27: 16.66666667 | AD27: 25 | AE27: 25 | AF27: 36.66666667
A28: 2270052 | B28: 3 | C28: 2 | D28: 1 | E28: 3 | F28: 4 | G28: 13 | Q28: 08DPR0069V | R28: 08DES0048B | S28: 1650074 | T28: M | U28: 6 | V28: 5 | W28: 3 | X28: 4 | Y28: 2 | Z28: 20 | AA28: 50 | AB28: 41.66666667 | AC28: 25 | AD28: 33.33333333 | AE28: 16.66666667 | AF28: 33.33333333
Q29: 08DPR0069V | R29: 08DES0048B | S29: 1647403 | T29: M | U29: 8 | V29: 3 | W29: 4 | X29: 2 | Y29: 4 | Z29: 21 | AA29: 66.66666667 | AB29: 25 | AC29: 33.33333333 | AD29: 16.66666667 | AE29: 33.33333333 | AF29: 35
AA30: 0 | AB30: 0 | AC30: 0 | AD30: 0 | AE30: 0 | AF30: 0
AA31: 0 | AB31: 0 | AC31: 0 | AD31: 0 | AE31: 0 | AF31: 0
AA32: 0 | AB32: 0 | AC32: 0 | AD32: 0 | AE32: 0 | AF32: 0
AA33: 0 | AB33: 0 | AC33: 0 | AD33: 0 | AE33: 0 | AF33: 0
AA34: 0 | AB34: 0 | AC34: 0 | AD34: 0 | AE34: 0 | AF34: 0
AA35: 0 | AB35: 0 | AC35: 0 | AD35: 0 | AE35: 0 | AF35: 0
AA36: 0 | AB36: 0 | AC36: 0 | AD36: 0 | AE36: 0 | AF36: 0
AA37: 0 | AB37: 0 | AC37: 0 | AD37: 0 | AE37: 0 | AF37: 0
AA38: 0 | AB38: 0 | AC38: 0 | AD38: 0 | AE38: 0 | AF38: 0
AA39: 0 | AB39: 0 | AC39: 0 | AD39: 0 | AE39: 0 | AF39: 0
AA40: 0 | AB40: 0 | AC40: 0 | AD40: 0 | AE40: 0 | AF40: 0
AA41: 0 | AB41: 0 | AC41: 0 | AD41: 0 | AE41: 0 | AF41: 0
AA42: 0 | AB42: 0 | AC42: 0 | AD42: 0 | AE42: 0 | AF42: 0
AA43: 0 | AB43: 0 | AC43: 0 | AD43: 0 | AE43: 0 | AF43: 0
AA44: 0 | AB44: 0 | AC44: 0 | AD44: 0 | AE44: 0 | AF44: 0
AA45: 0 | AB45: 0 | AC45: 0 | AD45: 0 | AE45: 0 | AF45: 0
AA46: =(U46*100)/12 -> 0 | AB46: =(V46*100)/12 -> 0 | AC46: =(W46*100)/12 -> 0 | AD46: =(X46*100)/12 -> 0 | AE46: =(Y46*100)/12 -> 0 | AF46: =(Z46*100)/60 -> 0
AA47: 0 | AB47: 0 | AC47: 0 | AD47: 0 | AE47: 0 | AF47: 0
AA48: 0 | AB48: 0 | AC48: 0 | AD48: 0 | AE48: 0 | AF48: 0
AA49: 0 | AB49: 0 | AC49: 0 | AD49: 0 | AE49: 0 | AF49: 0
AA50: 0 | AB50: 0 | AC50: 0 | AD50: 0 | AE50: 0 | AF50: 0
AA51: 0 | AB51: 0 | AC51: 0 | AD51: 0 | AE51: 0 | AF51: 0
AA52: 0 | AB52: 0 | AC52: 0 | AD52: 0 | AE52: 0 | AF52: 0
AA53: 0 | AB53: 0 | AC53: 0 | AD53: 0 | AE53: 0 | AF53: 0
AA54: 0 | AB54: 0 | AC54: 0 | AD54: 0 | AE54: 0 | AF54: 0
AA55: 0 | AB55: 0 | AC55: 0 | AD55: 0 | AE55: 0 | AF55: 0
AA56: 0 | AB56: 0 | AC56: 0 | AD56: 0 | AE56: 0 | AF56: 0
AA57: 0 | AB57: 0 | AC57: 0 | AD57: 0 | AE57: 0 | AF57: 0
AA58: 0 | AB58: 0 | AC58: 0 | AD58: 0 | AE58: 0 | AF58: 0
AA59: 0 | AB59: 0 | AC59: 0 | AD59: 0 | AE59: 0 | AF59: 0
AA60: 0 | AB60: 0 | AC60: 0 | AD60: 0 | AE60: 0 | AF60: 0
AA61: 0 | AB61: 0 | AC61: 0 | AD61: 0 | AE61: 0 | AF61: 0
AA62: 0 | AB62: 0 | AC62: 0 | AD62: 0 | AE62: 0 | AF62: 0
AA63: 0 | AB63: 0 | AC63: 0 | AD63: 0 | AE63: 0 | AF63: 0
AA64: 0 | AB64: 0 | AC64: 0 | AD64: 0 | AE64: 0 | AF64: 0
AA65: 0 | AB65: 0 | AC65: 0 | AD65: 0 | AE65: 0 | AF65: 0
AA66: 0 | AB66: 0 | AC66: 0 | AD66: 0 | AE66: 0 | AF66: 0
AA67: 0 | AB67: 0 | AC67: 0 | AD67: 0 | AE67: 0 | AF67: 0
AA68: 0 | AB68: 0 | AC68: 0 | AD68: 0 | AE68: 0 | AF68: 0
AA69: 0 | AB69: 0 | AC69: 0 | AD69: 0 | AE69: 0 | AF69: 0
AA70: 0 | AB70: 0 | AC70: 0 | AD70: 0 | AE70: 0 | AF70: 0
AA71: 0 | AB71: 0 | AC71: 0 | AD71: 0 | AE71: 0 | AF71: 0
AA72: 0 | AB72: 0 | AC72: 0 | AD72: 0 | AE72: 0 | AF72: 0
AA73: 0 | AB73: 0 | AC73: 0 | AD73: 0 | AE73: 0 | AF73: 0
AA74: 0 | AB74: 0 | AC74: 0 | AD74: 0 | AE74: 0 | AF74: 0
AA75: 0 | AB75: 0 | AC75: 0 | AD75: 0 | AE75: 0 | AF75: 0
AA76: 0 | AB76: 0 | AC76: 0 | AD76: 0 | AE76: 0 | AF76: 0
AA77: 0 | AB77: 0 | AC77: 0 | AD77: 0 | AE77: 0 | AF77: 0
AA78: 0 | AB78: 0 | AC78: 0 | AD78: 0 | AE78: 0 | AF78: 0
AA79: 0 | AB79: 0 | AC79: 0 | AD79: 0 | AE79: 0 | AF79: 0
AA80: 0 | AB80: 0 | AC80: 0 | AD80: 0 | AE80: 0 | AF80: 0
AA81: 0 | AB81: 0 | AC81: 0 | AD81: 0 | AE81: 0 | AF81: 0
AA82: 0 | AB82: 0 | AC82: 0 | AD82: 0 | AE82: 0 | AF82: 0
AA83: 0 | AB83: 0 | AC83: 0 | AD83: 0 | AE83: 0 | AF83: 0
AA84: 0 | AB84: 0 | AC84: 0 | AD84: 0 | AE84: 0 | AF84: 0
AA85: 0 | AB85: 0 | AC85: 0 | AD85: 0 | AE85: 0 | AF85: 0
AA86: 0 | AB86: 0 | AC86: 0 | AD86: 0 | AE86: 0 | AF86: 0
AA87: 0 | AB87: 0 | AC87: 0 | AD87: 0 | AE87: 0 | AF87: 0
AA88: 0 | AB88: 0 | AC88: 0 | AD88: 0 | AE88: 0 | AF88: 0
AA89: 0 | AB89: 0 | AC89: 0 | AD89: 0 | AE89: 0 | AF89: 0
AA90: 0 | AB90: 0 | AC90: 0 | AD90: 0 | AE90: 0 | AF90: 0
AA91: 0 | AB91: 0 | AC91: 0 | AD91: 0 | AE91: 0 | AF91: 0
AA92: 0 | AB92: 0 | AC92: 0 | AD92: 0 | AE92: 0 | AF92: 0
AA93: 0 | AB93: 0 | AC93: 0 | AD93: 0 | AE93: 0 | AF93: 0
AA94: 0 | AB94: 0 | AC94: 0 | AD94: 0 | AE94: 0 | AF94: 0
AA95: 0 | AB95: 0 | AC95: 0 | AD95: 0 | AE95: 0 | AF95: 0
AA96: 0 | AB96: 0 | AC96: 0 | AD96: 0 | AE96: 0 | AF96: 0
AA97: 0 | AB97: 0 | AC97: 0 | AD97: 0 | AE97: 0 | AF97: 0
AA98: 0 | AB98: 0 | AC98: 0 | AD98: 0 | AE98: 0 | AF98: 0
AA99: 0 | AB99: 0 | AC99: 0 | AD99: 0 | AE99: 0 | AF99: 0
AA100: 0 | AB100: 0 | AC100: 0 | AD100: 0 | AE100: 0 | AF100: 0
AA101: 0 | AB101: 0 | AC101: 0 | AD101: 0 | AE101: 0 | AF101: 0
AA102: 0 | AB102: 0 | AC102: 0 | AD102: 0 | AE102: 0 | AF102: 0
AA103: 0 | AB103: 0 | AC103: 0 | AD103: 0 | AE103: 0 | AF103: 0
AA104: 0 | AB104: 0 | AC104: 0 | AD104: 0 | AE104: 0 | AF104: 0
AA105: 0 | AB105: 0 | AC105: 0 | AD105: 0 | AE105: 0 | AF105: 0
AA106: 0 | AB106: 0 | AC106: 0 | AD106: 0 | AE106: 0 | AF106: 0
AA107: 0 | AB107: 0 | AC107: 0 | AD107: 0 | AE107: 0 | AF107: 0
AA108: 0 | AB108: 0 | AC108: 0 | AD108: 0 | AE108: 0 | AF108: 0
AA109: 0 | AB109: 0 | AC109: 0 | AD109: 0 | AE109: 0 | AF109: 0
AA110: =(U110*100)/12 -> 0 | AB110: =(V110*100)/12 -> 0 | AC110: =(W110*100)/12 -> 0 | AD110: =(X110*100)/12 -> 0 | AE110: =(Y110*100)/12 -> 0 | AF110: =(Z110*100)/60 -> 0
AA111: 0 | AB111: 0 | AC111: 0 | AD111: 0 | AE111: 0 | AF111: 0
AA112: 0 | AB112: 0 | AC112: 0 | AD112: 0 | AE112: 0 | AF112: 0
AA113: 0 | AB113: 0 | AC113: 0 | AD113: 0 | AE113: 0 | AF113: 0
AA114: 0 | AB114: 0 | AC114: 0 | AD114: 0 | AE114: 0 | AF114: 0
AA115: 0 | AB115: 0 | AC115: 0 | AD115: 0 | AE115: 0 | AF115: 0
AA116: 0 | AB116: 0 | AC116: 0 | AD116: 0 | AE116: 0 | AF116: 0
AA117: 0 | AB117: 0 | AC117: 0 | AD117: 0 | AE117: 0 | AF117: 0
AA118: 0 | AB118: 0 | AC118: 0 | AD118: 0 | AE118: 0 | AF118: 0
AA119: 0 | AB119: 0 | AC119: 0 | AD119: 0 | AE119: 0 | AF119: 0
AA120: 0 | AB120: 0 | AC120: 0 | AD120: 0 | AE120: 0 | AF120: 0
AA121: 0 | AB121: 0 | AC121: 0 | AD121: 0 | AE121: 0 | AF121: 0
AA122: 0 | AB122: 0 | AC122: 0 | AD122: 0 | AE122: 0 | AF122: 0
AA123: 0 | AB123: 0 | AC123: 0 | AD123: 0 | AE123: 0 | AF123: 0
AA124: 0 | AB124: 0 | AC124: 0 | AD124: 0 | AE124: 0 | AF124: 0
AA125: 0 | AB125: 0 | AC125: 0 | AD125: 0 | AE125: 0 | AF125: 0
AA126: 0 | AB126: 0 | AC126: 0 | AD126: 0 | AE126: 0 | AF126: 0
AA127: 0 | AB127: 0 | AC127: 0 | AD127: 0 | AE127: 0 | AF127: 0
AA128: 0 | AB128: 0 | AC128: 0 | AD128: 0 | AE128: 0 | AF128: 0
AA129: 0 | AB129: 0 | AC129: 0 | AD129: 0 | AE129: 0 | AF129: 0
AA130: 0 | AB130: 0 | AC130: 0 | AD130: 0 | AE130: 0 | AF130: 0
AA131: 0 | AB131: 0 | AC131: 0 | AD131: 0 | AE131: 0 | AF131: 0
AA132: 0 | AB132: 0 | AC132: 0 | AD132: 0 | AE132: 0 | AF132: 0
AA133: 0 | AB133: 0 | AC133: 0 | AD133: 0 | AE133: 0 | AF133: 0
AA134: 0 | AB134: 0 | AC134: 0 | AD134: 0 | AE134: 0 | AF134: 0
AA135: 0 | AB135: 0 | AC135: 0 | AD135: 0 | AE135: 0 | AF135: 0
AA136: 0 | AB136: 0 | AC136: 0 | AD136: 0 | AE136: 0 | AF136: 0
AA137: 0 | AB137: 0 | AC137: 0 | AD137: 0 | AE137: 0 | AF137: 0
AA138: 0 | AB138: 0 | AC138: 0 | AD138: 0 | AE138: 0 | AF138: 0
AA139: 0 | AB139: 0 | AC139: 0 | AD139: 0 | AE139: 0 | AF139: 0
AA140: 0 | AB140: 0 | AC140: 0 | AD140: 0 | AE140: 0 | AF140: 0
AA141: 0 | AB141: 0 | AC141: 0 | AD141: 0 | AE141: 0 | AF141: 0
AA142: 0 | AB142: 0 | AC142: 0 | AD142: 0 | AE142: 0 | AF142: 0
AA143: 0 | AB143: 0 | AC143: 0 | AD143: 0 | AE143: 0 | AF143: 0
AA144: 0 | AB144: 0 | AC144: 0 | AD144: 0 | AE144: 0 | AF144: 0
AA145: 0 | AB145: 0 | AC145: 0 | AD145: 0 | AE145: 0 | AF145: 0
AA146: 0 | AB146: 0 | AC146: 0 | AD146: 0 | AE146: 0 | AF146: 0
AA147: 0 | AB147: 0 | AC147: 0 | AD147: 0 | AE147: 0 | AF147: 0
AA148: 0 | AB148: 0 | AC148: 0 | AD148: 0 | AE148: 0 | AF148: 0
AA149: 0 | AB149: 0 | AC149: 0 | AD149: 0 | AE149: 0 | AF149: 0
AA150: 0 | AB150: 0 | AC150: 0 | AD150: 0 | AE150: 0 | AF150: 0
AA151: 0 | AB151: 0 | AC151: 0 | AD151: 0 | AE151: 0 | AF151: 0
AA152: 0 | AB152: 0 | AC152: 0 | AD152: 0 | AE152: 0 | AF152: 0
AA153: 0 | AB153: 0 | AC153: 0 | AD153: 0 | AE153: 0 | AF153: 0
AA154: 0 | AB154: 0 | AC154: 0 | AD154: 0 | AE154: 0 | AF154: 0
AA155: 0 | AB155: 0 | AC155: 0 | AD155: 0 | AE155: 0 | AF155: 0
AA156: 0 | AB156: 0 | AC156: 0 | AD156: 0 | AE156: 0 | AF156: 0
AA157: 0 | AB157: 0 | AC157: 0 | AD157: 0 | AE157: 0 | AF157: 0
AA158: 0 | AB158: 0 | AC158: 0 | AD158: 0 | AE158: 0 | AF158: 0
AA159: 0 | AB159: 0 | AC159: 0 | AD159: 0 | AE159: 0 | AF159: 0
AA160: 0 | AB160: 0 | AC160: 0 | AD160: 0 | AE160: 0 | AF160: 0
AA161: 0 | AB161: 0 | AC161: 0 | AD161: 0 | AE161: 0 | AF161: 0
AA162: 0 | AB162: 0 | AC162: 0 | AD162: 0 | AE162: 0 | AF162: 0
AA163: 0 | AB163: 0 | AC163: 0 | AD163: 0 | AE163: 0 | AF163: 0
AA164: 0 | AB164: 0 | AC164: 0 | AD164: 0 | AE164: 0 | AF164: 0
AA165: 0 | AB165: 0 | AC165: 0 | AD165: 0 | AE165: 0 | AF165: 0
AA166: 0 | AB166: 0 | AC166: 0 | AD166: 0 | AE166: 0 | AF166: 0
AA167: 0 | AB167: 0 | AC167: 0 | AD167: 0 | AE167: 0 | AF167: 0
AA168: 0 | AB168: 0 | AC168: 0 | AD168: 0 | AE168: 0 | AF168: 0
AA169: 0 | AB169: 0 | AC169: 0 | AD169: 0 | AE169: 0 | AF169: 0
AA170: 0 | AB170: 0 | AC170: 0 | AD170: 0 | AE170: 0 | AF170: 0
AA171: 0 | AB171: 0 | AC171: 0 | AD171: 0 | AE171: 0 | AF171: 0
AA172: 0 | AB172: 0 | AC172: 0 | AD172: 0 | AE172: 0 | AF172: 0
AA173: 0 | AB173: 0 | AC173: 0 | AD173: 0 | AE173: 0 | AF173: 0
AA174: =(U174*100)/12 -> 0 | AB174: =(V174*100)/12 -> 0 | AC174: =(W174*100)/12 -> 0 | AD174: =(X174*100)/12 -> 0 | AE174: =(Y174*100)/12 -> 0 | AF174: =(Z174*100)/60 -> 0
AA175: 0 | AB175: 0 | AC175: 0 | AD175: 0 | AE175: 0 | AF175: 0
AA176: 0 | AB176: 0 | AC176: 0 | AD176: 0 | AE176: 0 | AF176: 0
AA177: 0 | AB177: 0 | AC177: 0 | AD177: 0 | AE177: 0 | AF177: 0
AA178: 0 | AB178: 0 | AC178: 0 | AD178: 0 | AE178: 0 | AF178: 0
AA179: 0 | AB179: 0 | AC179: 0 | AD179: 0 | AE179: 0 | AF179: 0
AA180: 0 | AB180: 0 | AC180: 0 | AD180: 0 | AE180: 0 | AF180: 0
AA181: 0 | AB181: 0 | AC181: 0 | AD181: 0 | AE181: 0 | AF181: 0
AA182: 0 | AB182: 0 | AC182: 0 | AD182: 0 | AE182: 0 | AF182: 0
AA183: 0 | AB183: 0 | AC183: 0 | AD183: 0 | AE183: 0 | AF183: 0
AA184: 0 | AB184: 0 | AC184: 0 | AD184: 0 | AE184: 0 | AF184: 0
AA185: 0 | AB185: 0 | AC185: 0 | AD185: 0 | AE185: 0 | AF185: 0
AA186: 0 | AB186: 0 | AC186: 0 | AD186: 0 | AE186: 0 | AF186: 0
AA187: 0 | AB187: 0 | AC187: 0 | AD187: 0 | AE187: 0 | AF187: 0
AA188: 0 | AB188: 0 | AC188: 0 | AD188: 0 | AE188: 0 | AF188: 0
AA189: 0 | AB189: 0 | AC189: 0 | AD189: 0 | AE189: 0 | AF189: 0
AA190: 0 | AB190: 0 | AC190: 0 | AD190: 0 | AE190: 0 | AF190: 0
AA191: 0 | AB191: 0 | AC191: 0 | AD191: 0 | AE191: 0 | AF191: 0
AA192: 0 | AB192: 0 | AC192: 0 | AD192: 0 | AE192: 0 | AF192: 0
AA193: 0 | AB193: 0 | AC193: 0 | AD193: 0 | AE193: 0 | AF193: 0
AA194: 0 | AB194: 0 | AC194: 0 | AD194: 0 | AE194: 0 | AF194: 0
AA195: 0 | AB195: 0 | AC195: 0 | AD195: 0 | AE195: 0 | AF195: 0
AA196: 0 | AB196: 0 | AC196: 0 | AD196: 0 | AE196: 0 | AF196: 0
AA197: 0 | AB197: 0 | AC197: 0 | AD197: 0 | AE197: 0 | AF197: 0
AA198: 0 | AB198: 0 | AC198: 0 | AD198: 0 | AE198: 0 | AF198: 0
AA199: 0 | AB199: 0 | AC199: 0 | AD199: 0 | AE199: 0 | AF199: 0
AA200: 0 | AB200: 0 | AC200: 0 | AD200: 0 | AE200: 0 | AF200: 0
AA201: 0 | AB201: 0 | AC201: 0 | AD201: 0 | AE201: 0 | AF201: 0
... 432 more rows

Sheet CONTEXTO
A1: INFORMACIÓN DEL CONTEXTO DE LAS ESCUELAS
D3: ZONA | E3: SECTOR | F3: CCT_ORIGEN | G3: CCT_DESTINO | H3: ESCUELA | I3: TURNO | J3: MODALIDAD | K3: TIEMPO COMPLETO | L3: ORGANIZACIÓN | M3: MUNICIPIO | N3: LOCALIDAD | O3: REGION | P3: DOMICILIO | Q3: COLONIA | R3: Recuento de N_BREAK_2019
D4: 6 | E4: 2 | F4: 08DPR0077D | G4: 08EES0016I | H4: FRANCISCO VILLA | I4: VESPERTINO | J4: PRIMARIA GENERAL FEDERAL TRANSFERIDO | K4: (en blanco) | L4: COMPLETA | M4: 019 CHIHUAHUA | N4: 0001 CHIHUAHUA | O4: 001 CHIHUAHUA | P4: FELIPE.ANGELES Y 9A DIVISION DEL NORTE | Q4: RANCHERIA JUAREZ | R4: 1
D5: 6 | E5: 2 | F5: 08DPR0088J | G5: 08DES0017I | H5: CESAR AUGUSTO SANDINO | I5: MATUTINO | J5: PRIMARIA GENERAL FEDERAL TRANSFERIDO | K5: (en blanco) | L5: COMPLETA | M5: 019 CHIHUAHUA | N5: 0001 CHIHUAHUA | O5: 001 CHIHUAHUA | P5: SANDINO NUM.300 | Q5: DIVISION DEL NORTE | R5: 1
D6: 6 | E6: 2 | F6: 08DPR0630D | G6: 08EES0016I | H6: FRANCISCO VILLA | I6: MATUTINO | J6: PRIMARIA GENERAL FEDERAL TRANSFERIDO | K6: (en blanco) | L6: COMPLETA | M6: 019 CHIHUAHUA | N6: 0001 CHIHUAHUA | O6: 001 CHIHUAHUA | P6: FELIPE ANGELES Y 9A DIVISION DEL NORTE | Q6: RANCHERIA JUAREZ | R6: 1
D7: 6 | E7: 2 | F7: 08DPR2133T | G7: 08DST0058A | H7: NARCISO MENDOZA | I7: MATUTINO | J7: PRIMARIA GENERAL FEDERAL TRANSFERIDO | K7: (en blanco) | L7: COMPLETA | M7: 019 CHIHUAHUA | N7: 0001 CHIHUAHUA | O7: 001 CHIHUAHUA | P7: NUEVA VIZCAYA Y ALVARO NUNEZ NUM.8442 | Q7: MARMOL I | R7: 1
D8: 6 | E8: 2 | F8: 08DPR2259Z | G8: 08DST0058A | H8: 15 DE MAYO | I8: MATUTINO | J8: PRIMARIA GENERAL FEDERAL TRANSFERIDO | K8: (en blanco) | L8: COMPLETA | M8: 019 CHIHUAHUA | N8: 0001 CHIHUAHUA | O8: 001 CHIHUAHUA | P8: CLAUDINA ROMERO Y FRANCISCO DE MORA SN | Q8: MARMOL III | R8: 1
D9: 6 | E9: 2 | F9: 08DPR2495C | G9: 08EES0203C | H9: SOR JUANA INES DE LA CRUZ | I9: MATUTINO | J9: PRIMARIA GENERAL FEDERAL TRANSFERIDO | K9: (en blanco) | L9: COMPLETA | M9: 019 CHIHUAHUA | N9: 0001 CHIHUAHUA | O9: 001 CHIHUAHUA | P9: DIANA LAURA ROJAS Y 74 | Q9: VISTAS CERRO GRANDE | R9: 1
D10: 6 | E10: 2 | F10: 08DPR2575O | G10: 08ETV0205G | H10: SOR JUANA INES DE LA CRUZ | I10: VESPERTINO | J10: PRIMARIA GENERAL FEDERAL TRANSFERIDO | K10: (en blanco) | L10: COMPLETA | M10: 019 CHIHUAHUA | N10: 0001 CHIHUAHUA | O10: 001 CHIHUAHUA | P10: (en blanco) | Q10: VISTAS CERRO GRANDE | R10: 1

Sheet RESULTADOS POR ZONA ESCOLAR
C1: RESULTADOS POR CADA ESCUELA DE LA ZONA ESCOLAR (CANTIDAD DE ACIERTOS)
U2: ZONA | V2: MODALIDAD | W2: CLAVECCT
U3: 16 | V3: PRIMARIA GENERAL ESTATAL | W3: 08EPR0188H
K4: ZONA | U4: 16 | V4: PRIMARIA GENERAL ESTATAL | W4: 08EPR0345H
K5: 16 | U5: 16 | V5: PRIMARIA GENERAL ESTATAL | W5: 08EPR0348E
U6: 16 | V6: PRIMARIA GENERAL ESTATAL | W6: 08EPR0349D
U7: 16 | V7: PRIMARIA GENERAL ESTATAL | W7: 08EPR0486G
U8: 16 | V8: PRIMARIA GENERAL ESTATAL | W8: 08EPR0748A
A17: ZONA | B17: MODALIDAD | C17: CLAVECCT | D17: ORACIONES_19 | E17: LECTURA_19 | F17: MATEMÁT_19 | G17: GEOMETRÍA_19 | H17: RAZONAM_19
A18: 16 | B18: PRIMARIA GENERAL ESTATAL | C18: 08EPR0349D | D18: 9 | E18: 6 | F18: 5 | G18: 6 | H18: 5
A19: 16 | B19: PRIMARIA GENERAL ESTATAL | C19: 08EPR0348E | D19: 9 | E19: 5 | F19: 5 | G19: 6 | H19: 4
A20: 16 | B20: PRIMARIA GENERAL ESTATAL | C20: 08EPR0748A | D20: 8 | E20: 5 | F20: 4 | G20: 4 | H20: 4
A21: 16 | B21: PRIMARIA GENERAL ESTATAL | C21: 08EPR0486G | D21: 8 | E21: 6 | F21: 6 | G21: 5 | H21: 6
A22: 16 | B22: PRIMARIA GENERAL ESTATAL | C22: 08EPR0188H | D22: 8 | E22: 6 | F22: 5 | G22: 5 | H22: 4
A23: 16 | B23: PRIMARIA GENERAL ESTATAL | C23: 08EPR0345H | D23: 8 | E23: 5 | F23: 5 | G23: 4 | H23: 4

Sheet ZONA MODALIDAD
D2: TURNO | E2: MODALIDAD | F2: ZONA | G2: CLAVECCT | H2: Suma de total aciertos
D3: MATUTINO | E3: PRIMARIA GENERAL FEDERAL TRANSFERIDO | F3: 29 | G3: 08DPR0083O | H3: 34
D4: MATUTINO | E4: PRIMARIA GENERAL FEDERAL TRANSFERIDO | F4: 29 | G4: 08DPR0673B | H4: 30
D5: MATUTINO | E5: PRIMARIA GENERAL FEDERAL TRANSFERIDO | F5: 29 | G5: 08DPR1404O | H5: 25
D6: MATUTINO | E6: PRIMARIA GENERAL FEDERAL TRANSFERIDO | F6: 29 | G6: 08DPR1637D | H6: 28
D7: MATUTINO | E7: PRIMARIA GENERAL FEDERAL TRANSFERIDO | F7: 29 | G7: 08DPR2318Z | H7: 34
D8: MATUTINO | E8: PRIMARIA GENERAL FEDERAL TRANSFERIDO | F8: 29 | G8: 08DPR2551E | H8: 32
D9: MATUTINO | E9: PRIMARIA GENERAL FEDERAL TRANSFERIDO | F9: 29 | G9: 08DPR2663I | H9: 37
D10: VESPERTINO | E10: PRIMARIA GENERAL FEDERAL TRANSFERIDO | F10: 29 | G10: 08DPR2464J | H10: 27

Sheet MUNICIPIO REGIÓN
C3: MODALIDAD | D3: ÍNDICE | E3: REGION | F3: ZONA | G3: TIPODEORGANIZACIÓN | H3: CCT_ORIGEN | I3: Suma de total aciertos
C4: PRIMARIA GENERAL FEDERAL TRANSFERIDO | D4: 021 DELICIAS | E4: 011 DELICIAS | F4: 124 | G4: COMPLETA | H4: 08DPR0571E | I4: 17
C5: PRIMARIA GENERAL FEDERAL TRANSFERIDO | D5: 021 DELICIAS | E5: 011 DELICIAS | F5: 124 | G5: COMPLETA | H5: 08DPR0598L | I5: 23
C6: PRIMARIA GENERAL FEDERAL TRANSFERIDO | D6: 021 DELICIAS | E6: 011 DELICIAS | F6: 124 | G6: COMPLETA | H6: 08DPR0706C | I6: 30
C7: PRIMARIA GENERAL FEDERAL TRANSFERIDO | D7: 021 DELICIAS | E7: 011 DELICIAS | F7: 124 | G7: COMPLETA | H7: 08DPR1291B | I7: 21
C8: PRIMARIA GENERAL FEDERAL TRANSFERIDO | D8: 021 DELICIAS | E8: 011 DELICIAS | F8: 124 | G8: COMPLETA | H8: 08DPR1811U | I8: 33
C9: PRIMARIA GENERAL FEDERAL TRANSFERIDO | D9: 021 DELICIAS | E9: 011 DELICIAS | F9: 124 | G9: COMPLETA | H9: 08DPR1812T | I9: 28
C10: PRIMARIA GENERAL FEDERAL TRANSFERIDO | D10: 021 DELICIAS | E10: 011 DELICIAS | F10: 124 | G10: COMPLETA | H10: 08DPR2146X | I10: 24
C11: PRIMARIA GENERAL FEDERAL TRANSFERIDO | D11: 021 DELICIAS | E11: 011 DELICIAS | F11: 124 | G11: COMPLETA | H11: 08DPR2197D | I11: 26
C12: PRIMARIA GENERAL FEDERAL TRANSFERIDO | D12: 021 DELICIAS | E12: 011 DELICIAS | F12: 124 | G12: COMPLETA | H12: 08DPR2388U | I12: 34
C13: PRIMARIA GENERAL FEDERAL TRANSFERIDO | D13: 021 DELICIAS | E13: 011 DELICIAS | F13: 124 | G13: COMPLETA | H13: 08DPR2654A | I13: 30
C14: PRIMARIA GENERAL FEDERAL TRANSFERIDO | D14: 021 DELICIAS | E14: 011 DELICIAS | F14: 124 | G14: COMPLETA | H14: 08DPR2681Y | I14: 27
C15: PRIMARIA GENERAL FEDERAL TRANSFERIDO | D15: 021 DELICIAS | E15: 011 DELICIAS | F15: 125 | G15: COMPLETA | H15: 08DPR0277B | I15: 28
C16: PRIMARIA GENERAL FEDERAL TRANSFERIDO | D16: 021 DELICIAS | E16: 011 DELICIAS | F16: 125 | G16: COMPLETA | H16: 08DPR0570F | I16: 26
C17: PRIMARIA GENERAL FEDERAL TRANSFERIDO | D17: 021 DELICIAS | E17: 011 DELICIAS | F17: 125 | G17: COMPLETA | H17: 08DPR0698K | I17: 38
C18: PRIMARIA GENERAL FEDERAL TRANSFERIDO | D18: 021 DELICIAS | E18: 011 DELICIAS | F18: 125 | G18: COMPLETA | H18: 08DPR1856Q | I18: 26
C19: PRIMARIA GENERAL FEDERAL TRANSFERIDO | D19: 021 DELICIAS | E19: 011 DELICIAS | F19: 125 | G19: COMPLETA | H19: 08DPR2323K | I19: 26
C20: PRIMARIA GENERAL FEDERAL TRANSFERIDO | D20: 021 DELICIAS | E20: 011 DELICIAS | F20: 125 | G20: COMPLETA | H20: 08DPR2612B | I20: 28
C21: PRIMARIA GENERAL FEDERAL TRANSFERIDO | D21: 021 DELICIAS | E21: 011 DELICIAS | F21: 125 | G21: MULTIGRADO | H21: 08DPR1666Z | I21: 18
C22: PRIMARIA GENERAL FEDERAL TRANSFERIDO | D22: 021 DELICIAS | E22: 011 DELICIAS | F22: 125 | G22: MULTIGRADO | H22: 08DPR1713T | I22: 18
C23: PRIMARIA GENERAL FEDERAL TRANSFERIDO | D23: 021 DELICIAS | E23: 011 DELICIAS | F23: 125 | G23: MULTIGRADO | H23: 08DPR2147W | I23: 23
C24: PRIMARIA GENERAL FEDERAL TRANSFERIDO | D24: 021 DELICIAS | E24: 011 DELICIAS | F24: 125 | G24: MULTIGRADO | H24: 08DPR2309R | I24: 20
C25: PRIMARIA GENERAL FEDERAL TRANSFERIDO | D25: 021 DELICIAS | E25: 011 DELICIAS | F25: 126 | G25: COMPLETA | H25: 08DPR0046K | I25: 27
C26: PRIMARIA GENERAL FEDERAL TRANSFERIDO | D26: 021 DELICIAS | E26: 011 DELICIAS | F26: 126 | G26: COMPLETA | H26: 08DPR0341M | I26: 31
C27: PRIMARIA GENERAL FEDERAL TRANSFERIDO | D27: 021 DELICIAS | E27: 011 DELICIAS | F27: 126 | G27: COMPLETA | H27: 08DPR0699J | I27: 34
C28: PRIMARIA GENERAL FEDERAL TRANSFERIDO | D28: 021 DELICIAS | E28: 011 DELICIAS | F28: 126 | G28: COMPLETA | H28: 08DPR1436G | I28: 25
C29: PRIMARIA GENERAL FEDERAL TRANSFERIDO | D29: 021 DELICIAS | E29: 011 DELICIAS | F29: 126 | G29: COMPLETA | H29: 08DPR2235Q | I29: 29
C30: PRIMARIA GENERAL FEDERAL TRANSFERIDO | D30: 021 DELICIAS | E30: 011 DELICIAS | F30: 126 | G30: COMPLETA | H30: 08DPR2311F | I30: 29
C31: PRIMARIA GENERAL FEDERAL TRANSFERIDO | D31: 021 DELICIAS | E31: 011 DELICIAS | F31: 126 | G31: COMPLETA | H31: 08DPR2372T | I31: 26
C32: PRIMARIA GENERAL FEDERAL TRANSFERIDO | D32: 021 DELICIAS | E32: 011 DELICIAS | F32: 127 | G32: COMPLETA | H32: 08DPR0685G | I32: 25
C33: PRIMARIA GENERAL FEDERAL TRANSFERIDO | D33: 021 DELICIAS | E33: 011 DELICIAS | F33: 127 | G33: COMPLETA | H33: 08DPR1004S | I33: 35
C34: PRIMARIA GENERAL FEDERAL TRANSFERIDO | D34: 021 DELICIAS | E34: 011 DELICIAS | F34: 127 | G34: COMPLETA | H34: 08DPR1258U | I34: 43
C35: PRIMARIA GENERAL FEDERAL TRANSFERIDO | D35: 021 DELICIAS | E35: 011 DELICIAS | F35: 127 | G35: COMPLETA | H35: 08DPR1514U | I35: 44
C36: PRIMARIA GENERAL FEDERAL TRANSFERIDO | D36: 021 DELICIAS | E36: 011 DELICIAS | F36: 127 | G36: COMPLETA | H36: 08DPR1566Z | I36: 33
C37: PRIMARIA GENERAL FEDERAL TRANSFERIDO | D37: 021 DELICIAS | E37: 011 DELICIAS | F37: 127 | G37: COMPLETA | H37: 08DPR2646S | I37: 29
C38: PRIMARIA GENERAL FEDERAL TRANSFERIDO | D38: 021 DELICIAS | E38: 011 DELICIAS | F38: 128 | G38: COMPLETA | H38: 08DPR0652P | I38: 35
C39: PRIMARIA GENERAL FEDERAL TRANSFERIDO | D39: 021 DELICIAS | E39: 011 DELICIAS | F39: 128 | G39: COMPLETA | H39: 08DPR0695N | I39: 35
C40: PRIMARIA GENERAL FEDERAL TRANSFERIDO | D40: 021 DELICIAS | E40: 011 DELICIAS | F40: 128 | G40: COMPLETA | H40: 08DPR0696M | I40: 33
C41: PRIMARIA GENERAL FEDERAL TRANSFERIDO | D41: 021 DELICIAS | E41: 011 DELICIAS | F41: 128 | G41: COMPLETA | H41: 08DPR0742H | I41: 29
C42: PRIMARIA GENERAL FEDERAL TRANSFERIDO | D42: 021 DELICIAS | E42: 011 DELICIAS | F42: 128 | G42: COMPLETA | H42: 08DPR1101U | I42: 37
C43: PRIMARIA GENERAL FEDERAL TRANSFERIDO | D43: 021 DELICIAS | E43: 011 DELICIAS | F43: 128 | G43: COMPLETA | H43: 08DPR1453X | I43: 42
C44: PRIMARIA GENERAL FEDERAL TRANSFERIDO | D44: 021 DELICIAS | E44: 011 DELICIAS | F44: 129 | G44: COMPLETA | H44: 08DPR0597M | I44: 37
C45: PRIMARIA GENERAL FEDERAL TRANSFERIDO | D45: 021 DELICIAS | E45: 011 DELICIAS | F45: 129 | G45: COMPLETA | H45: 08DPR0693P | I45: 41
C46: PRIMARIA GENERAL FEDERAL TRANSFERIDO | D46: 021 DELICIAS | E46: 011 DELICIAS | F46: 129 | G46: COMPLETA | H46: 08DPR1229Z | I46: 39
C47: PRIMARIA GENERAL FEDERAL TRANSFERIDO | D47: 021 DELICIAS | E47: 011 DELICIAS | F47: 129 | G47: COMPLETA | H47: 08DPR1388N | I47: 41
C48: PRIMARIA GENERAL FEDERAL TRANSFERIDO | D48: 021 DELICIAS | E48: 011 DELICIAS | F48: 129 | G48: COMPLETA | H48: 08DPR2025L | I48: 33
C49: PRIMARIA GENERAL FEDERAL TRANSFERIDO | D49: 021 DELICIAS | E49: 011 DELICIAS | F49: 129 | G49: COMPLETA | H49: 08DPR2107V | I49: 25
C50: PRIMARIA GENERAL FEDERAL TRANSFERIDO | D50: 021 DELICIAS | E50: 011 DELICIAS | F50: 129 | G50: COMPLETA | H50: 08DPR2167J | I50: 27
C51: PRIMARIA GENERAL FEDERAL TRANSFERIDO | D51: 021 DELICIAS | E51: 011 DELICIAS | F51: 129 | G51: COMPLETA | H51: 08DPR2560M | I51: 29
C52: PRIMARIA GENERAL FEDERAL TRANSFERIDO | D52: 021 DELICIAS | E52: 011 DELICIAS | F52: 129 | G52: COMPLETA | H52: 08DPR2655Z | I52: 25
C53: PRIMARIA GENERAL FEDERAL TRANSFERIDO | D53: 021 DELICIAS | E53: 011 DELICIAS | F53: 130 | G53: COMPLETA | H53: 08DPR1632I | I53: 30

Sheet ZONA ORGANIZACIÓN
C2: ZONA | D2: ORGANIZACIÓN | E2: CANTIDAD ESCUELAS | F2: ORACIONES_19 | G2: LECTURA_19 | H2: MATEMÁT_19 | I2: GEOMETRÍA_19 | J2: RAZONAM_19
C3: 36 | D3: COMPLETA | E3: 3 | F3: 8.666666667 | G3: 6 | H3: 5.333333333 | I3: 5.333333333 | J3: 4.333333333
C4: 36 | D4: UNITARIA | E4: 3 | F4: 3 | G4: 4 | H4: 3 | I4: 4 | J4: 4

Sheet RENDIM_UNIDAD
E2: Informe
C3: Media
C4: SOST_PRIMARIAS | D4: ORACIONES | E4: LECTURA | F4: MATEMÁTICAS | G4: GEOMETRÍA | H4: RAZONAMIENTO
C5: DPB | D5: 6.176 | E5: 4.4374 | F5: 4.0181 | G5: 4.0436 | H5: 3.4646
C6: DPR | D6: 8.4247 | E6: 6.0656 | F6: 4.6629 | G6: 4.8287 | H6: 4.9677
C7: EPR | D7: 8.6624 | E7: 6.2436 | F7: 4.7178 | G7: 4.9274 | H7: 5.0602
C8: PPR | D8: 9.5914 | E8: 7.1802 | F8: 5.3031 | G8: 5.8822 | H8: 6.1416
C9: Total | D9: 8.4947 | E9: 6.1255 | F9: 4.6884 | G9: 4.8756 | H9: 5.0092
C11: SOST_PRIMARIAS | D11: ORACIONES | E11: LECTURA | F11: MATEMÁTICAS | G11: GEOMETRÍA | H11: RAZONAMIENTO
C12: DPB | D12: =(D5*100)/12 -> 51.46666667 | E12: =(E5*100)/12 -> 36.97833333 | F12: =(F5*100)/12 -> 33.48416667 | G12: =(G5*100)/12 -> 33.69666667 | H12: =(H5*100)/12 -> 28.87166667
C13: DPR | D13: =(D6*100)/12 -> 70.20583333 | E13: 50.54666667 | F13: 38.8575 | G13: 40.23916667 | H13: 41.3975
C14: EPR | D14: 72.18666667 | E14: 52.03 | F14: 39.315 | G14: 41.06166667 | H14: 42.16833333
C15: PPR | D15: 79.92833333 | E15: 59.835 | F15: 44.1925 | G15: 49.01833333 | H15: 51.18
C16: Total | D16: =(D9*100)/12 -> 70.78916667 | E16: =(E9*100)/12 -> 51.04583333 | F16: 39.07 | G16: 40.63 | H16: 41.74333333

Sheet TIEMPO COMPLETO
J5: ESCUELAS DE TIEMPO COMPLETO
A6: Informe | I6: SECTOR | J6: TIEMPO COMPLETO | K6: ZONA | L6: ESCUELA | M6: CLAVECCT | N6: MODALIDAD | O6: TURNO | P6: TIPODEORGANIZACIÓN | Q6: MUNICIPIO | R6: LOCALIDAD | S6: REGION | T6: ORACIONES_19 | U6: LECTURA_19 | V6: MATEMÁTICAS_19 | W6: GEOMETRÍA_19 | X6: RAZONAM_19
A7: Media | I7: 7 | J7: SI | K7: 9 | L7: CENTRO REGIONAL DE EDUC. INT. JOSEFA ORTIZ DE DOMINGUEZ 2488 | M7: 08EPR0026W | N7: PRIMARIA GENERAL ESTATAL | O7: MATUTINO | P7: COMPLETA | Q7: 006 BACHÍNIVA | R7: 0001 BACHÍNIVA | S7: 019 GOBIERNO DEL ESTADO | T7: 8 | U7: 5 | V7: 4 | W7: 4 | X7: 3
A8: TIEMPO COMPLETO | B8: TIPO DE ORGANIZACIÓN | C8: ORACIONES | D8: LECTURA | E8: MATEMÁTICAS | F8: GEOMETRÍA | G8: RAZONAMIENTO | H8: N_BREAK_2019 | I8: 7 | J8: SI | K8: 9 | L8: CENTRO REGIONAL DE EDUC. INT. MARTIRES DE CHAPULTEPEC 2401 | M8: 08EPR0600I | N8: PRIMARIA GENERAL ESTATAL | O8: MATUTINO | P8: COMPLETA | Q8: 017 CUAUHTÉMOC | R8: 0106 COLONIA OBREGÓN (RUBIO) | S8: 019 GOBIERNO DEL ESTADO | T8: 9 | U8: 7 | V8: 5 | W8: 5 | X8: 6
B9: COMPLETA | C9: 8.3106 | D9: 5.9271 | E9: 4.6434 | F9: 4.7992 | G9: 4.5634 | H9: 30.93 | I9: 7 | J9: SI | K9: 9 | L9: PLUTARCO ELIAS CALLES 2009 | M9: 08EPR0461Y | N9: PRIMARIA GENERAL ESTATAL | O9: MATUTINO | P9: COMPLETA | Q9: 017 CUAUHTÉMOC | R9: 0001 CUAUHTÉMOC | S9: 019 GOBIERNO DEL ESTADO | T9: 9 | U9: 7 | V9: 6 | W9: 6 | X9: 6
B10: MULTIGRADO | C10: 6.7854 | D10: 4.6902 | E10: 4.101 | F10: 4.3399 | G10: 3.6642 | H10: 5.7
B11: UNITARIA | C11: 7.0688 | D11: 4.4601 | E11: 4.2138 | F11: 4.0326 | G11: 3.1232 | H11: 1.87
B12: Total | C12: 7.8943 | D12: 5.5639 | E12: 4.496 | F12: 4.652 | G12: 4.2785 | H12: 23.57

Sheet MODALIDAD Y TURNO
C2: MODALIDAD | D2: TURNO | E2: ORACIONES_19 | F2: LECTURA_19 | G2: MATEMÁTIC_19 | H2: GEOMETRÍA_19 | I2: RAZONAM_19
C3: PRIMARIA GENERAL SUBSIDIO | D3: MATUTINO | E3: 7.666666667 | F3: 6 | G3: 4 | H3: 4.333333333 | I3: 4
C4: PRIMARIA GENERAL SUBSIDIO | D4: VESPERTINO | E4: 7 | F4: 5 | G4: 4 | H4: 4 | I4: 4

Sheet ORGANIZACIÓN Y TURNO
C2: ORGANIZACIÓN | D2: TURNO | E2: ORACIONES_19 | F2: LECTURA_19 | G2: MATEMÁT_19 | H2: GEOMETRÍA_19 | I2: RAZONAM_19
C3: COMPLETA | D3: DISCONTINUO | E3: 7 | F3: 5 | G3: 4.666666667 | H3: 4.333333333 | I3: 3.666666667
C4: COMPLETA | D4: MATUTINO | E4: 8.521021021 | F4: 6.105105105 | G4: 4.732732733 | H4: 4.896396396 | I4: 4.959459459
C5: COMPLETA | D5: VESPERTINO | E5: 7.743478261 | F5: 5.469565217 | G5: 4.352173913 | H5: 4.404347826 | I5: 4.3
C6: MULTIGRADO | D6: DISCONTINUO | E6: 7.214285714 | F6: 5.428571429 | G6: 4.142857143 | H6: 3.928571429 | I6: 3.571428571
C7: MULTIGRADO | D7: MATUTINO | E7: 7.582608696 | F7: 5.156521739 | G7: 4.426086957 | H7: 4.539130435 | I7: 3.739130435
C8: MULTIGRADO | D8: VESPERTINO | E8: 7.6 | F8: 5.7 | G8: 4.3 | H8: 4.5 | I8: 4.1
C9: UNITARIA | D9: DISCONTINUO | E9: 7.5 | F9: 5.0625 | G9: 4.1875 | H9: 4.4375 | I9: 3.5
C10: UNITARIA | D10: MATUTINO | E10: 7.222222222 | F10: 4.861111111 | G10: 4 | H10: 4.444444444 | I10: 3.638888889
C11: UNITARIA | D11: VESPERTINO | E11: 7.6 | F11: 4.8 | G11: 3.6 | H11: 4 | I11: 4.6

Sheet LECTURA ESC-EST
O1: ORACIONES
M2: ORIGEN | N2: FICHA | O2: 1 | P2: 2 | Q2: 3 | R2: 4 | S2: 5 | T2: 6 | U2: 7 | V2: 8 | W2: 9 | X2: 10 | Y2: 11 | Z2: 12 | AC2: ORIGEN | AD2: CO1 | AE2: CO2 | AF2: CO3 | AG2: CO4 | AH2: CO5 | AI2: CO6 | AJ2: CO7 | AK2: CO8 | AL2: CO9 | AM2: CO10 | AN2: CO11 | AO2: CO12
M3: 08DPR0695N | N3: 1653704 | O3: 1 | P3: 1 | Q3: 1 | R3: 0 | S3: 0 | T3: 1 | U3: 1 | V3: 1 | W3: 1 | X3: 1 | Y3: 1 | Z3: 0 | AC3: 08DPR0695N | AD3: 0.9111111111 | AE3: 0.9555555556 | AF3: 0.8444444444 | AG3: 0.6444444444 | AH3: 0.9222222222 | AI3: 0.8222222222 | AJ3: 0.9777777778 | AK3: 0.9666666667 | AL3: 0.7 | AM3: 0.8777777778 | AN3: 0.6333333333 | AO3: 0.7333333333
M4: 08DPR0695N | N4: 1655335 | O4: 0 | P4: 1 | Q4: 1 | R4: 1 | S4: 1 | T4: 1 | U4: 1 | V4: 1 | W4: 1 | X4: 1 | Y4: 1 | Z4: 1
M5: 08DPR0695N | N5: 1655462 | O5: 1 | P5: 1 | Q5: 1 | R5: 0 | S5: 1 | T5: 1 | U5: 1 | V5: 1 | W5: 1 | X5: 1 | Y5: 0 | Z5: 0
M6: 08DPR0695N | N6: 1655688 | O6: 1 | P6: 1 | Q6: 1 | R6: 0 | S6: 1 | T6: 1 | U6: 1 | V6: 1 | W6: 1 | X6: 1 | Y6: 1 | Z6: 1
M7: 08DPR0695N | N7: 1658321 | O7: 1 | P7: 1 | Q7: 1 | R7: 1 | S7: 1 | T7: 1 | U7: 1 | V7: 1 | W7: 1 | X7: 1 | Y7: 0 | Z7: 1
M8: 08DPR0695N | N8: 1673239 | O8: 1 | P8: 1 | Q8: 0 | R8: 0 | S8: 1 | T8: 0 | U8: 1 | V8: 1 | W8: 0 | X8: 1 | Y8: 0 | Z8: 1
M9: 08DPR0695N | N9: 1673892 | O9: 1 | P9: 1 | Q9: 1 | R9: 1 | S9: 1 | T9: 1 | U9: 1 | V9: 1 | W9: 1 | X9: 0 | Y9: 1 | Z9: 1
M10: 08DPR0695N | N10: 1673894 | O10: 1 | P10: 1 | Q10: 1 | R10: 0 | S10: 1 | T10: 1 | U10: 1 | V10: 1 | W10: 1 | X10: 1 | Y10: 1 | Z10: 1
M11: 08DPR0695N | N11: 1677660 | O11: 1 | P11: 1 | Q11: 1 | R11: 1 | S11: 1 | T11: 1 | U11: 1 | V11: 0 | W11: 0 | X11: 1 | Y11: 0 | Z11: 1
M12: 08DPR0695N | N12: 1680106 | O12: 1 | P12: 1 | Q12: 1 | R12: 1 | S12: 1 | T12: 1 | U12: 1 | V12: 1 | W12: 1 | X12: 1 | Y12: 1 | Z12: 1
M13: 08DPR0695N | N13: 1692334 | O13: 1 | P13: 1 | Q13: 1 | R13: 1 | S13: 1 | T13: 1 | U13: 1 | V13: 1 | W13: 0 | X13: 0 | Y13: 1 | Z13: 0
M14: 08DPR0695N | N14: 1692933 | O14: 0 | P14: 1 | Q14: 0 | R14: 0 | S14: 1 | T14: 0 | U14: 1 | V14: 1 | W14: 1 | X14: 0 | Y14: 0 | Z14: 1
M15: 08DPR0695N | N15: 1693507 | O15: 1 | P15: 1 | Q15: 0 | R15: 1 | S15: 0 | T15: 0 | U15: 1 | V15: 1 | W15: 1 | X15: 1 | Y15: 0 | Z15: 1
M16: 08DPR0695N | N16: 1695946 | O16: 1 | P16: 1 | Q16: 1 | R16: 1 | S16: 1 | T16: 1 | U16: 1 | V16: 1 | W16: 0 | X16: 1 | Y16: 1 | Z16: 1
M17: 08DPR0695N | N17: 1705096 | O17: 1 | P17: 1 | Q17: 1 | R17: 1 | S17: 1 | T17: 1 | U17: 1 | V17: 1 | W17: 0 | X17: 1 | Y17: 1 | Z17: 1
M18: 08DPR0695N | N18: 1705387 | O18: 1 | P18: 1 | Q18: 1 | R18: 1 | S18: 1 | T18: 1 | U18: 1 | V18: 1 | W18: 0 | X18: 1 | Y18: 1 | Z18: 1
M19: 08DPR0695N | N19: 1705391 | O19: 1 | P19: 1 | Q19: 1 | R19: 1 | S19: 1 | T19: 1 | U19: 1 | V19: 1 | W19: 0 | X19: 1 | Y19: 0 | Z19: 1
M20: 08DPR0695N | N20: 1706377 | O20: 1 | P20: 1 | Q20: 1 | R20: 1 | S20: 1 | T20: 1 | U20: 1 | V20: 1 | W20: 1 | X20: 0 | Y20: 0 | Z20: 1
M21: 08DPR0695N | N21: 1707710 | O21: 1 | P21: 1 | Q21: 1 | R21: 1 | S21: 1 | T21: 1 | U21: 1 | V21: 1 | W21: 1 | X21: 1 | Y21: 1 | Z21: 1
M22: 08DPR0695N | N22: 1708328 | O22: 1 | P22: 0 | Q22: 1 | R22: 0 | S22: 1 | T22: 1 | U22: 1 | V22: 1 | W22: 1 | X22: 1 | Y22: 1 | Z22: 1
M23: 08DPR0695N | N23: 1708682 | O23: 0 | P23: 1 | Q23: 1 | R23: 1 | S23: 1 | T23: 1 | U23: 1 | V23: 1 | W23: 1 | X23: 1 | Y23: 1 | Z23: 0
M24: 08DPR0695N | N24: 1710352 | O24: 1 | P24: 1 | Q24: 0 | R24: 1 | S24: 1 | T24: 1 | U24: 1 | V24: 1 | W24: 1 | X24: 1 | Y24: 1 | Z24: 1
M25: 08DPR0695N | N25: 1712212 | O25: 1 | P25: 1 | Q25: 1 | R25: 0 | S25: 1 | T25: 1 | U25: 1 | V25: 1 | W25: 1 | X25: 1 | Y25: 1 | Z25: 1
M26: 08DPR0695N | N26: 1721642 | O26: 1 | P26: 1 | Q26: 1 | R26: 1 | S26: 1 | T26: 0 | U26: 1 | V26: 1 | W26: 1 | X26: 1 | Y26: 0 | Z26: 1
M27: 08DPR0695N | N27: 1722160 | O27: 1 | P27: 1 | Q27: 1 | R27: 1 | S27: 1 | T27: 1 | U27: 1 | V27: 1 | W27: 1 | X27: 1 | Y27: 0 | Z27: 0
M28: 08DPR0695N | N28: 1726785 | O28: 1 | P28: 1 | Q28: 0 | R28: 1 | S28: 1 | T28: 1 | U28: 1 | V28: 1 | W28: 1 | X28: 1 | Y28: 1 | Z28: 1
M29: 08DPR0695N | N29: 1726922 | O29: 1 | P29: 1 | Q29: 1 | R29: 1 | S29: 1 | T29: 1 | U29: 1 | V29: 1 | W29: 1 | X29: 1 | Y29: 0 | Z29: 1
M30: 08DPR0695N | N30: 1727228 | O30: 1 | P30: 1 | Q30: 1 | R30: 1 | S30: 1 | T30: 1 | U30: 1 | V30: 1 | W30: 0 | X30: 1 | Y30: 0 | Z30: 0
M31: 08DPR0695N | N31: 1727499 | O31: 1 | P31: 1 | Q31: 1 | R31: 0 | S31: 1 | T31: 0 | U31: 1 | V31: 1 | W31: 1 | X31: 1 | Y31: 0 | Z31: 1
M32: 08DPR0695N | N32: 1727897 | O32: 1 | P32: 1 | Q32: 1 | R32: 0 | S32: 1 | T32: 0 | U32: 1 | V32: 1 | W32: 1 | X32: 1 | Y32: 1 | Z32: 1
M33: 08DPR0695N | N33: 1729472 | O33: 1 | P33: 1 | Q33: 1 | R33: 1 | S33: 1 | T33: 1 | U33: 1 | V33: 1 | W33: 0 | X33: 1 | Y33: 1 | Z33: 1
M34: 08DPR0695N | N34: 1729494 | O34: 1 | P34: 1 | Q34: 1 | R34: 1 | S34: 1 | T34: 1 | U34: 1 | V34: 1 | W34: 1 | X34: 1 | Y34: 1 | Z34: 1
M35: 08DPR0695N | N35: 1730678 | O35: 1 | P35: 0 | Q35: 1 | R35: 1 | S35: 1 | T35: 1 | U35: 0 | V35: 1 | W35: 1 | X35: 1 | Y35: 0 | Z35: 0
M36: 08DPR0695N | N36: 1730802 | O36: 0 | P36: 1 | Q36: 1 | R36: 1 | S36: 1 | T36: 1 | U36: 1 | V36: 1 | W36: 1 | X36: 1 | Y36: 0 | Z36: 1
M37: 08DPR0695N | N37: 1730879 | O37: 1 | P37: 1 | Q37: 1 | R37: 0 | S37: 1 | T37: 1 | U37: 1 | V37: 1 | W37: 0 | X37: 1 | Y37: 1 | Z37: 0
M38: 08DPR0695N | N38: 1733442 | O38: 0 | P38: 1 | Q38: 1 | R38: 0 | S38: 1 | T38: 1 | U38: 1 | V38: 1 | W38: 1 | X38: 0 | Y38: 1 | Z38: 1
M39: 08DPR0695N | N39: 1734441 | O39: 1 | P39: 1 | Q39: 1 | R39: 0 | S39: 1 | T39: 1 | U39: 1 | V39: 1 | W39: 1 | X39: 1 | Y39: 0 | Z39: 1
M40: 08DPR0695N | N40: 1736155 | O40: 1 | P40: 1 | Q40: 1 | R40: 0 | S40: 1 | T40: 1 | U40: 1 | V40: 1 | W40: 1 | X40: 1 | Y40: 1 | Z40: 1
M41: 08DPR0695N | N41: 1736466 | O41: 1 | P41: 1 | Q41: 0 | R41: 0 | S41: 1 | T41: 1 | U41: 1 | V41: 1 | W41: 0 | X41: 1 | Y41: 1 | Z41: 1
M42: 08DPR0695N | N42: 1737720 | O42: 1 | P42: 1 | Q42: 1 | R42: 0 | S42: 1 | T42: 1 | U42: 1 | V42: 1 | W42: 1 | X42: 1 | Y42: 1 | Z42: 1
M43: 08DPR0695N | N43: 1737772 | O43: 1 | P43: 1 | Q43: 0 | R43: 0 | S43: 1 | T43: 1 | U43: 1 | V43: 1 | W43: 1 | X43: 1 | Y43: 1 | Z43: 0
M44: 08DPR0695N | N44: 1738388 | O44: 1 | P44: 1 | Q44: 1 | R44: 1 | S44: 1 | T44: 1 | U44: 1 | V44: 1 | W44: 0 | X44: 1 | Y44: 1 | Z44: 1
M45: 08DPR0695N | N45: 1738716 | O45: 1 | P45: 1 | Q45: 1 | R45: 0 | S45: 1 | T45: 1 | U45: 1 | V45: 1 | W45: 1 | X45: 1 | Y45: 1 | Z45: 1
M46: 08DPR0695N | N46: 1738970 | O46: 1 | P46: 1 | Q46: 0 | R46: 1 | S46: 1 | T46: 1 | U46: 1 | V46: 1 | W46: 0 | X46: 1 | Y46: 0 | Z46: 1
M47: 08DPR0695N | N47: 1739126 | O47: 1 | P47: 1 | Q47: 1 | R47: 0 | S47: 1 | T47: 1 | U47: 1 | V47: 1 | W47: 1 | X47: 1 | Y47: 0 | Z47: 1
M48: 08DPR0695N | N48: 1739739 | O48: 1 | P48: 1 | Q48: 1 | R48: 1 | S48: 1 | T48: 1 | U48: 1 | V48: 1 | W48: 1 | X48: 1 | Y48: 1 | Z48: 0
M49: 08DPR0695N | N49: 1739771 | O49: 0 | P49: 1 | Q49: 1 | R49: 1 | S49: 1 | T49: 1 | U49: 1 | V49: 1 | W49: 1 | X49: 0 | Y49: 0 | Z49: 0
M50: 08DPR0695N | N50: 1742907 | O50: 1 | P50: 1 | Q50: 1 | R50: 1 | S50: 1 | T50: 1 | U50: 1 | V50: 1 | W50: 1 | X50: 1 | Y50: 0 | Z50: 1
M51: 08DPR0695N | N51: 1745499 | O51: 0 | P51: 1 | Q51: 1 | R51: 1 | S51: 1 | T51: 1 | U51: 1 | V51: 1 | W51: 1 | X51: 0 | Y51: 1 | Z51: 0
M52: 08DPR0695N | N52: 1753716 | O52: 1 | P52: 1 | Q52: 1 | R52: 0 | S52: 1 | T52: 0 | U52: 1 | V52: 1 | W52: 1 | X52: 1 | Y52: 0 | Z52: 1
M53: 08DPR0695N | N53: 1753793 | O53: 1 | P53: 1 | Q53: 1 | R53: 0 | S53: 1 | T53: 1 | U53: 1 | V53: 1 | W53: 1 | X53: 1 | Y53: 1 | Z53: 1
M54: 08DPR0695N | N54: 1753948 | O54: 1 | P54: 1 | Q54: 1 | R54: 1 | S54: 1 | T54: 1 | U54: 1 | V54: 1 | W54: 0 | X54: 1 | Y54: 1 | Z54: 1
M55: 08DPR0695N | N55: 1754500 | O55: 1 | P55: 1 | Q55: 1 | R55: 0 | S55: 1 | T55: 0 | U55: 1 | V55: 1 | W55: 1 | X55: 0 | Y55: 1 | Z55: 1
M56: 08DPR0695N | N56: 1754691 | O56: 1 | P56: 1 | Q56: 1 | R56: 0 | S56: 1 | T56: 1 | U56: 1 | V56: 1 | W56: 1 | X56: 1 | Y56: 0 | Z56: 1
M57: 08DPR0695N | N57: 1755037 | O57: 1 | P57: 1 | Q57: 1 | R57: 1 | S57: 1 | T57: 1 | U57: 1 | V57: 1 | W57: 1 | X57: 1 | Y57: 1 | Z57: 0
M58: 08DPR0695N | N58: 1756233 | O58: 1 | P58: 1 | Q58: 0 | R58: 1 | S58: 1 | T58: 0 | U58: 1 | V58: 1 | W58: 0 | X58: 1 | Y58: 0 | Z58: 1
M59: 08DPR0695N | N59: 1759832 | O59: 1 | P59: 1 | Q59: 1 | R59: 1 | S59: 1 | T59: 1 | U59: 1 | V59: 1 | W59: 1 | X59: 1 | Y59: 1 | Z59: 1
M60: 08DPR0695N | N60: 1763196 | O60: 1 | P60: 1 | Q60: 0 | R60: 1 | S60: 1 | T60: 1 | U60: 1 | V60: 0 | W60: 0 | X60: 1 | Y60: 1 | Z60: 0
M61: 08DPR0695N | N61: 1763281 | O61: 1 | P61: 1 | Q61: 1 | R61: 1 | S61: 1 | T61: 0 | U61: 1 | V61: 1 | W61: 1 | X61: 1 | Y61: 1 | Z61: 0
M62: 08DPR0695N | N62: 1763359 | O62: 1 | P62: 1 | Q62: 1 | R62: 1 | S62: 1 | T62: 0 | U62: 1 | V62: 1 | W62: 0 | X62: 1 | Y62: 1 | Z62: 1
M63: 08DPR0695N | N63: 1763409 | O63: 1 | P63: 1 | Q63: 1 | R63: 1 | S63: 1 | T63: 1 | U63: 1 | V63: 1 | W63: 0 | X63: 1 | Y63: 1 | Z63: 0
M64: 08DPR0695N | N64: 1763416 | O64: 1 | P64: 1 | Q64: 1 | R64: 0 | S64: 1 | T64: 1 | U64: 1 | V64: 1 | W64: 1 | X64: 1 | Y64: 1 | Z64: 0
M65: 08DPR0695N | N65: 1763721 | O65: 1 | P65: 1 | Q65: 1 | R65: 1 | S65: 1 | T65: 1 | U65: 1 | V65: 1 | W65: 1 | X65: 1 | Y65: 1 | Z65: 1
M66: 08DPR0695N | N66: 1764372 | O66: 1 | P66: 1 | Q66: 1 | R66: 0 | S66: 1 | T66: 1 | U66: 1 | V66: 1 | W66: 1 | X66: 1 | Y66: 0 | Z66: 1
M67: 08DPR0695N | N67: 1765933 | O67: 1 | P67: 1 | Q67: 1 | R67: 1 | S67: 0 | T67: 1 | U67: 1 | V67: 1 | W67: 1 | X67: 1 | Y67: 1 | Z67: 1
M68: 08DPR0695N | N68: 1765995 | O68: 1 | P68: 1 | Q68: 1 | R68: 1 | S68: 1 | T68: 1 | U68: 1 | V68: 1 | W68: 0 | X68: 1 | Y68: 1 | Z68: 1
M69: 08DPR0695N | N69: 1766566 | O69: 1 | P69: 1 | Q69: 1 | R69: 1 | S69: 1 | T69: 1 | U69: 1 | V69: 1 | W69: 1 | X69: 1 | Y69: 1 | Z69: 0
M70: 08DPR0695N | N70: 1766591 | O70: 1 | P70: 1 | Q70: 1 | R70: 0 | S70: 1 | T70: 1 | U70: 1 | V70: 1 | W70: 1 | X70: 1 | Y70: 1 | Z70: 1
M71: 08DPR0695N | N71: 1767035 | O71: 1 | P71: 1 | Q71: 1 | R71: 1 | S71: 1 | T71: 1 | U71: 1 | V71: 1 | W71: 1 | X71: 0 | Y71: 0 | Z71: 1
M72: 08DPR0695N | N72: 1767053 | O72: 1 | P72: 1 | Q72: 1 | R72: 1 | S72: 1 | T72: 1 | U72: 1 | V72: 1 | W72: 0 | X72: 1 | Y72: 1 | Z72: 1
M73: 08DPR0695N | N73: 1767060 | O73: 1 | P73: 1 | Q73: 1 | R73: 1 | S73: 0 | T73: 1 | U73: 1 | V73: 1 | W73: 1 | X73: 0 | Y73: 1 | Z73: 0
M74: 08DPR0695N | N74: 1767067 | O74: 1 | P74: 1 | Q74: 1 | R74: 1 | S74: 1 | T74: 1 | U74: 1 | V74: 1 | W74: 0 | X74: 1 | Y74: 1 | Z74: 1
M75: 08DPR0695N | N75: 1768529 | O75: 1 | P75: 1 | Q75: 1 | R75: 1 | S75: 1 | T75: 1 | U75: 1 | V75: 1 | W75: 1 | X75: 1 | Y75: 1 | Z75: 1
M76: 08DPR0695N | N76: 1779625 | O76: 1 | P76: 1 | Q76: 1 | R76: 1 | S76: 1 | T76: 0 | U76: 1 | V76: 1 | W76: 1 | X76: 1 | Y76: 1 | Z76: 0
M77: 08DPR0695N | N77: 1782888 | O77: 1 | P77: 1 | Q77: 0 | R77: 0 | S77: 1 | T77: 1 | U77: 1 | V77: 1 | W77: 0 | X77: 1 | Y77: 0 | Z77: 1
M78: 08DPR0695N | N78: 1783194 | O78: 1 | P78: 1 | Q78: 1 | R78: 1 | S78: 1 | T78: 1 | U78: 1 | V78: 1 | W78: 1 | X78: 1 | Y78: 1 | Z78: 1
M79: 08DPR0695N | N79: 1790078 | O79: 1 | P79: 1 | Q79: 1 | R79: 1 | S79: 0 | T79: 0 | U79: 1 | V79: 1 | W79: 1 | X79: 1 | Y79: 0 | Z79: 1
M80: 08DPR0695N | N80: 1793444 | O80: 1 | P80: 0 | Q80: 1 | R80: 0 | S80: 1 | T80: 1 | U80: 1 | V80: 1 | W80: 1 | X80: 0 | Y80: 0 | Z80: 1
M81: 08DPR0695N | N81: 1793993 | O81: 1 | P81: 1 | Q81: 1 | R81: 0 | S81: 1 | T81: 1 | U81: 1 | V81: 1 | W81: 0 | X81: 1 | Y81: 1 | Z81: 0
M82: 08DPR0695N | N82: 1809261 | O82: 1 | P82: 1 | Q82: 0 | R82: 0 | S82: 1 | T82: 1 | U82: 1 | V82: 1 | W82: 1 | X82: 1 | Y82: 0 | Z82: 1
M83: 08DPR0695N | N83: 1816844 | O83: 1 | P83: 1 | Q83: 0 | R83: 1 | S83: 0 | T83: 0 | U83: 0 | V83: 0 | W83: 1 | X83: 1 | Y83: 0 | Z83: 1
M84: 08DPR0695N | N84: 1826440 | O84: 1 | P84: 1 | Q84: 1 | R84: 1 | S84: 1 | T84: 1 | U84: 1 | V84: 1 | W84: 1 | X84: 1 | Y84: 0 | Z84: 1
M85: 08DPR0695N | N85: 1846079 | O85: 1 | P85: 1 | Q85: 1 | R85: 1 | S85: 1 | T85: 1 | U85: 1 | V85: 1 | W85: 0 | X85: 1 | Y85: 0 | Z85: 0
M86: 08DPR0695N | N86: 1855441 | O86: 1 | P86: 1 | Q86: 1 | R86: 1 | S86: 0 | T86: 1 | U86: 1 | V86: 1 | W86: 0 | X86: 1 | Y86: 1 | Z86: 1
M87: 08DPR0695N | N87: 1887569 | O87: 1 | P87: 1 | Q87: 1 | R87: 1 | S87: 1 | T87: 1 | U87: 1 | V87: 1 | W87: 0 | X87: 1 | Y87: 0 | Z87: 1
M88: 08DPR0695N | N88: 1887706 | O88: 1 | P88: 1 | Q88: 1 | R88: 1 | S88: 1 | T88: 1 | U88: 1 | V88: 1 | W88: 1 | X88: 1 | Y88: 1 | Z88: 1
M89: 08DPR0695N | N89: 1901203 | O89: 1 | P89: 1 | Q89: 1 | R89: 1 | S89: 1 | T89: 1 | U89: 1 | V89: 1 | W89: 1 | X89: 1 | Y89: 1 | Z89: 1
M90: 08DPR0695N | N90: 2324186 | O90: 1 | P90: 1 | Q90: 1 | R90: 1 | S90: 1 | T90: 1 | U90: 1 | V90: 1 | W90: 1 | X90: 1 | Y90: 1 | Z90: 1
M91: 08DPR0695N | N91: 2430309 | O91: 0 | P91: 1 | Q91: 1 | R91: 0 | S91: 1 | T91: 0 | U91: 1 | V91: 1 | W91: 1 | X91: 1 | Y91: 1 | Z91: 0
M92: 08DPR0695N | N92: 2450369 | O92: 1 | P92: 0 | Q92: 0 | R92: 0 | S92: 1 | T92: 0 | U92: 1 | V92: 1 | W92: 0 | X92: 1 | Y92: 1 | Z92: 0

Sheet COMPREN. LECTORA
K2: ORIGEN | L2: FICHA | M2: CL_13 | N2: CL_14 | O2: CL_15 | P2: CL_16 | Q2: CL_17 | R2: CL_18 | S2: CL_19 | T2: CL_20 | U2: CL_21 | V2: CL_22 | W2: CL_23 | X2: CL_24 | Z2: ORIGEN | AA2: CL_13 | AB2: CL_14 | AC2: CL_15 | AD2: CL_16 | AE2: CL_17 | AF2: CL_18 | AG2: CL_19 | AH2: CL_20 | AI2: CL_21 | AJ2: CL_22 | AK2: CL_23 | AL2: CL_24
K3: 08DPR0695N | L3: 1653704 | M3: 1 | N3: 0 | O3: 0 | P3: 1 | Q3: 0 | R3: 1 | S3: 1 | T3: 1 | U3: 1 | V3: 1 | W3: 0 | X3: 1 | Z3: 08DPR0695N | AA3: 0.7888888889 | AB3: 0.7333333333 | AC3: 0.5888888889 | AD3: 0.6222222222 | AE3: 0.6777777778 | AF3: 0.5555555556 | AG3: 0.5777777778 | AH3: 0.6111111111 | AI3: 0.7888888889 | AJ3: 0.7666666667 | AK3: 0.3333333333 | AL3: 0.4333333333
K4: 08DPR0695N | L4: 1655335 | M4: 1 | N4: 1 | O4: 1 | P4: 1 | Q4: 1 | R4: 0 | S4: 0 | T4: 0 | U4: 1 | V4: 1 | W4: 0 | X4: 0
K5: 08DPR0695N | L5: 1655462 | M5: 1 | N5: 1 | O5: 0 | P5: 1 | Q5: 0 | R5: 1 | S5: 0 | T5: 1 | U5: 1 | V5: 0 | W5: 0 | X5: 1
K6: 08DPR0695N | L6: 1655688 | M6: 1 | N6: 0 | O6: 0 | P6: 1 | Q6: 0 | R6: 1 | S6: 1 | T6: 0 | U6: 1 | V6: 1 | W6: 0 | X6: 0
K7: 08DPR0695N | L7: 1658321 | M7: 1 | N7: 1 | O7: 0 | P7: 1 | Q7: 1 | R7: 0 | S7: 0 | T7: 1 | U7: 1 | V7: 1 | W7: 0 | X7: 0
K8: 08DPR0695N | L8: 1673239 | M8: 1 | N8: 1 | O8: 0 | P8: 1 | Q8: 1 | R8: 1 | S8: 1 | T8: 0 | U8: 1 | V8: 1 | W8: 1 | X8: 0
K9: 08DPR0695N | L9: 1673892 | M9: 0 | N9: 1 | O9: 1 | P9: 0 | Q9: 0 | R9: 0 | S9: 0 | T9: 0 | U9: 0 | V9: 1 | W9: 0 | X9: 1
K10: 08DPR0695N | L10: 1673894 | M10: 1 | N10: 0 | O10: 0 | P10: 0 | Q10: 1 | R10: 1 | S10: 1 | T10: 1 | U10: 1 | V10: 1 | W10: 0 | X10: 1
K11: 08DPR0695N | L11: 1677660 | M11: 0 | N11: 0 | O11: 0 | P11: 1 | Q11: 0 | R11: 0 | S11: 0 | T11: 0 | U11: 1 | V11: 0 | W11: 0 | X11: 0
K12: 08DPR0695N | L12: 1680106 | M12: 1 | N12: 1 | O12: 0 | P12: 1 | Q12: 1 | R12: 1 | S12: 0 | T12: 0 | U12: 1 | V12: 1 | W12: 0 | X12: 0
K13: 08DPR0695N | L13: 1692334 | M13: 1 | N13: 1 | O13: 0 | P13: 0 | Q13: 0 | R13: 0 | S13: 0 | T13: 1 | U13: 1 | V13: 1 | W13: 0 | X13: 0
K14: 08DPR0695N | L14: 1692933 | M14: 0 | N14: 0 | O14: 0 | P14: 0 | Q14: 0 | R14: 1 | S14: 0 | T14: 0 | U14: 0 | V14: 1 | W14: 0 | X14: 0
K15: 08DPR0695N | L15: 1693507 | M15: 1 | N15: 0 | O15: 1 | P15: 0 | Q15: 1 | R15: 0 | S15: 0 | T15: 1 | U15: 0 | V15: 1 | W15: 0 | X15: 0
K16: 08DPR0695N | L16: 1695946 | M16: 1 | N16: 1 | O16: 0 | P16: 1 | Q16: 1 | R16: 0 | S16: 0 | T16: 0 | U16: 1 | V16: 1 | W16: 0 | X16: 1
K17: 08DPR0695N | L17: 1705096 | M17: 0 | N17: 1 | O17: 0 | P17: 0 | Q17: 1 | R17: 1 | S17: 1 | T17: 1 | U17: 1 | V17: 1 | W17: 0 | X17: 0
K18: 08DPR0695N | L18: 1705387 | M18: 1 | N18: 0 | O18: 1 | P18: 1 | Q18: 1 | R18: 1 | S18: 1 | T18: 1 | U18: 1 | V18: 1 | W18: 0 | X18: 1
K19: 08DPR0695N | L19: 1705391 | M19: 1 | N19: 0 | O19: 1 | P19: 1 | Q19: 0 | R19: 1 | S19: 0 | T19: 1 | U19: 1 | V19: 1 | W19: 0 | X19: 0
K20: 08DPR0695N | L20: 1706377 | M20: 1 | N20: 1 | O20: 1 | P20: 0 | Q20: 1 | R20: 1 | S20: 1 | T20: 1 | U20: 1 | V20: 1 | W20: 0 | X20: 0
K21: 08DPR0695N | L21: 1707710 | M21: 1 | N21: 1 | O21: 1 | P21: 1 | Q21: 1 | R21: 0 | S21: 1 | T21: 0 | U21: 1 | V21: 1 | W21: 0 | X21: 1
K22: 08DPR0695N | L22: 1708328 | M22: 1 | N22: 1 | O22: 1 | P22: 1 | Q22: 1 | R22: 1 | S22: 0 | T22: 1 | U22: 1 | V22: 1 | W22: 1 | X22: 0
K23: 08DPR0695N | L23: 1708682 | M23: 0 | N23: 1 | O23: 0 | P23: 1 | Q23: 1 | R23: 1 | S23: 1 | T23: 1 | U23: 1 | V23: 1 | W23: 1 | X23: 0
K24: 08DPR0695N | L24: 1710352 | M24: 1 | N24: 1 | O24: 0 | P24: 0 | Q24: 1 | R24: 1 | S24: 1 | T24: 0 | U24: 1 | V24: 1 | W24: 0 | X24: 0
K25: 08DPR0695N | L25: 1712212 | M25: 1 | N25: 0 | O25: 0 | P25: 1 | Q25: 1 | R25: 1 | S25: 0 | T25: 0 | U25: 0 | V25: 1 | W25: 0 | X25: 0
K26: 08DPR0695N | L26: 1721642 | M26: 1 | N26: 1 | O26: 1 | P26: 0 | Q26: 0 | R26: 1 | S26: 0 | T26: 1 | U26: 1 | V26: 1 | W26: 0 | X26: 1
K27: 08DPR0695N | L27: 1722160 | M27: 1 | N27: 1 | O27: 1 | P27: 1 | Q27: 1 | R27: 1 | S27: 1 | T27: 0 | U27: 1 | V27: 0 | W27: 0 | X27: 0
K28: 08DPR0695N | L28: 1726785 | M28: 1 | N28: 1 | O28: 0 | P28: 1 | Q28: 1 | R28: 1 | S28: 1 | T28: 0 | U28: 1 | V28: 1 | W28: 0 | X28: 0
K29: 08DPR0695N | L29: 1726922 | M29: 1 | N29: 1 | O29: 1 | P29: 0 | Q29: 0 | R29: 0 | S29: 0 | T29: 0 | U29: 1 | V29: 0 | W29: 1 | X29: 1
K30: 08DPR0695N | L30: 1727228 | M30: 0 | N30: 1 | O30: 0 | P30: 1 | Q30: 1 | R30: 0 | S30: 1 | T30: 0 | U30: 1 | V30: 1 | W30: 1 | X30: 0
K31: 08DPR0695N | L31: 1727499 | M31: 1 | N31: 1 | O31: 1 | P31: 1 | Q31: 1 | R31: 1 | S31: 1 | T31: 0 | U31: 1 | V31: 1 | W31: 0 | X31: 0
K32: 08DPR0695N | L32: 1727897 | M32: 1 | N32: 1 | O32: 1 | P32: 1 | Q32: 1 | R32: 0 | S32: 1 | T32: 1 | U32: 0 | V32: 1 | W32: 1 | X32: 0
K33: 08DPR0695N | L33: 1729472 | M33: 1 | N33: 1 | O33: 0 | P33: 1 | Q33: 1 | R33: 1 | S33: 1 | T33: 1 | U33: 1 | V33: 1 | W33: 1 | X33: 1
K34: 08DPR0695N | L34: 1729494 | M34: 1 | N34: 1 | O34: 1 | P34: 1 | Q34: 1 | R34: 1 | S34: 1 | T34: 1 | U34: 1 | V34: 1 | W34: 0 | X34: 0
K35: 08DPR0695N | L35: 1730678 | M35: 1 | N35: 1 | O35: 1 | P35: 1 | Q35: 1 | R35: 1 | S35: 1 | T35: 0 | U35: 1 | V35: 1 | W35: 0 | X35: 1
K36: 08DPR0695N | L36: 1730802 | M36: 0 | N36: 1 | O36: 1 | P36: 1 | Q36: 1 | R36: 0 | S36: 1 | T36: 0 | U36: 0 | V36: 1 | W36: 0 | X36: 0
K37: 08DPR0695N | L37: 1730879 | M37: 1 | N37: 1 | O37: 1 | P37: 0 | Q37: 1 | R37: 0 | S37: 0 | T37: 1 | U37: 0 | V37: 0 | W37: 1 | X37: 1
K38: 08DPR0695N | L38: 1733442 | M38: 1 | N38: 1 | O38: 0 | P38: 1 | Q38: 1 | R38: 0 | S38: 1 | T38: 0 | U38: 1 | V38: 0 | W38: 0 | X38: 0
K39: 08DPR0695N | L39: 1734441 | M39: 1 | N39: 0 | O39: 0 | P39: 1 | Q39: 1 | R39: 1 | S39: 1 | T39: 1 | U39: 1 | V39: 1 | W39: 0 | X39: 1
K40: 08DPR0695N | L40: 1736155 | M40: 1 | N40: 1 | O40: 1 | P40: 1 | Q40: 1 | R40: 1 | S40: 0 | T40: 1 | U40: 0 | V40: 1 | W40: 0 | X40: 0
K41: 08DPR0695N | L41: 1736466 | M41: 1 | N41: 1 | O41: 1 | P41: 1 | Q41: 1 | R41: 1 | S41: 1 | T41: 1 | U41: 1 | V41: 1 | W41: 0 | X41: 1
K42: 08DPR0695N | L42: 1737720 | M42: 1 | N42: 1 | O42: 0 | P42: 1 | Q42: 1 | R42: 0 | S42: 0 | T42: 1 | U42: 1 | V42: 0 | W42: 0 | X42: 1
K43: 08DPR0695N | L43: 1737772 | M43: 1 | N43: 0 | O43: 1 | P43: 0 | Q43: 0 | R43: 0 | S43: 1 | T43: 1 | U43: 1 | V43: 0 | W43: 0 | X43: 1
K44: 08DPR0695N | L44: 1738388 | M44: 1 | N44: 1 | O44: 1 | P44: 0 | Q44: 1 | R44: 1 | S44: 1 | T44: 0 | U44: 1 | V44: 1 | W44: 0 | X44: 0
K45: 08DPR0695N | L45: 1738716 | M45: 1 | N45: 1 | O45: 1 | P45: 1 | Q45: 1 | R45: 0 | S45: 1 | T45: 1 | U45: 1 | V45: 1 | W45: 1 | X45: 0
K46: 08DPR0695N | L46: 1738970 | M46: 1 | N46: 0 | O46: 0 | P46: 0 | Q46: 1 | R46: 1 | S46: 0 | T46: 0 | U46: 0 | V46: 1 | W46: 0 | X46: 0
K47: 08DPR0695N | L47: 1739126 | M47: 1 | N47: 1 | O47: 0 | P47: 1 | Q47: 1 | R47: 1 | S47: 0 | T47: 0 | U47: 1 | V47: 0 | W47: 1 | X47: 1
K48: 08DPR0695N | L48: 1739739 | M48: 1 | N48: 1 | O48: 1 | P48: 1 | Q48: 1 | R48: 1 | S48: 1 | T48: 1 | U48: 1 | V48: 1 | W48: 0 | X48: 1
K49: 08DPR0695N | L49: 1739771 | M49: 1 | N49: 0 | O49: 0 | P49: 1 | Q49: 0 | R49: 0 | S49: 1 | T49: 1 | U49: 0 | V49: 0 | W49: 1 | X49: 1
K50: 08DPR0695N | L50: 1742907 | M50: 1 | N50: 0 | O50: 0 | P50: 0 | Q50: 1 | R50: 1 | S50: 0 | T50: 1 | U50: 1 | V50: 1 | W50: 1 | X50: 1
K51: 08DPR0695N | L51: 1745499 | M51: 0 | N51: 1 | O51: 1 | P51: 0 | Q51: 1 | R51: 0 | S51: 0 | T51: 1 | U51: 0 | V51: 0 | W51: 0 | X51: 1
K52: 08DPR0695N | L52: 1753716 | M52: 1 | N52: 1 | O52: 1 | P52: 1 | Q52: 0 | R52: 0 | S52: 0 | T52: 1 | U52: 1 | V52: 1 | W52: 0 | X52: 0
K53: 08DPR0695N | L53: 1753793 | M53: 1 | N53: 1 | O53: 1 | P53: 1 | Q53: 0 | R53: 1 | S53: 1 | T53: 0 | U53: 1 | V53: 1 | W53: 1 | X53: 1
K54: 08DPR0695N | L54: 1753948 | M54: 1 | N54: 1 | O54: 1 | P54: 1 | Q54: 0 | R54: 1 | S54: 1 | T54: 1 | U54: 1 | V54: 0 | W54: 1 | X54: 0
K55: 08DPR0695N | L55: 1754500 | M55: 1 | N55: 1 | O55: 1 | P55: 1 | Q55: 1 | R55: 0 | S55: 1 | T55: 1 | U55: 1 | V55: 1 | W55: 0 | X55: 1
K56: 08DPR0695N | L56: 1754691 | M56: 0 | N56: 1 | O56: 1 | P56: 1 | Q56: 0 | R56: 0 | S56: 0 | T56: 1 | U56: 1 | V56: 1 | W56: 0 | X56: 0
K57: 08DPR0695N | L57: 1755037 | M57: 1 | N57: 1 | O57: 1 | P57: 0 | Q57: 1 | R57: 0 | S57: 0 | T57: 1 | U57: 1 | V57: 1 | W57: 1 | X57: 1
K58: 08DPR0695N | L58: 1756233 | M58: 1 | N58: 1 | O58: 0 | P58: 1 | Q58: 0 | R58: 0 | S58: 0 | T58: 1 | U58: 1 | V58: 1 | W58: 1 | X58: 0
K59: 08DPR0695N | L59: 1759832 | M59: 1 | N59: 1 | O59: 1 | P59: 0 | Q59: 1 | R59: 0 | S59: 1 | T59: 0 | U59: 1 | V59: 1 | W59: 0 | X59: 0
K60: 08DPR0695N | L60: 1763196 | M60: 0 | N60: 1 | O60: 1 | P60: 1 | Q60: 0 | R60: 0 | S60: 0 | T60: 1 | U60: 0 | V60: 1 | W60: 1 | X60: 1
K61: 08DPR0695N | L61: 1763281 | M61: 1 | N61: 1 | O61: 1 | P61: 0 | Q61: 1 | R61: 0 | S61: 1 | T61: 1 | U61: 1 | V61: 1 | W61: 1 | X61: 1
K62: 08DPR0695N | L62: 1763359 | M62: 1 | N62: 0 | O62: 1 | P62: 0 | Q62: 1 | R62: 0 | S62: 1 | T62: 1 | U62: 0 | V62: 1 | W62: 0 | X62: 1
K63: 08DPR0695N | L63: 1763409 | M63: 1 | N63: 1 | O63: 1 | P63: 0 | Q63: 1 | R63: 0 | S63: 1 | T63: 1 | U63: 1 | V63: 0 | W63: 0 | X63: 0
K64: 08DPR0695N | L64: 1763416 | M64: 1 | N64: 1 | O64: 1 | P64: 0 | Q64: 1 | R64: 1 | S64: 1 | T64: 1 | U64: 1 | V64: 1 | W64: 0 | X64: 0
K65: 08DPR0695N | L65: 1763721 | M65: 1 | N65: 1 | O65: 1 | P65: 0 | Q65: 1 | R65: 1 | S65: 1 | T65: 1 | U65: 1 | V65: 1 | W65: 0 | X65: 0
K66: 08DPR0695N | L66: 1764372 | M66: 0 | N66: 0 | O66: 0 | P66: 0 | Q66: 0 | R66: 1 | S66: 1 | T66: 0 | U66: 1 | V66: 1 | W66: 0 | X66: 0
K67: 08DPR0695N | L67: 1765933 | M67: 1 | N67: 1 | O67: 1 | P67: 1 | Q67: 0 | R67: 0 | S67: 0 | T67: 0 | U67: 1 | V67: 0 | W67: 1 | X67: 0
K68: 08DPR0695N | L68: 1765995 | M68: 1 | N68: 1 | O68: 0 | P68: 1 | Q68: 1 | R68: 0 | S68: 1 | T68: 0 | U68: 1 | V68: 1 | W68: 1 | X68: 1
K69: 08DPR0695N | L69: 1766566 | M69: 1 | N69: 1 | O69: 0 | P69: 0 | Q69: 1 | R69: 0 | S69: 0 | T69: 1 | U69: 1 | V69: 1 | W69: 1 | X69: 0
K70: 08DPR0695N | L70: 1766591 | M70: 1 | N70: 0 | O70: 1 | P70: 0 | Q70: 0 | R70: 0 | S70: 0 | T70: 1 | U70: 1 | V70: 0 | W70: 1 | X70: 1
K71: 08DPR0695N | L71: 1767035 | M71: 0 | N71: 1 | O71: 1 | P71: 0 | Q71: 1 | R71: 1 | S71: 0 | T71: 0 | U71: 0 | V71: 0 | W71: 1 | X71: 0
K72: 08DPR0695N | L72: 1767053 | M72: 1 | N72: 0 | O72: 1 | P72: 1 | Q72: 1 | R72: 1 | S72: 1 | T72: 1 | U72: 1 | V72: 0 | W72: 0 | X72: 1
K73: 08DPR0695N | L73: 1767060 | M73: 1 | N73: 1 | O73: 1 | P73: 0 | Q73: 1 | R73: 0 | S73: 0 | T73: 1 | U73: 1 | V73: 1 | W73: 0 | X73: 1
K74: 08DPR0695N | L74: 1767067 | M74: 1 | N74: 1 | O74: 0 | P74: 1 | Q74: 1 | R74: 0 | S74: 1 | T74: 1 | U74: 1 | V74: 1 | W74: 1 | X74: 1
K75: 08DPR0695N | L75: 1768529 | M75: 0 | N75: 1 | O75: 1 | P75: 1 | Q75: 1 | R75: 1 | S75: 1 | T75: 0 | U75: 1 | V75: 1 | W75: 0 | X75: 0
K76: 08DPR0695N | L76: 1779625 | M76: 0 | N76: 0 | O76: 0 | P76: 1 | Q76: 1 | R76: 0 | S76: 1 | T76: 1 | U76: 1 | V76: 1 | W76: 0 | X76: 0
K77: 08DPR0695N | L77: 1782888 | M77: 0 | N77: 1 | O77: 1 | P77: 1 | Q77: 0 | R77: 0 | S77: 1 | T77: 0 | U77: 0 | V77: 0 | W77: 0 | X77: 1
K78: 08DPR0695N | L78: 1783194 | M78: 1 | N78: 1 | O78: 0 | P78: 1 | Q78: 1 | R78: 1 | S78: 1 | T78: 1 | U78: 1 | V78: 1 | W78: 1 | X78: 0
K79: 08DPR0695N | L79: 1790078 | M79: 1 | N79: 0 | O79: 0 | P79: 1 | Q79: 0 | R79: 1 | S79: 1 | T79: 1 | U79: 1 | V79: 1 | W79: 0 | X79: 0
K80: 08DPR0695N | L80: 1793444 | M80: 1 | N80: 1 | O80: 1 | P80: 1 | Q80: 0 | R80: 0 | S80: 0 | T80: 1 | U80: 1 | V80: 1 | W80: 1 | X80: 0
K81: 08DPR0695N | L81: 1793993 | M81: 0 | N81: 0 | O81: 1 | P81: 0 | Q81: 0 | R81: 1 | S81: 0 | T81: 1 | U81: 0 | V81: 0 | W81: 0 | X81: 0
K82: 08DPR0695N | L82: 1809261 | M82: 1 | N82: 0 | O82: 0 | P82: 1 | Q82: 1 | R82: 1 | S82: 1 | T82: 1 | U82: 1 | V82: 1 | W82: 1 | X82: 1
K83: 08DPR0695N | L83: 1816844 | M83: 0 | N83: 0 | O83: 0 | P83: 1 | Q83: 1 | R83: 1 | S83: 1 | T83: 0 | U83: 0 | V83: 1 | W83: 0 | X83: 0
K84: 08DPR0695N | L84: 1826440 | M84: 1 | N84: 1 | O84: 1 | P84: 0 | Q84: 1 | R84: 1 | S84: 1 | T84: 0 | U84: 1 | V84: 1 | W84: 1 | X84: 0
K85: 08DPR0695N | L85: 1846079 | M85: 1 | N85: 1 | O85: 1 | P85: 1 | Q85: 0 | R85: 0 | S85: 0 | T85: 1 | U85: 0 | V85: 0 | W85: 1 | X85: 1
K86: 08DPR0695N | L86: 1855441 | M86: 0 | N86: 0 | O86: 1 | P86: 1 | Q86: 0 | R86: 0 | S86: 0 | T86: 1 | U86: 1 | V86: 1 | W86: 1 | X86: 1
K87: 08DPR0695N | L87: 1887569 | M87: 1 | N87: 1 | O87: 1 | P87: 0 | Q87: 1 | R87: 1 | S87: 1 | T87: 0 | U87: 1 | V87: 1 | W87: 0 | X87: 1
K88: 08DPR0695N | L88: 1887706 | M88: 1 | N88: 1 | O88: 1 | P88: 0 | Q88: 0 | R88: 1 | S88: 0 | T88: 1 | U88: 1 | V88: 1 | W88: 0 | X88: 1
K89: 08DPR0695N | L89: 1901203 | M89: 1 | N89: 1 | O89: 1 | P89: 1 | Q89: 1 | R89: 1 | S89: 1 | T89: 0 | U89: 1 | V89: 1 | W89: 0 | X89: 0
K90: 08DPR0695N | L90: 2324186 | M90: 1 | N90: 1 | O90: 0 | P90: 0 | Q90: 1 | R90: 1 | S90: 1 | T90: 1 | U90: 1 | V90: 1 | W90: 0 | X90: 0
K91: 08DPR0695N | L91: 2430309 | M91: 1 | N91: 1 | O91: 0 | P91: 1 | Q91: 0 | R91: 1 | S91: 1 | T91: 1 | U91: 1 | V91: 1 | W91: 0 | X91: 1
K92: 08DPR0695N | L92: 2450369 | M92: 0 | N92: 1 | O92: 1 | P92: 0 | Q92: 1 | R92: 1 | S92: 0 | T92: 0 | U92: 0 | V92: 0 | W92: 0 | X92: 0

Sheet Hoja1 (hidden)
A1: Datos devueltos para M32, 08DPR0680L (primeras 1000 filas).
A3: IDANIS[56987] | B3: IDANIS[FICHA] | C3: IDANIS[DESTINO] | D3: IDANIS[ORIGEN] | E3: IDANIS[ALUMNO(A)] | F3: IDANIS[SEXO] | G3: IDANIS[1] | H3: IDANIS[2] | I3: IDANIS[3] | J3: IDANIS[4] | K3: IDANIS[5] | L3: IDANIS[6] | M3: IDANIS[7] | N3: IDANIS[8] | O3: IDANIS[9] | P3: IDANIS[10] | Q3: IDANIS[11] | R3: IDANIS[12] | S3: IDANIS[13] | T3: IDANIS[14] | U3: IDANIS[15] | V3: IDANIS[16] | W3: IDANIS[17] | X3: IDANIS[18] | Y3: IDANIS[19] | Z3: IDANIS[20] | AA3: IDANIS[21] | AB3: IDANIS[22] | AC3: IDANIS[23] | AD3: IDANIS[24] | AE3: IDANIS[25] | AF3: IDANIS[26] | AG3: IDANIS[27] | AH3: IDANIS[28] | AI3: IDANIS[29] | AJ3: IDANIS[30] | AK3: IDANIS[31] | AL3: IDANIS[32] | AM3: IDANIS[33] | AN3: IDANIS[34] | AO3: IDANIS[35] | AP3: IDANIS[36] | AQ3: IDANIS[37] | AR3: IDANIS[38] | AS3: IDANIS[39] | AT3: IDANIS[40] | AU3: IDANIS[41] | AV3: IDANIS[42] | AW3: IDANIS[43] | AX3: IDANIS[44] | AY3: IDANIS[45] | AZ3: IDANIS[46] | BA3: IDANIS[47] | BB3: IDANIS[48] | BC3: IDANIS[49] | BD3: IDANIS[50] | BE3: IDANIS[51] | BF3: IDANIS[52] | BG3: IDANIS[53] | BH3: IDANIS[54] | BI3: IDANIS[55] | BJ3: IDANIS[56] | BK3: IDANIS[57] | BL3: IDANIS[58] | BM3: IDANIS[59] | BN3: IDANIS[60] | BO3: IDANIS[TOTAL]
A4: 1 | B4: 1876200 | C4: 08DST0041A | D4: 08DPR0680L | E4: GIL MELANIE | F4: M | G4: 1 | H4: 1 | I4: 1 | J4: 0 | K4: 1 | L4: 1 | M4: 1 | N4: 1 | O4: 0 | P4: 1 | Q4: 1 | R4: 1 | S4: 1 | T4: 1 | U4: 0 | V4: 0 | W4: 1 | X4: 0 | Y4: 1 | Z4: 0 | AA4: 1 | AB4: 1 | AC4: 0 | AD4: 0 | AE4: 0 | AF4: 0 | AG4: 0 | AH4: 0 | AI4: 1 | AJ4: 1 | AK4: 1 | AL4: 0 | AM4: 0 | AN4: 0 | AO4: 0 | AP4: 0 | AQ4: 0 | AR4: 0 | AS4: 1 | AT4: 1 | AU4: 0 | AV4: 1 | AW4: 1 | AX4: 0 | AY4: 0 | AZ4: 0 | BA4: 1 | BB4: 0 | BC4: 0 | BD4: 0 | BE4: 0 | BF4: 0 | BG4: 1 | BH4: 0 | BI4: 0 | BJ4: 0 | BK4: 1 | BL4: 0 | BM4: 0 | BN4: 0 | BO4: 26
A5: 1 | B5: 1809617 | C5: 08DST0041A | D5: 08DPR0680L | E5: VITAL SANTILLAN GISELLE GUADALUPE | F5: M | G5: 1 | H5: 1 | I5: 0 | J5: 1 | K5: 1 | L5: 0 | M5: 1 | N5: 1 | O5: 1 | P5: 1 | Q5: 1 | R5: 0 | S5: 0 | T5: 1 | U5: 1 | V5: 1 | W5: 0 | X5: 0 | Y5: 0 | Z5: 1 | AA5: 1 | AB5: 1 | AC5: 0 | AD5: 1 | AE5: 0 | AF5: 0 | AG5: 0 | AH5: 1 | AI5: 0 | AJ5: 1 | AK5: 1 | AL5: 1 | AM5: 0 | AN5: 0 | AO5: 0 | AP5: 1 | AQ5: 0 | AR5: 1 | AS5: 1 | AT5: 0 | AU5: 0 | AV5: 0 | AW5: 0 | AX5: 0 | AY5: 0 | AZ5: 0 | BA5: 1 | BB5: 1 | BC5: 0 | BD5: 1 | BE5: 1 | BF5: 0 | BG5: 0 | BH5: 0 | BI5: 0 | BJ5: 0 | BK5: 1 | BL5: 0 | BM5: 0 | BN5: 0 | BO5: 28
A6: 1 | B6: 1836340 | C6: 08DST0086X | D6: 08DPR0680L | E6: DUEÑAS LEOS EVELIN JANETH | F6: M | G6: 0 | H6: 1 | I6: 0 | J6: 0 | K6: 1 | L6: 0 | M6: 1 | N6: 1 | O6: 1 | P6: 1 | Q6: 0 | R6: 0 | S6: 1 | T6: 0 | U6: 1 | V6: 0 | W6: 1 | X6: 1 | Y6: 1 | Z6: 0 | AA6: 1 | AB6: 0 | AC6: 0 | AD6: 1 | AE6: 0 | AF6: 0 | AG6: 0 | AH6: 1 | AI6: 0 | AJ6: 0 | AK6: 0 | AL6: 1 | AM6: 0 | AN6: 0 | AO6: 0 | AP6: 1 | AQ6: 0 | AR6: 1 | AS6: 1 | AT6: 1 | AU6: 1 | AV6: 0 | AW6: 0 | AX6: 1 | AY6: 0 | AZ6: 0 | BA6: 0 | BB6: 1 | BC6: 0 | BD6: 0 | BE6: 1 | BF6: 0 | BG6: 0 | BH6: 0 | BI6: 1 | BJ6: 0 | BK6: 0 | BL6: 0 | BM6: 1 | BN6: 0 | BO6: 25
A7: 1 | B7: 1735106 | C7: 08DST0015C | D7: 08DPR0680L | E7: ACOSTA JUAREZ RAQUEL NOEMI | F7: M | G7: 0 | H7: 1 | I7: 0 | J7: 1 | K7: 1 | L7: 1 | M7: 1 | N7: 1 | O7: 0 | P7: 1 | Q7: 0 | R7: 1 | S7: 0 | T7: 0 | U7: 1 | V7: 0 | W7: 0 | X7: 0 | Y7: 0 | Z7: 1 | AA7: 0 | AB7: 1 | AC7: 0 | AD7: 0 | AE7: 0 | AF7: 1 | AG7: 0 | AH7: 0 | AI7: 0 | AJ7: 0 | AK7: 0 | AL7: 0 | AM7: 0 | AN7: 0 | AO7: 0 | AP7: 1 | AQ7: 0 | AR7: 0 | AS7: 1 | AT7: 0 | AU7: 1 | AV7: 0 | AW7: 0 | AX7: 0 | AY7: 0 | AZ7: 0 | BA7: 0 | BB7: 0 | BC7: 0 | BD7: 0 | BE7: 0 | BF7: 1 | BG7: 1 | BH7: 1 | BI7: 0 | BJ7: 0 | BK7: 0 | BL7: 1 | BM7: 0 | BN7: 0 | BO7: 19
A8: 1 | B8: 1912789 | C8: 08DST0033S | D8: 08DPR0680L | E8: ESTRADA PEREZ XIOMARA GISELLE | F8: M | G8: 0 | H8: 1 | I8: 0 | J8: 0 | K8: 1 | L8: 0 | M8: 1 | N8: 1 | O8: 1 | P8: 0 | Q8: 0 | R8: 0 | S8: 0 | T8: 0 | U8: 0 | V8: 0 | W8: 1 | X8: 0 | Y8: 0 | Z8: 1 | AA8: 0 | AB8: 0 | AC8: 0 | AD8: 0 | AE8: 0 | AF8: 0 | AG8: 0 | AH8: 0 | AI8: 0 | AJ8: 0 | AK8: 1 | AL8: 0 | AM8: 0 | AN8: 1 | AO8: 0 | AP8: 0 | AQ8: 0 | AR8: 0 | AS8: 0 | AT8: 0 | AU8: 1 | AV8: 0 | AW8: 0 | AX8: 0 | AY8: 0 | AZ8: 0 | BA8: 0 | BB8: 0 | BC8: 0 | BD8: 0 | BE8: 0 | BF8: 1 | BG8: 0 | BH8: 1 | BI8: 0 | BJ8: 0 | BK8: 0 | BL8: 0 | BM8: 1 | BN8: 1 | BO8: 14
A9: 1 | B9: 1860598 | C9: 08DST0086X | D9: 08DPR0680L | E9: LIRA CAMPOS DANIEL IRAM | F9: H | G9: 0 | H9: 1 | I9: 1 | J9: 1 | K9: 1 | L9: 0 | M9: 1 | N9: 1 | O9: 1 | P9: 1 | Q9: 1 | R9: 1 | S9: 1 | T9: 1 | U9: 0 | V9: 1 | W9: 1 | X9: 0 | Y9: 1 | Z9: 0 | AA9: 1 | AB9: 0 | AC9: 1 | AD9: 1 | AE9: 0 | AF9: 0 | AG9: 0 | AH9: 0 | AI9: 0 | AJ9: 1 | AK9: 0 | AL9: 0 | AM9: 0 | AN9: 0 | AO9: 0 | AP9: 0 | AQ9: 0 | AR9: 0 | AS9: 1 | AT9: 1 | AU9: 1 | AV9: 0 | AW9: 0 | AX9: 1 | AY9: 0 | AZ9: 0 | BA9: 1 | BB9: 0 | BC9: 1 | BD9: 1 | BE9: 1 | BF9: 1 | BG9: 0 | BH9: 0 | BI9: 1 | BJ9: 0 | BK9: 1 | BL9: 0 | BM9: 0 | BN9: 0 | BO9: 30
A10: 1 | B10: 1654851 | C10: 08DST0086X | D10: 08DPR0680L | E10: ARGUMEDO HERNANDEZ BRYAN ISAAC | F10: H | G10: 1 | H10: 0 | I10: 0 | J10: 0 | K10: 1 | L10: 0 | M10: 1 | N10: 1 | O10: 0 | P10: 0 | Q10: 1 | R10: 0 | S10: 0 | T10: 0 | U10: 0 | V10: 0 | W10: 1 | X10: 0 | Y10: 1 | Z10: 1 | AA10: 0 | AB10: 0 | AC10: 1 | AD10: 0 | AE10: 0 | AF10: 0 | AG10: 0 | AH10: 1 | AI10: 0 | AJ10: 0 | AK10: 0 | AL10: 0 | AM10: 0 | AN10: 0 | AO10: 0 | AP10: 1 | AQ10: 0 | AR10: 0 | AS10: 0 | AT10: 1 | AU10: 1 | AV10: 1 | AW10: 1 | AX10: 0 | AY10: 0 | AZ10: 0 | BA10: 1 | BB10: 1 | BC10: 0 | BD10: 1 | BE10: 0 | BF10: 0 | BG10: 1 | BH10: 0 | BI10: 1 | BJ10: 1 | BK10: 0 | BL10: 0 | BM10: 1 | BN10: 0 | BO10: 22
A11: 1 | B11: 1747373 | C11: 08DES0109Z | D11: 08DPR0680L | E11: GONZALEZ VARGAS ANGEL YAMIL | F11: H | G11: 1 | H11: 0 | I11: 1 | J11: 0 | K11: 1 | L11: 0 | M11: 1 | N11: 1 | O11: 0 | P11: 1 | Q11: 0 | R11: 0 | S11: 1 | T11: 1 | U11: 0 | V11: 1 | W11: 1 | X11: 0 | Y11: 0 | Z11: 0 | AA11: 0 | AB11: 0 | AC11: 0 | AD11: 0 | AE11: 0 | AF11: 1 | AG11: 0 | AH11: 1 | AI11: 1 | AJ11: 0 | AK11: 0 | AL11: 1 | AM11: 1 | AN11: 0 | AO11: 0 | AP11: 1 | AQ11: 0 | AR11: 1 | AS11: 0 | AT11: 0 | AU11: 1 | AV11: 0 | AW11: 0 | AX11: 1 | AY11: 0 | AZ11: 1 | BA11: 1 | BB11: 0 | BC11: 0 | BD11: 1 | BE11: 1 | BF11: 0 | BG11: 1 | BH11: 0 | BI11: 1 | BJ11: 1 | BK11: 1 | BL11: 1 | BM11: 1 | BN11: 1 | BO11: 30
A12: 1 | B12: 1899611 | C12: 08SES0010R | D12: 08DPR0680L | E12: VILLAGRANA MORENTIN JOSE FRANCISCO | F12: H | G12: 1 | H12: 1 | I12: 1 | J12: 0 | K12: 1 | L12: 0 | M12: 1 | N12: 0 | O12: 1 | P12: 1 | Q12: 1 | R12: 0 | S12: 0 | T12: 0 | U12: 0 | V12: 0 | W12: 1 | X12: 1 | Y12: 0 | Z12: 1 | AA12: 1 | AB12: 0 | AC12: 0 | AD12: 0 | AE12: 0 | AF12: 1 | AG12: 0 | AH12: 0 | AI12: 0 | AJ12: 0 | AK12: 0 | AL12: 1 | AM12: 0 | AN12: 0 | AO12: 0 | AP12: 1 | AQ12: 1 | AR12: 0 | AS12: 1 | AT12: 0 | AU12: 1 | AV12: 0 | AW12: 0 | AX12: 1 | AY12: 0 | AZ12: 0 | BA12: 0 | BB12: 0 | BC12: 1 | BD12: 0 | BE12: 1 | BF12: 0 | BG12: 1 | BH12: 0 | BI12: 1 | BJ12: 0 | BK12: 0 | BL12: 1 | BM12: 0 | BN12: 0 | BO12: 24
A13: 1 | B13: 1809521 | C13: 08DST0041A | D13: 08DPR0680L | E13: ANTONIO JUAREZ AMERICA CITLALLI | F13: M | G13: 1 | H13: 1 | I13: 1 | J13: 0 | K13: 1 | L13: 1 | M13: 1 | N13: 0 | O13: 1 | P13: 1 | Q13: 1 | R13: 1 | S13: 1 | T13: 0 | U13: 0 | V13: 0 | W13: 1 | X13: 1 | Y13: 0 | Z13: 0 | AA13: 1 | AB13: 1 | AC13: 0 | AD13: 1 | AE13: 0 | AF13: 0 | AG13: 0 | AH13: 0 | AI13: 0 | AJ13: 1 | AK13: 0 | AL13: 0 | AM13: 1 | AN13: 1 | AO13: 1 | AP13: 1 | AQ13: 0 | AR13: 0 | AS13: 0 | AT13: 1 | AU13: 0 | AV13: 0 | AW13: 1 | AX13: 0 | AY13: 1 | AZ13: 0 | BA13: 0 | BB13: 0 | BC13: 1 | BD13: 1 | BE13: 1 | BF13: 0 | BG13: 1 | BH13: 0 | BI13: 1 | BJ13: 0 | BK13: 1 | BL13: 0 | BM13: 1 | BN13: 1 | BO13: 32
A14: 1 | B14: 2325165 | C14: 08DST0086X | D14: 08DPR0680L | E14: SILVA GUERRERO JESUS | F14: H | G14: 1 | H14: 1 | I14: 1 | J14: 0 | K14: 1 | L14: 1 | M14: 1 | N14: 0 | O14: 1 | P14: 1 | Q14: 0 | R14: 1 | S14: 1 | T14: 1 | U14: 1 | V14: 0 | W14: 1 | X14: 1 | Y14: 0 | Z14: 0 | AA14: 1 | AB14: 0 | AC14: 0 | AD14: 0 | AE14: 0 | AF14: 0 | AG14: 0 | AH14: 0 | AI14: 1 | AJ14: 0 | AK14: 0 | AL14: 0 | AM14: 1 | AN14: 1 | AO14: 1 | AP14: 1 | AQ14: 0 | AR14: 1 | AS14: 1 | AT14: 0 | AU14: 0 | AV14: 0 | AW14: 0 | AX14: 1 | AY14: 0 | AZ14: 0 | BA14: 0 | BB14: 0 | BC14: 0 | BD14: 0 | BE14: 1 | BF14: 0 | BG14: 1 | BH14: 0 | BI14: 0 | BJ14: 1 | BK14: 1 | BL14: 1 | BM14: 0 | BN14: 0 | BO14: 28
A15: 1 | B15: 1757394 | C15: 08DST0033S | D15: 08DPR0680L | E15: SANCHEZ SANCHEZ JESUS MANUEL | F15: H | G15: 1 | H15: 1 | I15: 1 | J15: 0 | K15: 0 | L15: 1 | M15: 1 | N15: 1 | O15: 0 | P15: 1 | Q15: 1 | R15: 0 | S15: 1 | T15: 1 | U15: 0 | V15: 0 | W15: 0 | X15: 0 | Y15: 1 | Z15: 0 | AA15: 0 | AB15: 1 | AC15: 0 | AD15: 1 | AE15: 0 | AF15: 1 | AG15: 0 | AH15: 0 | AI15: 0 | AJ15: 0 | AK15: 0 | AL15: 0 | AM15: 0 | AN15: 1 | AO15: 0 | AP15: 1 | AQ15: 0 | AR15: 0 | AS15: 0 | AT15: 1 | AU15: 1 | AV15: 0 | AW15: 1 | AX15: 1 | AY15: 0 | AZ15: 1 | BA15: 1 | BB15: 0 | BC15: 0 | BD15: 0 | BE15: 1 | BF15: 0 | BG15: 0 | BH15: 0 | BI15: 1 | BJ15: 1 | BK15: 0 | BL15: 0 | BM15: 0 | BN15: 0 | BO15: 25

Sheet MATEMÁTICAS
J2: ORIGEN | K2: FICHA | L2: M25 | M2: M26 | N2: M27 | O2: M28 | P2: M29 | Q2: M30 | R2: M31 | S2: M32 | T2: M33 | U2: M34 | V2: M42 | W2: M48 | Z2: ORIGEN | AA2: M25 | AB2: M26 | AC2: M27 | AD2: M28 | AE2: M29 | AF2: M30 | AG2: M31 | AH2: M32 | AI2: M33 | AJ2: M46 | AK2: M47 | AL2: M48
J3: 08DPR0695N | K3: 1653704 | L3: 0 | M3: 0 | N3: 0 | O3: 1 | P3: 0 | Q3: 1 | R3: 1 | S3: 1 | T3: 0 | U3: 0 | V3: 1 | W3: 1 | Z3: 08DPR0695N | AA3: 0.5 | AB3: 0.7222222222 | AC3: 0.3444444444 | AD3: 0.5222222222 | AE3: 0.3333333333 | AF3: 0.7 | AG3: 0.7777777778 | AH3: 0.2444444444 | AI3: 0.4 | AJ3: 0.3222222222 | AK3: 0.4444444444 | AL3: 0.1777777778
J4: 08DPR0695N | K4: 1655335 | L4: 1 | M4: 0 | N4: 0 | O4: 0 | P4: 0 | Q4: 0 | R4: 1 | S4: 0 | T4: 1 | U4: 0 | V4: 0 | W4: 0
J5: 08DPR0695N | K5: 1655462 | L5: 0 | M5: 1 | N5: 0 | O5: 0 | P5: 0 | Q5: 0 | R5: 0 | S5: 0 | T5: 1 | U5: 0 | V5: 1 | W5: 0
J6: 08DPR0695N | K6: 1655688 | L6: 1 | M6: 1 | N6: 0 | O6: 1 | P6: 0 | Q6: 1 | R6: 1 | S6: 0 | T6: 1 | U6: 1 | V6: 1 | W6: 0
J7: 08DPR0695N | K7: 1658321 | L7: 0 | M7: 1 | N7: 0 | O7: 1 | P7: 1 | Q7: 0 | R7: 1 | S7: 1 | T7: 1 | U7: 0 | V7: 0 | W7: 0
J8: 08DPR0695N | K8: 1673239 | L8: 0 | M8: 0 | N8: 0 | O8: 0 | P8: 0 | Q8: 1 | R8: 1 | S8: 0 | T8: 0 | U8: 0 | V8: 1 | W8: 0
J9: 08DPR0695N | K9: 1673892 | L9: 0 | M9: 0 | N9: 0 | O9: 0 | P9: 1 | Q9: 0 | R9: 0 | S9: 0 | T9: 1 | U9: 0 | V9: 0 | W9: 1
J10: 08DPR0695N | K10: 1673894 | L10: 0 | M10: 1 | N10: 0 | O10: 1 | P10: 0 | Q10: 0 | R10: 1 | S10: 1 | T10: 1 | U10: 0 | V10: 0 | W10: 0
J11: 08DPR0695N | K11: 1677660 | L11: 1 | M11: 0 | N11: 0 | O11: 0 | P11: 1 | Q11: 1 | R11: 0 | S11: 1 | T11: 0 | U11: 1 | V11: 0 | W11: 0
J12: 08DPR0695N | K12: 1680106 | L12: 0 | M12: 1 | N12: 0 | O12: 1 | P12: 0 | Q12: 1 | R12: 1 | S12: 0 | T12: 0 | U12: 0 | V12: 1 | W12: 1
J13: 08DPR0695N | K13: 1692334 | L13: 1 | M13: 1 | N13: 1 | O13: 0 | P13: 1 | Q13: 1 | R13: 0 | S13: 0 | T13: 0 | U13: 0 | V13: 0 | W13: 1
J14: 08DPR0695N | K14: 1692933 | L14: 0 | M14: 1 | N14: 0 | O14: 0 | P14: 0 | Q14: 1 | R14: 1 | S14: 0 | T14: 1 | U14: 0 | V14: 1 | W14: 0
J15: 08DPR0695N | K15: 1693507 | L15: 1 | M15: 0 | N15: 0 | O15: 1 | P15: 0 | Q15: 0 | R15: 1 | S15: 0 | T15: 0 | U15: 1 | V15: 1 | W15: 0
J16: 08DPR0695N | K16: 1695946 | L16: 0 | M16: 1 | N16: 0 | O16: 1 | P16: 0 | Q16: 1 | R16: 1 | S16: 0 | T16: 0 | U16: 0 | V16: 1 | W16: 0
J17: 08DPR0695N | K17: 1705096 | L17: 0 | M17: 1 | N17: 0 | O17: 1 | P17: 0 | Q17: 1 | R17: 1 | S17: 0 | T17: 0 | U17: 1 | V17: 1 | W17: 0
J18: 08DPR0695N | K18: 1705387 | L18: 0 | M18: 1 | N18: 0 | O18: 0 | P18: 0 | Q18: 1 | R18: 1 | S18: 0 | T18: 1 | U18: 1 | V18: 0 | W18: 0
J19: 08DPR0695N | K19: 1705391 | L19: 0 | M19: 1 | N19: 0 | O19: 1 | P19: 0 | Q19: 0 | R19: 1 | S19: 0 | T19: 0 | U19: 0 | V19: 1 | W19: 0
J20: 08DPR0695N | K20: 1706377 | L20: 1 | M20: 1 | N20: 0 | O20: 0 | P20: 0 | Q20: 1 | R20: 1 | S20: 0 | T20: 0 | U20: 0 | V20: 1 | W20: 1
J21: 08DPR0695N | K21: 1707710 | L21: 1 | M21: 0 | N21: 1 | O21: 1 | P21: 1 | Q21: 1 | R21: 1 | S21: 1 | T21: 0 | U21: 1 | V21: 1 | W21: 0
J22: 08DPR0695N | K22: 1708328 | L22: 1 | M22: 1 | N22: 0 | O22: 1 | P22: 0 | Q22: 1 | R22: 0 | S22: 0 | T22: 0 | U22: 0 | V22: 1 | W22: 0
J23: 08DPR0695N | K23: 1708682 | L23: 0 | M23: 1 | N23: 1 | O23: 1 | P23: 0 | Q23: 1 | R23: 1 | S23: 0 | T23: 0 | U23: 1 | V23: 0 | W23: 0
J24: 08DPR0695N | K24: 1710352 | L24: 1 | M24: 1 | N24: 0 | O24: 0 | P24: 0 | Q24: 1 | R24: 1 | S24: 0 | T24: 0 | U24: 0 | V24: 0 | W24: 0
J25: 08DPR0695N | K25: 1712212 | L25: 0 | M25: 0 | N25: 0 | O25: 0 | P25: 0 | Q25: 1 | R25: 0 | S25: 1 | T25: 1 | U25: 0 | V25: 0 | W25: 0
J26: 08DPR0695N | K26: 1721642 | L26: 1 | M26: 1 | N26: 0 | O26: 1 | P26: 1 | Q26: 1 | R26: 1 | S26: 0 | T26: 0 | U26: 0 | V26: 1 | W26: 0
J27: 08DPR0695N | K27: 1722160 | L27: 0 | M27: 1 | N27: 1 | O27: 1 | P27: 0 | Q27: 1 | R27: 1 | S27: 1 | T27: 0 | U27: 1 | V27: 0 | W27: 0
J28: 08DPR0695N | K28: 1726785 | L28: 0 | M28: 1 | N28: 0 | O28: 0 | P28: 0 | Q28: 1 | R28: 1 | S28: 0 | T28: 0 | U28: 0 | V28: 0 | W28: 0
J29: 08DPR0695N | K29: 1726922 | L29: 1 | M29: 1 | N29: 0 | O29: 1 | P29: 1 | Q29: 1 | R29: 1 | S29: 0 | T29: 1 | U29: 1 | V29: 0 | W29: 0
J30: 08DPR0695N | K30: 1727228 | L30: 0 | M30: 1 | N30: 1 | O30: 0 | P30: 0 | Q30: 0 | R30: 1 | S30: 0 | T30: 1 | U30: 0 | V30: 1 | W30: 0
J31: 08DPR0695N | K31: 1727499 | L31: 1 | M31: 1 | N31: 1 | O31: 0 | P31: 0 | Q31: 1 | R31: 1 | S31: 0 | T31: 0 | U31: 0 | V31: 1 | W31: 0
J32: 08DPR0695N | K32: 1727897 | L32: 1 | M32: 1 | N32: 1 | O32: 0 | P32: 1 | Q32: 1 | R32: 1 | S32: 0 | T32: 0 | U32: 0 | V32: 0 | W32: 0
J33: 08DPR0695N | K33: 1729472 | L33: 1 | M33: 0 | N33: 0 | O33: 0 | P33: 1 | Q33: 1 | R33: 1 | S33: 0 | T33: 1 | U33: 0 | V33: 1 | W33: 1
J34: 08DPR0695N | K34: 1729494 | L34: 1 | M34: 1 | N34: 1 | O34: 1 | P34: 1 | Q34: 1 | R34: 1 | S34: 1 | T34: 0 | U34: 0 | V34: 1 | W34: 0
J35: 08DPR0695N | K35: 1730678 | L35: 0 | M35: 0 | N35: 0 | O35: 0 | P35: 0 | Q35: 0 | R35: 1 | S35: 1 | T35: 1 | U35: 0 | V35: 1 | W35: 0
J36: 08DPR0695N | K36: 1730802 | L36: 1 | M36: 0 | N36: 0 | O36: 1 | P36: 1 | Q36: 1 | R36: 1 | S36: 1 | T36: 0 | U36: 0 | V36: 0 | W36: 0
J37: 08DPR0695N | K37: 1730879 | L37: 1 | M37: 0 | N37: 0 | O37: 1 | P37: 1 | Q37: 0 | R37: 1 | S37: 0 | T37: 1 | U37: 1 | V37: 0 | W37: 0
J38: 08DPR0695N | K38: 1733442 | L38: 0 | M38: 1 | N38: 1 | O38: 1 | P38: 0 | Q38: 0 | R38: 1 | S38: 0 | T38: 0 | U38: 0 | V38: 0 | W38: 0
J39: 08DPR0695N | K39: 1734441 | L39: 0 | M39: 1 | N39: 1 | O39: 0 | P39: 1 | Q39: 0 | R39: 1 | S39: 0 | T39: 1 | U39: 0 | V39: 0 | W39: 0
J40: 08DPR0695N | K40: 1736155 | L40: 1 | M40: 0 | N40: 0 | O40: 1 | P40: 1 | Q40: 1 | R40: 1 | S40: 0 | T40: 1 | U40: 1 | V40: 1 | W40: 0
J41: 08DPR0695N | K41: 1736466 | L41: 1 | M41: 1 | N41: 1 | O41: 1 | P41: 1 | Q41: 1 | R41: 1 | S41: 0 | T41: 1 | U41: 1 | V41: 1 | W41: 0
J42: 08DPR0695N | K42: 1737720 | L42: 1 | M42: 1 | N42: 1 | O42: 0 | P42: 0 | Q42: 1 | R42: 1 | S42: 0 | T42: 1 | U42: 0 | V42: 1 | W42: 0
J43: 08DPR0695N | K43: 1737772 | L43: 0 | M43: 1 | N43: 0 | O43: 1 | P43: 1 | Q43: 1 | R43: 0 | S43: 0 | T43: 0 | U43: 0 | V43: 0 | W43: 0
J44: 08DPR0695N | K44: 1738388 | L44: 1 | M44: 1 | N44: 1 | O44: 1 | P44: 1 | Q44: 1 | R44: 1 | S44: 1 | T44: 0 | U44: 0 | V44: 0 | W44: 0
J45: 08DPR0695N | K45: 1738716 | L45: 1 | M45: 1 | N45: 0 | O45: 0 | P45: 0 | Q45: 0 | R45: 1 | S45: 0 | T45: 1 | U45: 0 | V45: 1 | W45: 0
J46: 08DPR0695N | K46: 1738970 | L46: 0 | M46: 1 | N46: 0 | O46: 0 | P46: 1 | Q46: 0 | R46: 1 | S46: 0 | T46: 0 | U46: 1 | V46: 0 | W46: 1
J47: 08DPR0695N | K47: 1739126 | L47: 0 | M47: 1 | N47: 1 | O47: 1 | P47: 0 | Q47: 1 | R47: 1 | S47: 0 | T47: 0 | U47: 0 | V47: 0 | W47: 0
J48: 08DPR0695N | K48: 1739739 | L48: 1 | M48: 1 | N48: 0 | O48: 0 | P48: 0 | Q48: 1 | R48: 0 | S48: 0 | T48: 1 | U48: 0 | V48: 0 | W48: 1
J49: 08DPR0695N | K49: 1739771 | L49: 0 | M49: 1 | N49: 0 | O49: 0 | P49: 0 | Q49: 0 | R49: 1 | S49: 0 | T49: 1 | U49: 0 | V49: 1 | W49: 0
J50: 08DPR0695N | K50: 1742907 | L50: 0 | M50: 1 | N50: 1 | O50: 0 | P50: 0 | Q50: 1 | R50: 1 | S50: 0 | T50: 0 | U50: 1 | V50: 0 | W50: 0
J51: 08DPR0695N | K51: 1745499 | L51: 1 | M51: 0 | N51: 1 | O51: 0 | P51: 0 | Q51: 0 | R51: 1 | S51: 0 | T51: 0 | U51: 0 | V51: 1 | W51: 0
J52: 08DPR0695N | K52: 1753716 | L52: 0 | M52: 1 | N52: 0 | O52: 1 | P52: 0 | Q52: 0 | R52: 0 | S52: 0 | T52: 0 | U52: 0 | V52: 0 | W52: 0
J53: 08DPR0695N | K53: 1753793 | L53: 0 | M53: 1 | N53: 0 | O53: 1 | P53: 0 | Q53: 1 | R53: 0 | S53: 0 | T53: 1 | U53: 0 | V53: 1 | W53: 0
J54: 08DPR0695N | K54: 1753948 | L54: 1 | M54: 1 | N54: 0 | O54: 0 | P54: 1 | Q54: 1 | R54: 1 | S54: 1 | T54: 0 | U54: 0 | V54: 0 | W54: 0
J55: 08DPR0695N | K55: 1754500 | L55: 1 | M55: 1 | N55: 0 | O55: 0 | P55: 0 | Q55: 1 | R55: 1 | S55: 0 | T55: 0 | U55: 0 | V55: 1 | W55: 0
J56: 08DPR0695N | K56: 1754691 | L56: 1 | M56: 0 | N56: 1 | O56: 0 | P56: 1 | Q56: 1 | R56: 1 | S56: 1 | T56: 0 | U56: 1 | V56: 0 | W56: 1
J57: 08DPR0695N | K57: 1755037 | L57: 0 | M57: 1 | N57: 0 | O57: 1 | P57: 0 | Q57: 1 | R57: 1 | S57: 0 | T57: 1 | U57: 0 | V57: 0 | W57: 0
J58: 08DPR0695N | K58: 1756233 | L58: 1 | M58: 0 | N58: 1 | O58: 0 | P58: 0 | Q58: 0 | R58: 1 | S58: 0 | T58: 0 | U58: 1 | V58: 0 | W58: 0
J59: 08DPR0695N | K59: 1759832 | L59: 1 | M59: 0 | N59: 1 | O59: 1 | P59: 0 | Q59: 1 | R59: 0 | S59: 0 | T59: 1 | U59: 1 | V59: 0 | W59: 0
J60: 08DPR0695N | K60: 1763196 | L60: 0 | M60: 1 | N60: 0 | O60: 1 | P60: 0 | Q60: 0 | R60: 1 | S60: 0 | T60: 0 | U60: 0 | V60: 1 | W60: 1
J61: 08DPR0695N | K61: 1763281 | L61: 1 | M61: 1 | N61: 0 | O61: 0 | P61: 0 | Q61: 1 | R61: 1 | S61: 0 | T61: 0 | U61: 0 | V61: 1 | W61: 0
J62: 08DPR0695N | K62: 1763359 | L62: 1 | M62: 1 | N62: 0 | O62: 1 | P62: 0 | Q62: 1 | R62: 1 | S62: 1 | T62: 0 | U62: 0 | V62: 0 | W62: 1
J63: 08DPR0695N | K63: 1763409 | L63: 0 | M63: 0 | N63: 0 | O63: 1 | P63: 1 | Q63: 0 | R63: 1 | S63: 0 | T63: 0 | U63: 1 | V63: 0 | W63: 0
J64: 08DPR0695N | K64: 1763416 | L64: 1 | M64: 1 | N64: 0 | O64: 1 | P64: 0 | Q64: 1 | R64: 1 | S64: 0 | T64: 0 | U64: 0 | V64: 1 | W64: 0
J65: 08DPR0695N | K65: 1763721 | L65: 1 | M65: 1 | N65: 1 | O65: 1 | P65: 1 | Q65: 1 | R65: 1 | S65: 0 | T65: 1 | U65: 1 | V65: 1 | W65: 0
J66: 08DPR0695N | K66: 1764372 | L66: 0 | M66: 1 | N66: 0 | O66: 1 | P66: 0 | Q66: 0 | R66: 0 | S66: 1 | T66: 1 | U66: 0 | V66: 0 | W66: 0
J67: 08DPR0695N | K67: 1765933 | L67: 0 | M67: 1 | N67: 0 | O67: 0 | P67: 0 | Q67: 1 | R67: 1 | S67: 0 | T67: 1 | U67: 0 | V67: 0 | W67: 0
J68: 08DPR0695N | K68: 1765995 | L68: 1 | M68: 0 | N68: 1 | O68: 1 | P68: 0 | Q68: 1 | R68: 1 | S68: 1 | T68: 0 | U68: 1 | V68: 0 | W68: 0
J69: 08DPR0695N | K69: 1766566 | L69: 0 | M69: 1 | N69: 0 | O69: 1 | P69: 1 | Q69: 1 | R69: 0 | S69: 0 | T69: 0 | U69: 0 | V69: 0 | W69: 1
J70: 08DPR0695N | K70: 1766591 | L70: 0 | M70: 1 | N70: 0 | O70: 1 | P70: 0 | Q70: 1 | R70: 1 | S70: 0 | T70: 0 | U70: 0 | V70: 0 | W70: 0
J71: 08DPR0695N | K71: 1767035 | L71: 0 | M71: 0 | N71: 0 | O71: 0 | P71: 0 | Q71: 1 | R71: 0 | S71: 0 | T71: 1 | U71: 1 | V71: 1 | W71: 0
J72: 08DPR0695N | K72: 1767053 | L72: 1 | M72: 1 | N72: 1 | O72: 1 | P72: 1 | Q72: 1 | R72: 1 | S72: 0 | T72: 0 | U72: 1 | V72: 0 | W72: 0
J73: 08DPR0695N | K73: 1767060 | L73: 0 | M73: 1 | N73: 1 | O73: 0 | P73: 0 | Q73: 1 | R73: 1 | S73: 0 | T73: 0 | U73: 0 | V73: 0 | W73: 0
J74: 08DPR0695N | K74: 1767067 | L74: 1 | M74: 1 | N74: 0 | O74: 1 | P74: 1 | Q74: 1 | R74: 1 | S74: 0 | T74: 0 | U74: 0 | V74: 1 | W74: 0
J75: 08DPR0695N | K75: 1768529 | L75: 1 | M75: 1 | N75: 1 | O75: 0 | P75: 0 | Q75: 1 | R75: 1 | S75: 0 | T75: 1 | U75: 0 | V75: 0 | W75: 0
J76: 08DPR0695N | K76: 1779625 | L76: 0 | M76: 0 | N76: 0 | O76: 1 | P76: 1 | Q76: 1 | R76: 1 | S76: 0 | T76: 1 | U76: 0 | V76: 0 | W76: 0
J77: 08DPR0695N | K77: 1782888 | L77: 0 | M77: 1 | N77: 0 | O77: 1 | P77: 0 | Q77: 0 | R77: 1 | S77: 1 | T77: 1 | U77: 0 | V77: 1 | W77: 0
J78: 08DPR0695N | K78: 1783194 | L78: 1 | M78: 1 | N78: 1 | O78: 1 | P78: 1 | Q78: 1 | R78: 1 | S78: 0 | T78: 1 | U78: 0 | V78: 0 | W78: 0
J79: 08DPR0695N | K79: 1790078 | L79: 1 | M79: 0 | N79: 0 | O79: 0 | P79: 0 | Q79: 1 | R79: 0 | S79: 1 | T79: 0 | U79: 1 | V79: 0 | W79: 1
J80: 08DPR0695N | K80: 1793444 | L80: 1 | M80: 0 | N80: 1 | O80: 0 | P80: 0 | Q80: 1 | R80: 0 | S80: 1 | T80: 0 | U80: 1 | V80: 1 | W80: 0
J81: 08DPR0695N | K81: 1793993 | L81: 0 | M81: 1 | N81: 0 | O81: 0 | P81: 0 | Q81: 0 | R81: 0 | S81: 0 | T81: 0 | U81: 0 | V81: 1 | W81: 1
J82: 08DPR0695N | K82: 1809261 | L82: 0 | M82: 1 | N82: 1 | O82: 0 | P82: 0 | Q82: 0 | R82: 1 | S82: 0 | T82: 1 | U82: 1 | V82: 1 | W82: 0
J83: 08DPR0695N | K83: 1816844 | L83: 0 | M83: 1 | N83: 0 | O83: 0 | P83: 0 | Q83: 1 | R83: 0 | S83: 0 | T83: 0 | U83: 1 | V83: 1 | W83: 0
J84: 08DPR0695N | K84: 1826440 | L84: 0 | M84: 1 | N84: 0 | O84: 1 | P84: 0 | Q84: 0 | R84: 1 | S84: 1 | T84: 0 | U84: 1 | V84: 1 | W84: 0
J85: 08DPR0695N | K85: 1846079 | L85: 0 | M85: 1 | N85: 1 | O85: 0 | P85: 0 | Q85: 0 | R85: 1 | S85: 0 | T85: 0 | U85: 0 | V85: 1 | W85: 0
J86: 08DPR0695N | K86: 1855441 | L86: 1 | M86: 1 | N86: 0 | O86: 0 | P86: 1 | Q86: 1 | R86: 0 | S86: 0 | T86: 1 | U86: 1 | V86: 0 | W86: 1
J87: 08DPR0695N | K87: 1887569 | L87: 1 | M87: 1 | N87: 1 | O87: 1 | P87: 0 | Q87: 1 | R87: 1 | S87: 0 | T87: 1 | U87: 0 | V87: 0 | W87: 0
J88: 08DPR0695N | K88: 1887706 | L88: 1 | M88: 1 | N88: 1 | O88: 1 | P88: 0 | Q88: 1 | R88: 1 | S88: 0 | T88: 0 | U88: 0 | V88: 0 | W88: 0
J89: 08DPR0695N | K89: 1901203 | L89: 0 | M89: 0 | N89: 0 | O89: 1 | P89: 0 | Q89: 1 | R89: 1 | S89: 1 | T89: 0 | U89: 0 | V89: 0 | W89: 1
J90: 08DPR0695N | K90: 2324186 | L90: 1 | M90: 1 | N90: 1 | O90: 1 | P90: 1 | Q90: 1 | R90: 1 | S90: 0 | T90: 0 | U90: 1 | V90: 0 | W90: 0
J91: 08DPR0695N | K91: 2430309 | L91: 1 | M91: 0 | N91: 0 | O91: 0 | P91: 0 | Q91: 0 | R91: 0 | S91: 1 | T91: 0 | U91: 0 | V91: 0 | W91: 0
J92: 08DPR0695N | K92: 2450369 | L92: 0 | M92: 1 | N92: 0 | O92: 0 | P92: 1 | Q92: 1 | R92: 1 | S92: 0 | T92: 1 | U92: 0 | V92: 0 | W92: 0

Sheet GEOMETRÍA
K2: ORIGEN | L2: FICHA | M2: G34 | N2: G35 | O2: G36 | P2: G37 | Q2: G38 | R2: G39 | S2: G40 | T2: G41 | U2: G42 | V2: G43 | W2: G44 | X2: G45 | AA2: ORIGEN | AB2: G34 | AC2: G35 | AD2: G36 | AE2: G37 | AF2: G38 | AG2: G39 | AH2: G40 | AI2: G41 | AJ2: G42 | AK2: G43 | AL2: G44 | AM2: G45
K3: 08DPR0695N | L3: 1653704 | M3: 0 | N3: 1 | O3: 0 | P3: 1 | Q3: 0 | R3: 0 | S3: 1 | T3: 1 | U3: 0 | V3: 0 | W3: 0 | X3: 1 | AA3: 08DPR0695N | AB3: 0.5111111111 | AC3: 0.2666666667 | AD3: 0.8222222222 | AE3: 0.3888888889 | AF3: 0.4222222222 | AG3: 0.7888888889 | AH3: 0.7111111111 | AI3: 0.6888888889 | AJ3: 0.3555555556 | AK3: 0.4 | AL3: 0.6444444444 | AM3: 0.3444444444
K4: 08DPR0695N | L4: 1655335 | M4: 0 | N4: 0 | O4: 1 | P4: 0 | Q4: 0 | R4: 0 | S4: 1 | T4: 0 | U4: 1 | V4: 1 | W4: 1 | X4: 0
K5: 08DPR0695N | L5: 1655462 | M5: 0 | N5: 0 | O5: 1 | P5: 0 | Q5: 1 | R5: 1 | S5: 0 | T5: 1 | U5: 0 | V5: 0 | W5: 1 | X5: 0
K6: 08DPR0695N | L6: 1655688 | M6: 0 | N6: 0 | O6: 1 | P6: 1 | Q6: 1 | R6: 0 | S6: 1 | T6: 1 | U6: 1 | V6: 0 | W6: 1 | X6: 0
K7: 08DPR0695N | L7: 1658321 | M7: 1 | N7: 0 | O7: 1 | P7: 0 | Q7: 0 | R7: 0 | S7: 1 | T7: 1 | U7: 1 | V7: 0 | W7: 0 | X7: 0
K8: 08DPR0695N | L8: 1673239 | M8: 1 | N8: 1 | O8: 1 | P8: 1 | Q8: 1 | R8: 1 | S8: 0 | T8: 0 | U8: 1 | V8: 1 | W8: 1 | X8: 1
K9: 08DPR0695N | L9: 1673892 | M9: 0 | N9: 0 | O9: 0 | P9: 0 | Q9: 0 | R9: 0 | S9: 0 | T9: 1 | U9: 0 | V9: 0 | W9: 0 | X9: 0
K10: 08DPR0695N | L10: 1673894 | M10: 1 | N10: 0 | O10: 1 | P10: 0 | Q10: 1 | R10: 1 | S10: 0 | T10: 1 | U10: 0 | V10: 1 | W10: 1 | X10: 0
H11: UNIDADES DE DIAGNÓSTICO | K11: 08DPR0695N | L11: 1677660 | M11: 1 | N11: 1 | O11: 1 | P11: 0 | Q11: 0 | R11: 0 | S11: 0 | T11: 0 | U11: 0 | V11: 1 | W11: 0 | X11: 1
K12: 08DPR0695N | L12: 1680106 | M12: 1 | N12: 0 | O12: 0 | P12: 0 | Q12: 1 | R12: 1 | S12: 1 | T12: 1 | U12: 0 | V12: 0 | W12: 0 | X12: 1
K13: 08DPR0695N | L13: 1692334 | M13: 1 | N13: 0 | O13: 1 | P13: 0 | Q13: 0 | R13: 1 | S13: 1 | T13: 1 | U13: 0 | V13: 1 | W13: 1 | X13: 1
K14: 08DPR0695N | L14: 1692933 | M14: 0 | N14: 0 | O14: 1 | P14: 0 | Q14: 0 | R14: 1 | S14: 0 | T14: 1 | U14: 0 | V14: 0 | W14: 1 | X14: 1
K15: 08DPR0695N | L15: 1693507 | M15: 0 | N15: 0 | O15: 1 | P15: 0 | Q15: 0 | R15: 0 | S15: 1 | T15: 0 | U15: 0 | V15: 0 | W15: 0 | X15: 1
K16: 08DPR0695N | L16: 1695946 | M16: 1 | N16: 1 | O16: 1 | P16: 0 | Q16: 1 | R16: 1 | S16: 1 | T16: 1 | U16: 0 | V16: 1 | W16: 1 | X16: 1
K17: 08DPR0695N | L17: 1705096 | M17: 0 | N17: 0 | O17: 1 | P17: 1 | Q17: 0 | R17: 1 | S17: 1 | T17: 1 | U17: 0 | V17: 0 | W17: 1 | X17: 0
K18: 08DPR0695N | L18: 1705387 | M18: 0 | N18: 0 | O18: 1 | P18: 1 | Q18: 0 | R18: 1 | S18: 1 | T18: 0 | U18: 1 | V18: 1 | W18: 0 | X18: 0
K19: 08DPR0695N | L19: 1705391 | M19: 1 | N19: 1 | O19: 1 | P19: 0 | Q19: 1 | R19: 1 | S19: 1 | T19: 0 | U19: 1 | V19: 1 | W19: 1 | X19: 0
K20: 08DPR0695N | L20: 1706377 | M20: 0 | N20: 0 | O20: 1 | P20: 1 | Q20: 0 | R20: 1 | S20: 1 | T20: 1 | U20: 1 | V20: 1 | W20: 1 | X20: 0
K21: 08DPR0695N | L21: 1707710 | M21: 1 | N21: 1 | O21: 1 | P21: 1 | Q21: 1 | R21: 1 | S21: 1 | T21: 1 | U21: 1 | V21: 1 | W21: 1 | X21: 1
K22: 08DPR0695N | L22: 1708328 | M22: 1 | N22: 0 | O22: 1 | P22: 0 | Q22: 1 | R22: 1 | S22: 0 | T22: 1 | U22: 0 | V22: 1 | W22: 0 | X22: 0
K23: 08DPR0695N | L23: 1708682 | M23: 0 | N23: 1 | O23: 1 | P23: 0 | Q23: 0 | R23: 1 | S23: 1 | T23: 0 | U23: 0 | V23: 0 | W23: 1 | X23: 0
K24: 08DPR0695N | L24: 1710352 | M24: 1 | N24: 1 | O24: 1 | P24: 1 | Q24: 1 | R24: 1 | S24: 1 | T24: 1 | U24: 1 | V24: 1 | W24: 1 | X24: 1
K25: 08DPR0695N | L25: 1712212 | M25: 1 | N25: 0 | O25: 1 | P25: 0 | Q25: 0 | R25: 1 | S25: 0 | T25: 1 | U25: 0 | V25: 0 | W25: 1 | X25: 0
K26: 08DPR0695N | L26: 1721642 | M26: 1 | N26: 1 | O26: 1 | P26: 0 | Q26: 1 | R26: 1 | S26: 1 | T26: 1 | U26: 0 | V26: 0 | W26: 1 | X26: 0
K27: 08DPR0695N | L27: 1722160 | M27: 1 | N27: 0 | O27: 1 | P27: 0 | Q27: 0 | R27: 1 | S27: 1 | T27: 1 | U27: 1 | V27: 0 | W27: 0 | X27: 1
K28: 08DPR0695N | L28: 1726785 | M28: 0 | N28: 0 | O28: 1 | P28: 1 | Q28: 0 | R28: 1 | S28: 1 | T28: 1 | U28: 0 | V28: 0 | W28: 1 | X28: 1
K29: 08DPR0695N | L29: 1726922 | M29: 1 | N29: 1 | O29: 1 | P29: 1 | Q29: 0 | R29: 1 | S29: 1 | T29: 1 | U29: 1 | V29: 1 | W29: 1 | X29: 0
K30: 08DPR0695N | L30: 1727228 | M30: 0 | N30: 0 | O30: 1 | P30: 0 | Q30: 1 | R30: 1 | S30: 1 | T30: 1 | U30: 0 | V30: 0 | W30: 1 | X30: 1
K31: 08DPR0695N | L31: 1727499 | M31: 1 | N31: 0 | O31: 1 | P31: 0 | Q31: 0 | R31: 1 | S31: 1 | T31: 1 | U31: 0 | V31: 0 | W31: 1 | X31: 0
K32: 08DPR0695N | L32: 1727897 | M32: 1 | N32: 0 | O32: 1 | P32: 1 | Q32: 0 | R32: 1 | S32: 1 | T32: 1 | U32: 1 | V32: 0 | W32: 1 | X32: 0
K33: 08DPR0695N | L33: 1729472 | M33: 0 | N33: 1 | O33: 0 | P33: 1 | Q33: 1 | R33: 1 | S33: 1 | T33: 1 | U33: 0 | V33: 1 | W33: 1 | X33: 0
K34: 08DPR0695N | L34: 1729494 | M34: 1 | N34: 1 | O34: 1 | P34: 0 | Q34: 1 | R34: 1 | S34: 1 | T34: 1 | U34: 1 | V34: 1 | W34: 1 | X34: 1
K35: 08DPR0695N | L35: 1730678 | M35: 1 | N35: 0 | O35: 1 | P35: 0 | Q35: 1 | R35: 0 | S35: 1 | T35: 1 | U35: 1 | V35: 0 | W35: 1 | X35: 0
K36: 08DPR0695N | L36: 1730802 | M36: 1 | N36: 0 | O36: 1 | P36: 1 | Q36: 1 | R36: 1 | S36: 1 | T36: 1 | U36: 0 | V36: 0 | W36: 1 | X36: 0
K37: 08DPR0695N | L37: 1730879 | M37: 0 | N37: 0 | O37: 1 | P37: 0 | Q37: 1 | R37: 1 | S37: 1 | T37: 1 | U37: 1 | V37: 1 | W37: 1 | X37: 0
K38: 08DPR0695N | L38: 1733442 | M38: 1 | N38: 1 | O38: 1 | P38: 1 | Q38: 0 | R38: 1 | S38: 1 | T38: 1 | U38: 0 | V38: 0 | W38: 0 | X38: 0
K39: 08DPR0695N | L39: 1734441 | M39: 0 | N39: 1 | O39: 0 | P39: 1 | Q39: 0 | R39: 0 | S39: 1 | T39: 0 | U39: 1 | V39: 0 | W39: 1 | X39: 0
K40: 08DPR0695N | L40: 1736155 | M40: 0 | N40: 0 | O40: 0 | P40: 0 | Q40: 0 | R40: 1 | S40: 0 | T40: 0 | U40: 0 | V40: 0 | W40: 1 | X40: 0
K41: 08DPR0695N | L41: 1736466 | M41: 1 | N41: 1 | O41: 1 | P41: 1 | Q41: 1 | R41: 1 | S41: 1 | T41: 1 | U41: 1 | V41: 1 | W41: 1 | X41: 1
K42: 08DPR0695N | L42: 1737720 | M42: 0 | N42: 0 | O42: 1 | P42: 0 | Q42: 0 | R42: 0 | S42: 0 | T42: 0 | U42: 1 | V42: 0 | W42: 0 | X42: 1
K43: 08DPR0695N | L43: 1737772 | M43: 0 | N43: 1 | O43: 1 | P43: 0 | Q43: 0 | R43: 0 | S43: 1 | T43: 0 | U43: 1 | V43: 0 | W43: 1 | X43: 0
K44: 08DPR0695N | L44: 1738388 | M44: 0 | N44: 0 | O44: 1 | P44: 1 | Q44: 1 | R44: 1 | S44: 1 | T44: 1 | U44: 0 | V44: 0 | W44: 1 | X44: 1
K45: 08DPR0695N | L45: 1738716 | M45: 1 | N45: 1 | O45: 1 | P45: 0 | Q45: 1 | R45: 1 | S45: 1 | T45: 1 | U45: 0 | V45: 0 | W45: 1 | X45: 1
K46: 08DPR0695N | L46: 1738970 | M46: 0 | N46: 1 | O46: 1 | P46: 0 | Q46: 1 | R46: 1 | S46: 0 | T46: 1 | U46: 0 | V46: 0 | W46: 0 | X46: 0
K47: 08DPR0695N | L47: 1739126 | M47: 1 | N47: 0 | O47: 1 | P47: 0 | Q47: 1 | R47: 1 | S47: 1 | T47: 1 | U47: 1 | V47: 0 | W47: 1 | X47: 0
K48: 08DPR0695N | L48: 1739739 | M48: 1 | N48: 1 | O48: 1 | P48: 0 | Q48: 0 | R48: 1 | S48: 0 | T48: 1 | U48: 0 | V48: 1 | W48: 1 | X48: 1
K49: 08DPR0695N | L49: 1739771 | M49: 0 | N49: 0 | O49: 0 | P49: 0 | Q49: 0 | R49: 1 | S49: 0 | T49: 0 | U49: 0 | V49: 0 | W49: 0 | X49: 1
K50: 08DPR0695N | L50: 1742907 | M50: 0 | N50: 0 | O50: 1 | P50: 0 | Q50: 0 | R50: 1 | S50: 1 | T50: 1 | U50: 0 | V50: 0 | W50: 1 | X50: 0
K51: 08DPR0695N | L51: 1745499 | M51: 0 | N51: 0 | O51: 1 | P51: 0 | Q51: 1 | R51: 1 | S51: 1 | T51: 1 | U51: 0 | V51: 1 | W51: 0 | X51: 0
K52: 08DPR0695N | L52: 1753716 | M52: 1 | N52: 0 | O52: 1 | P52: 0 | Q52: 1 | R52: 1 | S52: 1 | T52: 1 | U52: 0 | V52: 0 | W52: 1 | X52: 0
K53: 08DPR0695N | L53: 1753793 | M53: 0 | N53: 0 | O53: 1 | P53: 0 | Q53: 0 | R53: 1 | S53: 1 | T53: 0 | U53: 0 | V53: 0 | W53: 0 | X53: 0
K54: 08DPR0695N | L54: 1753948 | M54: 1 | N54: 0 | O54: 1 | P54: 1 | Q54: 1 | R54: 1 | S54: 1 | T54: 1 | U54: 0 | V54: 1 | W54: 1 | X54: 0
K55: 08DPR0695N | L55: 1754500 | M55: 1 | N55: 0 | O55: 1 | P55: 1 | Q55: 0 | R55: 1 | S55: 1 | T55: 1 | U55: 0 | V55: 0 | W55: 1 | X55: 0
K56: 08DPR0695N | L56: 1754691 | M56: 1 | N56: 0 | O56: 1 | P56: 0 | Q56: 0 | R56: 0 | S56: 1 | T56: 0 | U56: 1 | V56: 0 | W56: 0 | X56: 0
K57: 08DPR0695N | L57: 1755037 | M57: 1 | N57: 0 | O57: 0 | P57: 0 | Q57: 0 | R57: 1 | S57: 0 | T57: 0 | U57: 0 | V57: 0 | W57: 1 | X57: 0
K58: 08DPR0695N | L58: 1756233 | M58: 0 | N58: 0 | O58: 0 | P58: 0 | Q58: 0 | R58: 1 | S58: 0 | T58: 1 | U58: 0 | V58: 0 | W58: 0 | X58: 0
K59: 08DPR0695N | L59: 1759832 | M59: 0 | N59: 0 | O59: 1 | P59: 0 | Q59: 1 | R59: 1 | S59: 1 | T59: 1 | U59: 0 | V59: 1 | W59: 1 | X59: 0
K60: 08DPR0695N | L60: 1763196 | M60: 1 | N60: 0 | O60: 0 | P60: 0 | Q60: 0 | R60: 1 | S60: 1 | T60: 1 | U60: 0 | V60: 1 | W60: 1 | X60: 1
K61: 08DPR0695N | L61: 1763281 | M61: 1 | N61: 0 | O61: 1 | P61: 0 | Q61: 0 | R61: 1 | S61: 0 | T61: 1 | U61: 1 | V61: 0 | W61: 1 | X61: 1
K62: 08DPR0695N | L62: 1763359 | M62: 0 | N62: 0 | O62: 1 | P62: 0 | Q62: 0 | R62: 0 | S62: 1 | T62: 0 | U62: 0 | V62: 0 | W62: 0 | X62: 1
K63: 08DPR0695N | L63: 1763409 | M63: 0 | N63: 1 | O63: 1 | P63: 0 | Q63: 1 | R63: 1 | S63: 1 | T63: 0 | U63: 1 | V63: 1 | W63: 1 | X63: 0
K64: 08DPR0695N | L64: 1763416 | M64: 0 | N64: 0 | O64: 1 | P64: 0 | Q64: 1 | R64: 1 | S64: 1 | T64: 1 | U64: 0 | V64: 1 | W64: 0 | X64: 0
K65: 08DPR0695N | L65: 1763721 | M65: 0 | N65: 1 | O65: 1 | P65: 1 | Q65: 1 | R65: 1 | S65: 1 | T65: 1 | U65: 0 | V65: 1 | W65: 0 | X65: 0
K66: 08DPR0695N | L66: 1764372 | M66: 1 | N66: 0 | O66: 1 | P66: 1 | Q66: 1 | R66: 1 | S66: 1 | T66: 1 | U66: 1 | V66: 0 | W66: 1 | X66: 1
K67: 08DPR0695N | L67: 1765933 | M67: 1 | N67: 0 | O67: 0 | P67: 0 | Q67: 0 | R67: 0 | S67: 1 | T67: 0 | U67: 1 | V67: 1 | W67: 0 | X67: 0
K68: 08DPR0695N | L68: 1765995 | M68: 0 | N68: 1 | O68: 1 | P68: 1 | Q68: 0 | R68: 1 | S68: 0 | T68: 1 | U68: 0 | V68: 1 | W68: 0 | X68: 0
K69: 08DPR0695N | L69: 1766566 | M69: 0 | N69: 0 | O69: 1 | P69: 1 | Q69: 0 | R69: 1 | S69: 1 | T69: 0 | U69: 0 | V69: 1 | W69: 1 | X69: 0
K70: 08DPR0695N | L70: 1766591 | M70: 1 | N70: 0 | O70: 1 | P70: 1 | Q70: 0 | R70: 1 | S70: 1 | T70: 1 | U70: 0 | V70: 0 | W70: 1 | X70: 0
K71: 08DPR0695N | L71: 1767035 | M71: 0 | N71: 0 | O71: 0 | P71: 0 | Q71: 0 | R71: 0 | S71: 0 | T71: 0 | U71: 1 | V71: 0 | W71: 1 | X71: 0
K72: 08DPR0695N | L72: 1767053 | M72: 0 | N72: 0 | O72: 1 | P72: 1 | Q72: 0 | R72: 1 | S72: 1 | T72: 1 | U72: 1 | V72: 0 | W72: 1 | X72: 0
K73: 08DPR0695N | L73: 1767060 | M73: 1 | N73: 0 | O73: 1 | P73: 1 | Q73: 0 | R73: 1 | S73: 0 | T73: 1 | U73: 0 | V73: 0 | W73: 1 | X73: 0
K74: 08DPR0695N | L74: 1767067 | M74: 1 | N74: 0 | O74: 1 | P74: 0 | Q74: 0 | R74: 1 | S74: 1 | T74: 1 | U74: 0 | V74: 0 | W74: 1 | X74: 1
K75: 08DPR0695N | L75: 1768529 | M75: 1 | N75: 1 | O75: 1 | P75: 0 | Q75: 1 | R75: 1 | S75: 0 | T75: 1 | U75: 1 | V75: 1 | W75: 0 | X75: 0
K76: 08DPR0695N | L76: 1779625 | M76: 1 | N76: 0 | O76: 1 | P76: 1 | Q76: 1 | R76: 1 | S76: 0 | T76: 0 | U76: 0 | V76: 0 | W76: 0 | X76: 1
K77: 08DPR0695N | L77: 1782888 | M77: 0 | N77: 0 | O77: 0 | P77: 1 | Q77: 1 | R77: 1 | S77: 1 | T77: 1 | U77: 0 | V77: 0 | W77: 0 | X77: 0
K78: 08DPR0695N | L78: 1783194 | M78: 1 | N78: 1 | O78: 1 | P78: 0 | Q78: 1 | R78: 1 | S78: 1 | T78: 1 | U78: 1 | V78: 1 | W78: 0 | X78: 1
K79: 08DPR0695N | L79: 1790078 | M79: 1 | N79: 0 | O79: 0 | P79: 1 | Q79: 0 | R79: 1 | S79: 0 | T79: 0 | U79: 1 | V79: 0 | W79: 0 | X79: 1
K80: 08DPR0695N | L80: 1793444 | M80: 0 | N80: 0 | O80: 0 | P80: 0 | Q80: 1 | R80: 0 | S80: 1 | T80: 1 | U80: 0 | V80: 0 | W80: 1 | X80: 0
K81: 08DPR0695N | L81: 1793993 | M81: 0 | N81: 0 | O81: 1 | P81: 0 | Q81: 1 | R81: 0 | S81: 0 | T81: 0 | U81: 0 | V81: 1 | W81: 1 | X81: 0
K82: 08DPR0695N | L82: 1809261 | M82: 0 | N82: 0 | O82: 1 | P82: 0 | Q82: 0 | R82: 0 | S82: 1 | T82: 0 | U82: 0 | V82: 0 | W82: 0 | X82: 0
K83: 08DPR0695N | L83: 1816844 | M83: 1 | N83: 0 | O83: 1 | P83: 0 | Q83: 0 | R83: 1 | S83: 1 | T83: 1 | U83: 0 | V83: 0 | W83: 0 | X83: 0
K84: 08DPR0695N | L84: 1826440 | M84: 0 | N84: 0 | O84: 1 | P84: 1 | Q84: 0 | R84: 1 | S84: 1 | T84: 1 | U84: 0 | V84: 0 | W84: 1 | X84: 1
K85: 08DPR0695N | L85: 1846079 | M85: 0 | N85: 0 | O85: 1 | P85: 1 | Q85: 0 | R85: 1 | S85: 1 | T85: 1 | U85: 0 | V85: 0 | W85: 1 | X85: 0
K86: 08DPR0695N | L86: 1855441 | M86: 1 | N86: 0 | O86: 1 | P86: 1 | Q86: 0 | R86: 1 | S86: 1 | T86: 0 | U86: 1 | V86: 1 | W86: 0 | X86: 0
K87: 08DPR0695N | L87: 1887569 | M87: 1 | N87: 0 | O87: 1 | P87: 1 | Q87: 0 | R87: 1 | S87: 1 | T87: 0 | U87: 0 | V87: 1 | W87: 0 | X87: 0
K88: 08DPR0695N | L88: 1887706 | M88: 1 | N88: 0 | O88: 1 | P88: 1 | Q88: 1 | R88: 1 | S88: 1 | T88: 1 | U88: 0 | V88: 1 | W88: 1 | X88: 1
K89: 08DPR0695N | L89: 1901203 | M89: 1 | N89: 0 | O89: 0 | P89: 0 | Q89: 0 | R89: 0 | S89: 0 | T89: 0 | U89: 1 | V89: 0 | W89: 1 | X89: 0
K90: 08DPR0695N | L90: 2324186 | M90: 0 | N90: 0 | O90: 1 | P90: 0 | Q90: 0 | R90: 1 | S90: 1 | T90: 1 | U90: 0 | V90: 1 | W90: 1 | X90: 0
K91: 08DPR0695N | L91: 2430309 | M91: 0 | N91: 0 | O91: 1 | P91: 1 | Q91: 0 | R91: 1 | S91: 0 | T91: 1 | U91: 0 | V91: 1 | W91: 1 | X91: 1
K92: 08DPR0695N | L92: 2450369 | M92: 0 | N92: 0 | O92: 1 | P92: 0 | Q92: 1 | R92: 1 | S92: 0 | T92: 0 | U92: 0 | V92: 0 | W92: 0 | X92: 0

Sheet RAZONAMIENTO
K2: ORIGEN | L2: FICHA | M2: R49 | N2: R50 | O2: R51 | P2: R52 | Q2: R53 | R2: R54 | S2: R55 | T2: R56 | U2: R57 | V2: R58 | W2: R59 | X2: R60 | Z2: ORIGEN | AA2: R49 | AB2: R50 | AC2: R51 | AD2: R52 | AE2: R53 | AF2: R55 | AG2: R55 | AH2: R56 | AI2: R57 | AJ2: R58 | AK2: R59 | AL2: R60
K3: 08DPR0695N | L3: 1653704 | M3: 1 | N3: 1 | O3: 1 | P3: 0 | Q3: 0 | R3: 1 | S3: 1 | T3: 1 | U3: 0 | V3: 0 | W3: 1 | X3: 1 | Z3: 08DPR0695N | AA3: 0.7 | AB3: 0.5888888889 | AC3: 0.8222222222 | AD3: 0.4222222222 | AE3: 0.4666666667 | AF3: 0.5222222222 | AG3: 0.6111111111 | AH3: 0.7222222222 | AI3: 0.4777777778 | AJ3: 0.6444444444 | AK3: 0.7333333333 | AL3: 0.6444444444
K4: 08DPR0695N | L4: 1655335 | M4: 0 | N4: 0 | O4: 0 | P4: 0 | Q4: 0 | R4: 0 | S4: 0 | T4: 1 | U4: 0 | V4: 0 | W4: 0 | X4: 1
K5: 08DPR0695N | L5: 1655462 | M5: 0 | N5: 0 | O5: 0 | P5: 0 | Q5: 0 | R5: 1 | S5: 0 | T5: 0 | U5: 0 | V5: 0 | W5: 0 | X5: 0
K6: 08DPR0695N | L6: 1655688 | M6: 1 | N6: 1 | O6: 1 | P6: 1 | Q6: 0 | R6: 1 | S6: 1 | T6: 0 | U6: 1 | V6: 0 | W6: 1 | X6: 0
K7: 08DPR0695N | L7: 1658321 | M7: 1 | N7: 1 | O7: 1 | P7: 0 | Q7: 1 | R7: 1 | S7: 1 | T7: 1 | U7: 1 | V7: 1 | W7: 1 | X7: 0
K8: 08DPR0695N | L8: 1673239 | M8: 1 | N8: 0 | O8: 1 | P8: 0 | Q8: 1 | R8: 1 | S8: 1 | T8: 1 | U8: 1 | V8: 1 | W8: 1 | X8: 0
I9: UNIDADES DE DIAGNÓSTICO | K9: 08DPR0695N | L9: 1673892 | M9: 0 | N9: 0 | O9: 1 | P9: 1 | Q9: 0 | R9: 1 | S9: 1 | T9: 1 | U9: 1 | V9: 1 | W9: 1 | X9: 0
K10: 08DPR0695N | L10: 1673894 | M10: 0 | N10: 1 | O10: 1 | P10: 0 | Q10: 0 | R10: 1 | S10: 0 | T10: 1 | U10: 1 | V10: 1 | W10: 0 | X10: 0
K11: 08DPR0695N | L11: 1677660 | M11: 0 | N11: 0 | O11: 1 | P11: 0 | Q11: 0 | R11: 0 | S11: 0 | T11: 0 | U11: 0 | V11: 0 | W11: 0 | X11: 1
K12: 08DPR0695N | L12: 1680106 | M12: 1 | N12: 0 | O12: 1 | P12: 0 | Q12: 1 | R12: 0 | S12: 1 | T12: 1 | U12: 1 | V12: 1 | W12: 1 | X12: 1
K13: 08DPR0695N | L13: 1692334 | M13: 1 | N13: 1 | O13: 1 | P13: 1 | Q13: 0 | R13: 1 | S13: 1 | T13: 1 | U13: 0 | V13: 0 | W13: 1 | X13: 0
K14: 08DPR0695N | L14: 1692933 | M14: 1 | N14: 1 | O14: 0 | P14: 0 | Q14: 0 | R14: 1 | S14: 0 | T14: 0 | U14: 0 | V14: 0 | W14: 0 | X14: 1
K15: 08DPR0695N | L15: 1693507 | M15: 1 | N15: 0 | O15: 0 | P15: 0 | Q15: 0 | R15: 0 | S15: 1 | T15: 1 | U15: 0 | V15: 1 | W15: 0 | X15: 1
K16: 08DPR0695N | L16: 1695946 | M16: 1 | N16: 1 | O16: 1 | P16: 1 | Q16: 0 | R16: 1 | S16: 1 | T16: 1 | U16: 1 | V16: 1 | W16: 1 | X16: 1
K17: 08DPR0695N | L17: 1705096 | M17: 1 | N17: 1 | O17: 1 | P17: 1 | Q17: 1 | R17: 1 | S17: 1 | T17: 1 | U17: 0 | V17: 1 | W17: 1 | X17: 1
K18: 08DPR0695N | L18: 1705387 | M18: 1 | N18: 1 | O18: 1 | P18: 0 | Q18: 0 | R18: 0 | S18: 1 | T18: 1 | U18: 0 | V18: 1 | W18: 1 | X18: 1
K19: 08DPR0695N | L19: 1705391 | M19: 0 | N19: 0 | O19: 1 | P19: 0 | Q19: 1 | R19: 1 | S19: 1 | T19: 1 | U19: 1 | V19: 1 | W19: 1 | X19: 1
K20: 08DPR0695N | L20: 1706377 | M20: 1 | N20: 0 | O20: 0 | P20: 0 | Q20: 0 | R20: 0 | S20: 1 | T20: 0 | U20: 0 | V20: 0 | W20: 1 | X20: 1
K21: 08DPR0695N | L21: 1707710 | M21: 1 | N21: 1 | O21: 1 | P21: 1 | Q21: 0 | R21: 1 | S21: 1 | T21: 1 | U21: 0 | V21: 1 | W21: 1 | X21: 1
K22: 08DPR0695N | L22: 1708328 | M22: 1 | N22: 1 | O22: 1 | P22: 1 | Q22: 1 | R22: 1 | S22: 1 | T22: 0 | U22: 1 | V22: 0 | W22: 1 | X22: 1
K23: 08DPR0695N | L23: 1708682 | M23: 1 | N23: 1 | O23: 1 | P23: 0 | Q23: 1 | R23: 0 | S23: 1 | T23: 1 | U23: 1 | V23: 1 | W23: 1 | X23: 1
K24: 08DPR0695N | L24: 1710352 | M24: 1 | N24: 1 | O24: 1 | P24: 0 | Q24: 1 | R24: 1 | S24: 1 | T24: 1 | U24: 1 | V24: 1 | W24: 1 | X24: 1
K25: 08DPR0695N | L25: 1712212 | M25: 0 | N25: 0 | O25: 1 | P25: 0 | Q25: 1 | R25: 1 | S25: 1 | T25: 1 | U25: 1 | V25: 1 | W25: 0 | X25: 0
K26: 08DPR0695N | L26: 1721642 | M26: 1 | N26: 1 | O26: 1 | P26: 0 | Q26: 1 | R26: 1 | S26: 1 | T26: 1 | U26: 1 | V26: 1 | W26: 1 | X26: 1
K27: 08DPR0695N | L27: 1722160 | M27: 1 | N27: 1 | O27: 1 | P27: 0 | Q27: 0 | R27: 1 | S27: 0 | T27: 1 | U27: 1 | V27: 1 | W27: 1 | X27: 1
K28: 08DPR0695N | L28: 1726785 | M28: 1 | N28: 0 | O28: 0 | P28: 0 | Q28: 1 | R28: 1 | S28: 0 | T28: 1 | U28: 0 | V28: 1 | W28: 1 | X28: 1
K29: 08DPR0695N | L29: 1726922 | M29: 1 | N29: 0 | O29: 1 | P29: 1 | Q29: 1 | R29: 0 | S29: 1 | T29: 1 | U29: 1 | V29: 0 | W29: 1 | X29: 1
K30: 08DPR0695N | L30: 1727228 | M30: 1 | N30: 1 | O30: 1 | P30: 1 | Q30: 0 | R30: 0 | S30: 1 | T30: 0 | U30: 1 | V30: 1 | W30: 1 | X30: 1
K31: 08DPR0695N | L31: 1727499 | M31: 1 | N31: 1 | O31: 1 | P31: 1 | Q31: 1 | R31: 1 | S31: 1 | T31: 1 | U31: 0 | V31: 1 | W31: 1 | X31: 1
K32: 08DPR0695N | L32: 1727897 | M32: 1 | N32: 1 | O32: 1 | P32: 1 | Q32: 1 | R32: 0 | S32: 0 | T32: 0 | U32: 1 | V32: 1 | W32: 1 | X32: 0
K33: 08DPR0695N | L33: 1729472 | M33: 0 | N33: 0 | O33: 1 | P33: 1 | Q33: 0 | R33: 1 | S33: 0 | T33: 0 | U33: 1 | V33: 0 | W33: 0 | X33: 0
K34: 08DPR0695N | L34: 1729494 | M34: 1 | N34: 1 | O34: 1 | P34: 1 | Q34: 1 | R34: 1 | S34: 1 | T34: 1 | U34: 1 | V34: 1 | W34: 1 | X34: 1
K35: 08DPR0695N | L35: 1730678 | M35: 1 | N35: 1 | O35: 1 | P35: 0 | Q35: 1 | R35: 0 | S35: 1 | T35: 1 | U35: 0 | V35: 1 | W35: 1 | X35: 0
K36: 08DPR0695N | L36: 1730802 | M36: 1 | N36: 1 | O36: 1 | P36: 0 | Q36: 1 | R36: 0 | S36: 1 | T36: 1 | U36: 1 | V36: 1 | W36: 1 | X36: 1
K37: 08DPR0695N | L37: 1730879 | M37: 1 | N37: 0 | O37: 1 | P37: 0 | Q37: 1 | R37: 1 | S37: 1 | T37: 1 | U37: 1 | V37: 1 | W37: 1 | X37: 1
K38: 08DPR0695N | L38: 1733442 | M38: 0 | N38: 1 | O38: 1 | P38: 0 | Q38: 0 | R38: 0 | S38: 1 | T38: 1 | U38: 0 | V38: 0 | W38: 1 | X38: 1
K39: 08DPR0695N | L39: 1734441 | M39: 1 | N39: 1 | O39: 1 | P39: 1 | Q39: 0 | R39: 1 | S39: 0 | T39: 1 | U39: 1 | V39: 1 | W39: 1 | X39: 1
K40: 08DPR0695N | L40: 1736155 | M40: 1 | N40: 0 | O40: 1 | P40: 1 | Q40: 1 | R40: 0 | S40: 1 | T40: 1 | U40: 0 | V40: 1 | W40: 1 | X40: 0
K41: 08DPR0695N | L41: 1736466 | M41: 1 | N41: 0 | O41: 1 | P41: 1 | Q41: 1 | R41: 1 | S41: 1 | T41: 1 | U41: 1 | V41: 1 | W41: 1 | X41: 1
K42: 08DPR0695N | L42: 1737720 | M42: 1 | N42: 0 | O42: 1 | P42: 1 | Q42: 1 | R42: 0 | S42: 1 | T42: 0 | U42: 0 | V42: 0 | W42: 1 | X42: 1
K43: 08DPR0695N | L43: 1737772 | M43: 0 | N43: 0 | O43: 1 | P43: 0 | Q43: 0 | R43: 1 | S43: 0 | T43: 1 | U43: 0 | V43: 0 | W43: 0 | X43: 1
K44: 08DPR0695N | L44: 1738388 | M44: 1 | N44: 0 | O44: 1 | P44: 0 | Q44: 0 | R44: 0 | S44: 1 | T44: 1 | U44: 0 | V44: 0 | W44: 1 | X44: 1
K45: 08DPR0695N | L45: 1738716 | M45: 1 | N45: 1 | O45: 1 | P45: 0 | Q45: 1 | R45: 0 | S45: 0 | T45: 1 | U45: 1 | V45: 1 | W45: 0 | X45: 1
K46: 08DPR0695N | L46: 1738970 | M46: 0 | N46: 0 | O46: 1 | P46: 1 | Q46: 0 | R46: 0 | S46: 1 | T46: 1 | U46: 0 | V46: 0 | W46: 1 | X46: 1
K47: 08DPR0695N | L47: 1739126 | M47: 1 | N47: 1 | O47: 1 | P47: 0 | Q47: 0 | R47: 1 | S47: 1 | T47: 1 | U47: 1 | V47: 1 | W47: 0 | X47: 1
K48: 08DPR0695N | L48: 1739739 | M48: 1 | N48: 1 | O48: 1 | P48: 0 | Q48: 1 | R48: 0 | S48: 1 | T48: 1 | U48: 0 | V48: 1 | W48: 1 | X48: 0
K49: 08DPR0695N | L49: 1739771 | M49: 0 | N49: 1 | O49: 1 | P49: 0 | Q49: 1 | R49: 1 | S49: 0 | T49: 0 | U49: 0 | V49: 1 | W49: 0 | X49: 0
K50: 08DPR0695N | L50: 1742907 | M50: 1 | N50: 0 | O50: 1 | P50: 0 | Q50: 1 | R50: 0 | S50: 0 | T50: 1 | U50: 1 | V50: 1 | W50: 1 | X50: 0
K51: 08DPR0695N | L51: 1745499 | M51: 1 | N51: 1 | O51: 1 | P51: 1 | Q51: 0 | R51: 0 | S51: 1 | T51: 1 | U51: 0 | V51: 1 | W51: 1 | X51: 1
K52: 08DPR0695N | L52: 1753716 | M52: 1 | N52: 0 | O52: 1 | P52: 0 | Q52: 0 | R52: 1 | S52: 0 | T52: 1 | U52: 1 | V52: 1 | W52: 0 | X52: 1
K53: 08DPR0695N | L53: 1753793 | M53: 1 | N53: 1 | O53: 1 | P53: 1 | Q53: 1 | R53: 1 | S53: 0 | T53: 0 | U53: 1 | V53: 0 | W53: 0 | X53: 0
K54: 08DPR0695N | L54: 1753948 | M54: 1 | N54: 1 | O54: 1 | P54: 0 | Q54: 1 | R54: 1 | S54: 1 | T54: 1 | U54: 1 | V54: 1 | W54: 1 | X54: 1
K55: 08DPR0695N | L55: 1754500 | M55: 1 | N55: 1 | O55: 1 | P55: 1 | Q55: 0 | R55: 0 | S55: 1 | T55: 1 | U55: 0 | V55: 1 | W55: 1 | X55: 0
K56: 08DPR0695N | L56: 1754691 | M56: 0 | N56: 1 | O56: 0 | P56: 1 | Q56: 0 | R56: 1 | S56: 0 | T56: 1 | U56: 0 | V56: 1 | W56: 0 | X56: 1
K57: 08DPR0695N | L57: 1755037 | M57: 1 | N57: 1 | O57: 1 | P57: 0 | Q57: 0 | R57: 0 | S57: 0 | T57: 0 | U57: 1 | V57: 0 | W57: 1 | X57: 1
K58: 08DPR0695N | L58: 1756233 | M58: 1 | N58: 0 | O58: 1 | P58: 0 | Q58: 1 | R58: 0 | S58: 0 | T58: 1 | U58: 0 | V58: 0 | W58: 1 | X58: 0
K59: 08DPR0695N | L59: 1759832 | M59: 1 | N59: 1 | O59: 1 | P59: 1 | Q59: 1 | R59: 0 | S59: 1 | T59: 1 | U59: 1 | V59: 1 | W59: 1 | X59: 1
K60: 08DPR0695N | L60: 1763196 | M60: 1 | N60: 0 | O60: 1 | P60: 0 | Q60: 1 | R60: 0 | S60: 0 | T60: 0 | U60: 0 | V60: 0 | W60: 1 | X60: 1
K61: 08DPR0695N | L61: 1763281 | M61: 1 | N61: 1 | O61: 1 | P61: 1 | Q61: 1 | R61: 0 | S61: 1 | T61: 1 | U61: 1 | V61: 1 | W61: 1 | X61: 1
K62: 08DPR0695N | L62: 1763359 | M62: 0 | N62: 1 | O62: 1 | P62: 1 | Q62: 0 | R62: 1 | S62: 1 | T62: 1 | U62: 1 | V62: 0 | W62: 1 | X62: 0
K63: 08DPR0695N | L63: 1763409 | M63: 0 | N63: 0 | O63: 1 | P63: 0 | Q63: 0 | R63: 1 | S63: 1 | T63: 1 | U63: 0 | V63: 0 | W63: 1 | X63: 0
K64: 08DPR0695N | L64: 1763416 | M64: 1 | N64: 1 | O64: 1 | P64: 1 | Q64: 0 | R64: 0 | S64: 1 | T64: 1 | U64: 0 | V64: 1 | W64: 1 | X64: 0
K65: 08DPR0695N | L65: 1763721 | M65: 1 | N65: 1 | O65: 1 | P65: 1 | Q65: 1 | R65: 1 | S65: 1 | T65: 1 | U65: 1 | V65: 1 | W65: 1 | X65: 1
K66: 08DPR0695N | L66: 1764372 | M66: 1 | N66: 1 | O66: 1 | P66: 1 | Q66: 0 | R66: 1 | S66: 0 | T66: 1 | U66: 0 | V66: 1 | W66: 1 | X66: 1
K67: 08DPR0695N | L67: 1765933 | M67: 0 | N67: 1 | O67: 0 | P67: 1 | Q67: 0 | R67: 0 | S67: 1 | T67: 0 | U67: 1 | V67: 0 | W67: 0 | X67: 0
K68: 08DPR0695N | L68: 1765995 | M68: 1 | N68: 1 | O68: 1 | P68: 0 | Q68: 0 | R68: 0 | S68: 0 | T68: 1 | U68: 0 | V68: 1 | W68: 1 | X68: 1
K69: 08DPR0695N | L69: 1766566 | M69: 0 | N69: 0 | O69: 1 | P69: 0 | Q69: 1 | R69: 0 | S69: 0 | T69: 1 | U69: 0 | V69: 1 | W69: 0 | X69: 0
K70: 08DPR0695N | L70: 1766591 | M70: 1 | N70: 1 | O70: 1 | P70: 0 | Q70: 0 | R70: 0 | S70: 0 | T70: 0 | U70: 0 | V70: 0 | W70: 0 | X70: 0
K71: 08DPR0695N | L71: 1767035 | M71: 1 | N71: 1 | O71: 0 | P71: 0 | Q71: 0 | R71: 0 | S71: 0 | T71: 1 | U71: 1 | V71: 1 | W71: 0 | X71: 0
K72: 08DPR0695N | L72: 1767053 | M72: 0 | N72: 0 | O72: 1 | P72: 1 | Q72: 1 | R72: 0 | S72: 1 | T72: 1 | U72: 1 | V72: 1 | W72: 0 | X72: 1
K73: 08DPR0695N | L73: 1767060 | M73: 1 | N73: 1 | O73: 1 | P73: 0 | Q73: 1 | R73: 0 | S73: 0 | T73: 1 | U73: 1 | V73: 0 | W73: 0 | X73: 1
K74: 08DPR0695N | L74: 1767067 | M74: 1 | N74: 1 | O74: 1 | P74: 1 | Q74: 1 | R74: 1 | S74: 1 | T74: 1 | U74: 0 | V74: 1 | W74: 1 | X74: 1
K75: 08DPR0695N | L75: 1768529 | M75: 1 | N75: 1 | O75: 1 | P75: 0 | Q75: 0 | R75: 1 | S75: 1 | T75: 1 | U75: 1 | V75: 1 | W75: 1 | X75: 1
K76: 08DPR0695N | L76: 1779625 | M76: 0 | N76: 1 | O76: 1 | P76: 0 | Q76: 1 | R76: 0 | S76: 1 | T76: 1 | U76: 0 | V76: 1 | W76: 1 | X76: 1
K77: 08DPR0695N | L77: 1782888 | M77: 0 | N77: 1 | O77: 1 | P77: 0 | Q77: 0 | R77: 1 | S77: 1 | T77: 0 | U77: 0 | V77: 0 | W77: 1 | X77: 1
K78: 08DPR0695N | L78: 1783194 | M78: 0 | N78: 1 | O78: 1 | P78: 0 | Q78: 0 | R78: 0 | S78: 0 | T78: 1 | U78: 0 | V78: 1 | W78: 1 | X78: 1
K79: 08DPR0695N | L79: 1790078 | M79: 0 | N79: 0 | O79: 0 | P79: 1 | Q79: 1 | R79: 0 | S79: 0 | T79: 0 | U79: 0 | V79: 1 | W79: 1 | X79: 0
K80: 08DPR0695N | L80: 1793444 | M80: 0 | N80: 0 | O80: 0 | P80: 1 | Q80: 0 | R80: 0 | S80: 1 | T80: 0 | U80: 0 | V80: 0 | W80: 1 | X80: 1
K81: 08DPR0695N | L81: 1793993 | M81: 1 | N81: 0 | O81: 1 | P81: 0 | Q81: 1 | R81: 0 | S81: 0 | T81: 0 | U81: 0 | V81: 1 | W81: 0 | X81: 0
K82: 08DPR0695N | L82: 1809261 | M82: 0 | N82: 0 | O82: 1 | P82: 1 | Q82: 0 | R82: 1 | S82: 1 | T82: 1 | U82: 1 | V82: 1 | W82: 1 | X82: 1
K83: 08DPR0695N | L83: 1816844 | M83: 1 | N83: 1 | O83: 0 | P83: 1 | Q83: 0 | R83: 1 | S83: 1 | T83: 0 | U83: 1 | V83: 0 | W83: 1 | X83: 0
K84: 08DPR0695N | L84: 1826440 | M84: 1 | N84: 1 | O84: 1 | P84: 0 | Q84: 1 | R84: 0 | S84: 0 | T84: 1 | U84: 0 | V84: 1 | W84: 1 | X84: 0
K85: 08DPR0695N | L85: 1846079 | M85: 0 | N85: 1 | O85: 0 | P85: 0 | Q85: 0 | R85: 1 | S85: 0 | T85: 1 | U85: 0 | V85: 0 | W85: 0 | X85: 1
K86: 08DPR0695N | L86: 1855441 | M86: 1 | N86: 0 | O86: 0 | P86: 1 | Q86: 0 | R86: 0 | S86: 0 | T86: 0 | U86: 1 | V86: 0 | W86: 1 | X86: 1
K87: 08DPR0695N | L87: 1887569 | M87: 1 | N87: 0 | O87: 0 | P87: 0 | Q87: 1 | R87: 1 | S87: 1 | T87: 1 | U87: 0 | V87: 1 | W87: 1 | X87: 0
K88: 08DPR0695N | L88: 1887706 | M88: 1 | N88: 0 | O88: 1 | P88: 0 | Q88: 1 | R88: 1 | S88: 1 | T88: 1 | U88: 0 | V88: 1 | W88: 1 | X88: 1
K89: 08DPR0695N | L89: 1901203 | M89: 1 | N89: 0 | O89: 1 | P89: 1 | Q89: 0 | R89: 1 | S89: 1 | T89: 0 | U89: 0 | V89: 0 | W89: 1 | X89: 1
K90: 08DPR0695N | L90: 2324186 | M90: 1 | N90: 1 | O90: 1 | P90: 1 | Q90: 0 | R90: 1 | S90: 0 | T90: 1 | U90: 1 | V90: 1 | W90: 1 | X90: 1
K91: 08DPR0695N | L91: 2430309 | M91: 0 | N91: 0 | O91: 1 | P91: 0 | Q91: 0 | R91: 0 | S91: 0 | T91: 0 | U91: 0 | V91: 1 | W91: 0 | X91: 0
K92: 08DPR0695N | L92: 2450369 | M92: 0 | N92: 0 | O92: 0 | P92: 0 | Q92: 0 | R92: 1 | S92: 0 | T92: 0 | U92: 0 | V92: 0 | W92: 1 | X92: 0

Sheet UNIDADES DIAGNÓSTICO ESC-EST
G2: IDANIS 2019
G3: UNIDADES DE DIAGNÓSTICO

Sheet CCT RESULTADOS
C2: MODALIDAD | D2: CLAVECCT | E2: ESCUELA | F2: ORACIONES_19 | G2: LECTURA_19 | H2: MATEMÁTICAS_19 | I2: GEOMETRÍA_19 | J2: RAZONAM_19
